Workbook

Sheet HDV
A1: Example Template - HDV Class 2b/3 - Federal Tier 3 FTP Fleet Average NMOG+NOx Calculations for One Model Year
C2: Manufacturer: ___________________________ | L2: Date: _____________
A4: Purpose and Scope of this Guidance Document
A5: This document was prepared by EPA's Office of Transportation and Air Quality (OTAQ). It is one of several intended to aid regulated parties in reporting Tier 3 and Cold NMHC Averaging, Banking and Trading (AB&T) information and calculating AB&T fleet average credits for light-duty vehicles and certain heavy-duty class 2b and 3 vehicles, ref. 40 CFR 86.1862-04(c). It contains EPA's recommended format for manufacturers to report to EPA their end-of-year Tier 3 AB&T calculations, credits and other information with respect to the implementation of the AB&T provisions of the EPA Tier 3 final rule (79 FR 23414, April 28, 2014) as amended (80 FR 9078, February 19, 2015; 80 FR 26463, May 8, 2015); ref. 40 CFR Parts 85, 86, 600, 1065, 1066. Use of this document is purely optional. This document does not in any way alter or waive the requirements in EPA regulations. Although the calculations and formulas provided in this document are intended to assist manufacturers in the implementation of EPA regulations, this document does not establish or change the legal rights or obligations of manufacturers or others in complying with EPA regulations, including 40 CFR 86.1862-04(c). If an error or other discrepancy is found in this document, including the calculation formulas, please contact your EPA certification team member or Dave Good at (734) 214-4450 or by email at good.david@epa.gov. The regulations take precedence.
A7: OMB Control Number 2060-0104 Expires 3-31-2020 | F7: HDV Class 2b Averaging Set | L7: HDV Class 3 Averaging Set
F8: Emission Standard | G8: Total Production | H8: Fleet average compliance value | I8: Fleet average standard | J8: Credits or Debits | L8: Emission Standard | M8: Total Production | N8: Fleet average compliance value | O8: Fleet average standard | P8: Credits or Debits
A9: Instructions | H9: g/mi | I9: g/mi | J9: g/mi | N9: g/mi | O9: g/mi | P9: g/mi
A10: Select Model Year: | C10: 2019 | F10: FTP (NMOG+NOx) | G10: =SUMIF(B16:B483,"2b",F16:F483) -> 193840 | H10: =astm(SUMIF(B16:B483,"2b",P16:P483),3) -> 0.224 | I10: =IF(C10=2016,0.333,IF(C10=2017,0.31,IF(C10=2018,0.278,IF(C10=2019,0.253,IF(C10=2020,0.228,IF(C10=2021,0.203,IF(C10>=2022,0.178,"n/a"))))))) -> 0.253 | J10: =astm(((I10-H10)*$G$10),0) -> 5621 | L10: FTP (NMOG+ NOx) | M10: =SUMIF(B16:B483,"3",F16:F483) -> 340000 | N10: =astm(SUMIF(B16:B483,"3",P16:P483),3) -> 0.421 | O10: =IF(C10=2016,0.548,IF(C10=2017,0.508,IF(C10=2018,0.451,IF(C10=2019,0.4,IF(C10=2020,0.349,IF(C10=2021,0.298,IF(C10>=2022,0.247,"n/a"))))))) -> 0.4 | P10: =astm(((O10-N10)*$M$10),0) -> -7140
Q13: Error Checks
A14: Test Group | B14: HDV Class of Test Group (and Class of Averaging Set) | C14: Bin (NMOG + NOx) | D14: Test Group Useful Life Miles | E14: FTP Useful Life of Averaging Set (must be 150K) | F14: Production (50-State) | G14: Comments | N14: FTP NMOG + NOx Standard [Column C Bin x 0.001] | O14: FTP Production x Bin Standard [Columns G x Q] | P14: FTP Intermediate calculation [(Production x Bin Std)/Total Production] | Q14: Error Check for Valid HDV Class & Bin | R14: Error Check: Valid Use of Trans-itional Bins | S14: Error Check for Valid Test Group Useful Life
B15: 2b or 3 | D15: x1000 Mi | E15: (x 1000 Miles) | F15: # of Units | N15: g/mi | O15: g/mi
A16: A | B16: 2b | C16: 395 | D16: 120 | E16: 150 | F16: 39458 | N16: =IF(A16="","",C16/1000) -> 0.395 | O16: =IF(AND(A16="",F16=""),"", IF(AND(A16="",F16<>""), "FIX TEST GRP", IF(B16="","FIX CLASS",IF(C16="","FIX BIN",IF(F16="","FIX PROD'N",F16*N16))))) -> 15585.91 | P16: =IF(A16="","",IF(C16="","FIX BIN", IF(D16="","FIX U/L MILES", IFERROR(O16/(IF(B16="2b",$G$10,$M$10)),"")))) -> 0.08040605654 | Q16: =IF(A16="","",IF(ISERROR(VLOOKUP(CONCATENATE(HDV!B16,"_",HDV!C16),Sheet2!$A$28:$A$40,1,FALSE))=TRUE,"ERROR","OK")) -> OK | R16: =IF(A16="","", IF(AND($C$10>2021, C16=340),"ERROR",IF(AND($C$10>2021, C16=395),"ERROR",IF(AND($C$10>2021, C16>400),"ERROR", "OK")))) -> OK | S16: =IF(B16="","", IF(AND($C$10>2021, D16<150),"ERROR",IF(AND(D16<150, N16=395),"ERROR",IF(AND(D16<150, N16=340),"ERROR",IF(AND(D16<150, N16>400),"ERROR", "OK"))))) -> OK
A17: B | B17: 2b | C17: 340 | D17: 120 | E17: 150 | F17: 20382 | N17: 0.34 | O17: 6929.88 | P17: 0.03575051589 | Q17: =IF(A17="","",IF(ISERROR(VLOOKUP(CONCATENATE(HDV!B17,"_",HDV!C17),Sheet2!$A$28:$A$40,1,FALSE))=TRUE,"ERROR","OK")) -> OK | R17: OK | S17: OK
A18: C | B18: 2b | C18: 200 | D18: 150 | E18: 150 | F18: 45000 | N18: 0.2 | O18: 9000 | P18: 0.0464300454 | Q18: =IF(A18="","",IF(ISERROR(VLOOKUP(CONCATENATE(HDV!B18,"_",HDV!C18),Sheet2!$A$28:$A$40,1,FALSE))=TRUE,"ERROR","OK")) -> OK | R18: OK | S18: OK
A19: D | B19: 2b | C19: 150 | D19: 150 | E19: 150 | F19: 79000 | N19: 0.15 | O19: 11850 | P19: 0.06113289311 | Q19: =IF(A19="","",IF(ISERROR(VLOOKUP(CONCATENATE(HDV!B19,"_",HDV!C19),Sheet2!$A$28:$A$40,1,FALSE))=TRUE,"ERROR","OK")) -> OK | R19: OK | S19: OK
A20: E | B20: 2b | C20: 0 | D20: 150 | E20: 150 | F20: 10000 | N20: 0 | O20: 0 | P20: 0 | Q20: =IF(A20="","",IF(ISERROR(VLOOKUP(CONCATENATE(HDV!B20,"_",HDV!C20),Sheet2!$A$28:$A$40,1,FALSE))=TRUE,"ERROR","OK")) -> OK | R20: OK | S20: OK
A21: F | B21: 3 | C21: 630 | D21: 120 | E21: 150 | F21: 90000 | N21: 0.63 | O21: 56700 | P21: 0.1667647059 | Q21: =IF(A21="","",IF(ISERROR(VLOOKUP(CONCATENATE(HDV!B21,"_",HDV!C21),Sheet2!$A$28:$A$40,1,FALSE))=TRUE,"ERROR","OK")) -> OK | R21: OK | S21: OK
A22: G | B22: 3 | C22: 570 | D22: 120 | E22: 150 | F22: 120000 | N22: 0.57 | O22: 68400 | P22: 0.2011764706 | Q22: =IF(A22="","",IF(ISERROR(VLOOKUP(CONCATENATE(HDV!B22,"_",HDV!C22),Sheet2!$A$28:$A$40,1,FALSE))=TRUE,"ERROR","OK")) -> OK | R22: OK | S22: OK
A23: H | B23: 3 | C23: 200 | D23: 150 | E23: 150 | F23: 90000 | N23: 0.2 | O23: 18000 | P23: 0.05294117647 | Q23: =IF(A23="","",IF(ISERROR(VLOOKUP(CONCATENATE(HDV!B23,"_",HDV!C23),Sheet2!$A$28:$A$40,1,FALSE))=TRUE,"ERROR","OK")) -> OK | R23: OK | S23: OK
A24: I | B24: 3 | C24: 0 | D24: 150 | E24: 150 | F24: 40000 | N24: 0 | O24: 0 | P24: 0 | Q24: =IF(A24="","",IF(ISERROR(VLOOKUP(CONCATENATE(HDV!B24,"_",HDV!C24),Sheet2!$A$28:$A$40,1,FALSE))=TRUE,"ERROR","OK")) -> OK | R24: OK | S24: OK
Q25: =IF(A25="","",IF(ISERROR(VLOOKUP(CONCATENATE(HDV!B25,"_",HDV!C25),Sheet2!$A$28:$A$40,1,FALSE))=TRUE,"ERROR","OK")) -> 
Q26: =IF(A26="","",IF(ISERROR(VLOOKUP(CONCATENATE(HDV!B26,"_",HDV!C26),Sheet2!$A$28:$A$40,1,FALSE))=TRUE,"ERROR","OK")) -> 
Q27: =IF(A27="","",IF(ISERROR(VLOOKUP(CONCATENATE(HDV!B27,"_",HDV!C27),Sheet2!$A$28:$A$40,1,FALSE))=TRUE,"ERROR","OK")) -> 
Q28: =IF(A28="","",IF(ISERROR(VLOOKUP(CONCATENATE(HDV!B28,"_",HDV!C28),Sheet2!$A$28:$A$40,1,FALSE))=TRUE,"ERROR","OK")) -> 
Q29: =IF(A29="","",IF(ISERROR(VLOOKUP(CONCATENATE(HDV!B29,"_",HDV!C29),Sheet2!$A$28:$A$40,1,FALSE))=TRUE,"ERROR","OK")) -> 
Q30: =IF(A30="","",IF(ISERROR(VLOOKUP(CONCATENATE(HDV!B30,"_",HDV!C30),Sheet2!$A$28:$A$40,1,FALSE))=TRUE,"ERROR","OK")) -> 
Q31: =IF(A31="","",IF(ISERROR(VLOOKUP(CONCATENATE(HDV!B31,"_",HDV!C31),Sheet2!$A$28:$A$40,1,FALSE))=TRUE,"ERROR","OK")) -> 
Q32: =IF(A32="","",IF(ISERROR(VLOOKUP(CONCATENATE(HDV!B32,"_",HDV!C32),Sheet2!$A$28:$A$40,1,FALSE))=TRUE,"ERROR","OK")) -> 
Q33: =IF(A33="","",IF(ISERROR(VLOOKUP(CONCATENATE(HDV!B33,"_",HDV!C33),Sheet2!$A$28:$A$40,1,FALSE))=TRUE,"ERROR","OK")) -> 
Q34: =IF(A34="","",IF(ISERROR(VLOOKUP(CONCATENATE(HDV!B34,"_",HDV!C34),Sheet2!$A$28:$A$40,1,FALSE))=TRUE,"ERROR","OK")) -> 
Q35: =IF(A35="","",IF(ISERROR(VLOOKUP(CONCATENATE(HDV!B35,"_",HDV!C35),Sheet2!$A$28:$A$40,1,FALSE))=TRUE,"ERROR","OK")) -> 
Q36: =IF(A36="","",IF(ISERROR(VLOOKUP(CONCATENATE(HDV!B36,"_",HDV!C36),Sheet2!$A$28:$A$40,1,FALSE))=TRUE,"ERROR","OK")) -> 
Q37: =IF(A37="","",IF(ISERROR(VLOOKUP(CONCATENATE(HDV!B37,"_",HDV!C37),Sheet2!$A$28:$A$40,1,FALSE))=TRUE,"ERROR","OK")) -> 
Q38: =IF(A38="","",IF(ISERROR(VLOOKUP(CONCATENATE(HDV!B38,"_",HDV!C38),Sheet2!$A$28:$A$40,1,FALSE))=TRUE,"ERROR","OK")) -> 
Q39: =IF(A39="","",IF(ISERROR(VLOOKUP(CONCATENATE(HDV!B39,"_",HDV!C39),Sheet2!$A$28:$A$40,1,FALSE))=TRUE,"ERROR","OK")) -> 
Q40: =IF(A40="","",IF(ISERROR(VLOOKUP(CONCATENATE(HDV!B40,"_",HDV!C40),Sheet2!$A$28:$A$40,1,FALSE))=TRUE,"ERROR","OK")) -> 
Q41: =IF(A41="","",IF(ISERROR(VLOOKUP(CONCATENATE(HDV!B41,"_",HDV!C41),Sheet2!$A$28:$A$40,1,FALSE))=TRUE,"ERROR","OK")) -> 
Q42: =IF(A42="","",IF(ISERROR(VLOOKUP(CONCATENATE(HDV!B42,"_",HDV!C42),Sheet2!$A$28:$A$40,1,FALSE))=TRUE,"ERROR","OK")) -> 
Q43: =IF(A43="","",IF(ISERROR(VLOOKUP(CONCATENATE(HDV!B43,"_",HDV!C43),Sheet2!$A$28:$A$40,1,FALSE))=TRUE,"ERROR","OK")) -> 
Q44: =IF(A44="","",IF(ISERROR(VLOOKUP(CONCATENATE(HDV!B44,"_",HDV!C44),Sheet2!$A$28:$A$40,1,FALSE))=TRUE,"ERROR","OK")) -> 
Q45: =IF(A45="","",IF(ISERROR(VLOOKUP(CONCATENATE(HDV!B45,"_",HDV!C45),Sheet2!$A$28:$A$40,1,FALSE))=TRUE,"ERROR","OK")) -> 
Q46: =IF(A46="","",IF(ISERROR(VLOOKUP(CONCATENATE(HDV!B46,"_",HDV!C46),Sheet2!$A$28:$A$40,1,FALSE))=TRUE,"ERROR","OK")) -> 
Q47: =IF(A47="","",IF(ISERROR(VLOOKUP(CONCATENATE(HDV!B47,"_",HDV!C47),Sheet2!$A$28:$A$40,1,FALSE))=TRUE,"ERROR","OK")) -> 
Q48: =IF(A48="","",IF(ISERROR(VLOOKUP(CONCATENATE(HDV!B48,"_",HDV!C48),Sheet2!$A$28:$A$40,1,FALSE))=TRUE,"ERROR","OK")) -> 
Q49: =IF(A49="","",IF(ISERROR(VLOOKUP(CONCATENATE(HDV!B49,"_",HDV!C49),Sheet2!$A$28:$A$40,1,FALSE))=TRUE,"ERROR","OK")) -> 
Q50: =IF(A50="","",IF(ISERROR(VLOOKUP(CONCATENATE(HDV!B50,"_",HDV!C50),Sheet2!$A$28:$A$40,1,FALSE))=TRUE,"ERROR","OK")) -> 
Q51: =IF(A51="","",IF(ISERROR(VLOOKUP(CONCATENATE(HDV!B51,"_",HDV!C51),Sheet2!$A$28:$A$40,1,FALSE))=TRUE,"ERROR","OK")) -> 
Q52: =IF(A52="","",IF(ISERROR(VLOOKUP(CONCATENATE(HDV!B52,"_",HDV!C52),Sheet2!$A$28:$A$40,1,FALSE))=TRUE,"ERROR","OK")) -> 
Q53: =IF(A53="","",IF(ISERROR(VLOOKUP(CONCATENATE(HDV!B53,"_",HDV!C53),Sheet2!$A$28:$A$40,1,FALSE))=TRUE,"ERROR","OK")) -> 
Q54: =IF(A54="","",IF(ISERROR(VLOOKUP(CONCATENATE(HDV!B54,"_",HDV!C54),Sheet2!$A$28:$A$40,1,FALSE))=TRUE,"ERROR","OK")) -> 
Q55: =IF(A55="","",IF(ISERROR(VLOOKUP(CONCATENATE(HDV!B55,"_",HDV!C55),Sheet2!$A$28:$A$40,1,FALSE))=TRUE,"ERROR","OK")) -> 
Q56: =IF(A56="","",IF(ISERROR(VLOOKUP(CONCATENATE(HDV!B56,"_",HDV!C56),Sheet2!$A$28:$A$40,1,FALSE))=TRUE,"ERROR","OK")) -> 
Q57: =IF(A57="","",IF(ISERROR(VLOOKUP(CONCATENATE(HDV!B57,"_",HDV!C57),Sheet2!$A$28:$A$40,1,FALSE))=TRUE,"ERROR","OK")) -> 
Q58: =IF(A58="","",IF(ISERROR(VLOOKUP(CONCATENATE(HDV!B58,"_",HDV!C58),Sheet2!$A$28:$A$40,1,FALSE))=TRUE,"ERROR","OK")) -> 
Q59: =IF(A59="","",IF(ISERROR(VLOOKUP(CONCATENATE(HDV!B59,"_",HDV!C59),Sheet2!$A$28:$A$40,1,FALSE))=TRUE,"ERROR","OK")) -> 
Q60: =IF(A60="","",IF(ISERROR(VLOOKUP(CONCATENATE(HDV!B60,"_",HDV!C60),Sheet2!$A$28:$A$40,1,FALSE))=TRUE,"ERROR","OK")) -> 
Q61: =IF(A61="","",IF(ISERROR(VLOOKUP(CONCATENATE(HDV!B61,"_",HDV!C61),Sheet2!$A$28:$A$40,1,FALSE))=TRUE,"ERROR","OK")) -> 
Q62: =IF(A62="","",IF(ISERROR(VLOOKUP(CONCATENATE(HDV!B62,"_",HDV!C62),Sheet2!$A$28:$A$40,1,FALSE))=TRUE,"ERROR","OK")) -> 
Q63: =IF(A63="","",IF(ISERROR(VLOOKUP(CONCATENATE(HDV!B63,"_",HDV!C63),Sheet2!$A$28:$A$40,1,FALSE))=TRUE,"ERROR","OK")) -> 
Q64: =IF(A64="","",IF(ISERROR(VLOOKUP(CONCATENATE(HDV!B64,"_",HDV!C64),Sheet2!$A$28:$A$40,1,FALSE))=TRUE,"ERROR","OK")) -> 
Q65: =IF(A65="","",IF(ISERROR(VLOOKUP(CONCATENATE(HDV!B65,"_",HDV!C65),Sheet2!$A$28:$A$40,1,FALSE))=TRUE,"ERROR","OK")) -> 
Q66: =IF(A66="","",IF(ISERROR(VLOOKUP(CONCATENATE(HDV!B66,"_",HDV!C66),Sheet2!$A$28:$A$40,1,FALSE))=TRUE,"ERROR","OK")) -> 
Q67: =IF(A67="","",IF(ISERROR(VLOOKUP(CONCATENATE(HDV!B67,"_",HDV!C67),Sheet2!$A$28:$A$40,1,FALSE))=TRUE,"ERROR","OK")) -> 
Q68: =IF(A68="","",IF(ISERROR(VLOOKUP(CONCATENATE(HDV!B68,"_",HDV!C68),Sheet2!$A$28:$A$40,1,FALSE))=TRUE,"ERROR","OK")) -> 
Q69: =IF(A69="","",IF(ISERROR(VLOOKUP(CONCATENATE(HDV!B69,"_",HDV!C69),Sheet2!$A$28:$A$40,1,FALSE))=TRUE,"ERROR","OK")) -> 
Q70: =IF(A70="","",IF(ISERROR(VLOOKUP(CONCATENATE(HDV!B70,"_",HDV!C70),Sheet2!$A$28:$A$40,1,FALSE))=TRUE,"ERROR","OK")) -> 
Q71: =IF(A71="","",IF(ISERROR(VLOOKUP(CONCATENATE(HDV!B71,"_",HDV!C71),Sheet2!$A$28:$A$40,1,FALSE))=TRUE,"ERROR","OK")) -> 
Q72: =IF(A72="","",IF(ISERROR(VLOOKUP(CONCATENATE(HDV!B72,"_",HDV!C72),Sheet2!$A$28:$A$40,1,FALSE))=TRUE,"ERROR","OK")) -> 
Q73: =IF(A73="","",IF(ISERROR(VLOOKUP(CONCATENATE(HDV!B73,"_",HDV!C73),Sheet2!$A$28:$A$40,1,FALSE))=TRUE,"ERROR","OK")) -> 
Q74: =IF(A74="","",IF(ISERROR(VLOOKUP(CONCATENATE(HDV!B74,"_",HDV!C74),Sheet2!$A$28:$A$40,1,FALSE))=TRUE,"ERROR","OK")) -> 
Q75: =IF(A75="","",IF(ISERROR(VLOOKUP(CONCATENATE(HDV!B75,"_",HDV!C75),Sheet2!$A$28:$A$40,1,FALSE))=TRUE,"ERROR","OK")) -> 
Q76: =IF(A76="","",IF(ISERROR(VLOOKUP(CONCATENATE(HDV!B76,"_",HDV!C76),Sheet2!$A$28:$A$40,1,FALSE))=TRUE,"ERROR","OK")) -> 
Q77: =IF(A77="","",IF(ISERROR(VLOOKUP(CONCATENATE(HDV!B77,"_",HDV!C77),Sheet2!$A$28:$A$40,1,FALSE))=TRUE,"ERROR","OK")) -> 
Q78: =IF(A78="","",IF(ISERROR(VLOOKUP(CONCATENATE(HDV!B78,"_",HDV!C78),Sheet2!$A$28:$A$40,1,FALSE))=TRUE,"ERROR","OK")) -> 
Q79: =IF(A79="","",IF(ISERROR(VLOOKUP(CONCATENATE(HDV!B79,"_",HDV!C79),Sheet2!$A$28:$A$40,1,FALSE))=TRUE,"ERROR","OK")) -> 
N80: =IF(A80="","",C80/1000) ->  | O80: =IF(AND(A80="",F80=""),"", IF(AND(A80="",F80<>""), "FIX TEST GRP", IF(B80="","FIX CLASS",IF(C80="","FIX BIN",IF(F80="","FIX PROD'N",F80*N80))))) ->  | P80: =IF(A80="","",IF(C80="","FIX BIN", IF(D80="","FIX U/L MILES", IFERROR(O80/(IF(B80="2b",$G$10,$M$10)),"")))) ->  | Q80: =IF(A80="","",IF(ISERROR(VLOOKUP(CONCATENATE(HDV!B80,"_",HDV!C80),Sheet2!$A$28:$A$40,1,FALSE))=TRUE,"ERROR","OK")) ->  | R80: =IF(A80="","", IF(AND($C$10>2021, C80=340),"ERROR",IF(AND($C$10>2021, C80=395),"ERROR",IF(AND($C$10>2021, C80>400),"ERROR", "OK")))) ->  | S80: =IF(B80="","", IF(AND($C$10>2021, D80<150),"ERROR",IF(AND(D80<150, N80=395),"ERROR",IF(AND(D80<150, N80=340),"ERROR",IF(AND(D80<150, N80>400),"ERROR", "OK"))))) -> 
Q81: =IF(A81="","",IF(ISERROR(VLOOKUP(CONCATENATE(HDV!B81,"_",HDV!C81),Sheet2!$A$28:$A$40,1,FALSE))=TRUE,"ERROR","OK")) -> 
Q82: =IF(A82="","",IF(ISERROR(VLOOKUP(CONCATENATE(HDV!B82,"_",HDV!C82),Sheet2!$A$28:$A$40,1,FALSE))=TRUE,"ERROR","OK")) -> 
Q83: =IF(A83="","",IF(ISERROR(VLOOKUP(CONCATENATE(HDV!B83,"_",HDV!C83),Sheet2!$A$28:$A$40,1,FALSE))=TRUE,"ERROR","OK")) -> 
Q84: =IF(A84="","",IF(ISERROR(VLOOKUP(CONCATENATE(HDV!B84,"_",HDV!C84),Sheet2!$A$28:$A$40,1,FALSE))=TRUE,"ERROR","OK")) -> 
Q85: =IF(A85="","",IF(ISERROR(VLOOKUP(CONCATENATE(HDV!B85,"_",HDV!C85),Sheet2!$A$28:$A$40,1,FALSE))=TRUE,"ERROR","OK")) -> 
Q86: =IF(A86="","",IF(ISERROR(VLOOKUP(CONCATENATE(HDV!B86,"_",HDV!C86),Sheet2!$A$28:$A$40,1,FALSE))=TRUE,"ERROR","OK")) -> 
Q87: =IF(A87="","",IF(ISERROR(VLOOKUP(CONCATENATE(HDV!B87,"_",HDV!C87),Sheet2!$A$28:$A$40,1,FALSE))=TRUE,"ERROR","OK")) -> 
Q88: =IF(A88="","",IF(ISERROR(VLOOKUP(CONCATENATE(HDV!B88,"_",HDV!C88),Sheet2!$A$28:$A$40,1,FALSE))=TRUE,"ERROR","OK")) -> 
Q89: =IF(A89="","",IF(ISERROR(VLOOKUP(CONCATENATE(HDV!B89,"_",HDV!C89),Sheet2!$A$28:$A$40,1,FALSE))=TRUE,"ERROR","OK")) -> 
Q90: =IF(A90="","",IF(ISERROR(VLOOKUP(CONCATENATE(HDV!B90,"_",HDV!C90),Sheet2!$A$28:$A$40,1,FALSE))=TRUE,"ERROR","OK")) -> 
Q91: =IF(A91="","",IF(ISERROR(VLOOKUP(CONCATENATE(HDV!B91,"_",HDV!C91),Sheet2!$A$28:$A$40,1,FALSE))=TRUE,"ERROR","OK")) -> 
Q92: =IF(A92="","",IF(ISERROR(VLOOKUP(CONCATENATE(HDV!B92,"_",HDV!C92),Sheet2!$A$28:$A$40,1,FALSE))=TRUE,"ERROR","OK")) -> 
Q93: =IF(A93="","",IF(ISERROR(VLOOKUP(CONCATENATE(HDV!B93,"_",HDV!C93),Sheet2!$A$28:$A$40,1,FALSE))=TRUE,"ERROR","OK")) -> 
Q94: =IF(A94="","",IF(ISERROR(VLOOKUP(CONCATENATE(HDV!B94,"_",HDV!C94),Sheet2!$A$28:$A$40,1,FALSE))=TRUE,"ERROR","OK")) -> 
Q95: =IF(A95="","",IF(ISERROR(VLOOKUP(CONCATENATE(HDV!B95,"_",HDV!C95),Sheet2!$A$28:$A$40,1,FALSE))=TRUE,"ERROR","OK")) -> 
Q96: =IF(A96="","",IF(ISERROR(VLOOKUP(CONCATENATE(HDV!B96,"_",HDV!C96),Sheet2!$A$28:$A$40,1,FALSE))=TRUE,"ERROR","OK")) -> 
Q97: =IF(A97="","",IF(ISERROR(VLOOKUP(CONCATENATE(HDV!B97,"_",HDV!C97),Sheet2!$A$28:$A$40,1,FALSE))=TRUE,"ERROR","OK")) -> 
Q98: =IF(A98="","",IF(ISERROR(VLOOKUP(CONCATENATE(HDV!B98,"_",HDV!C98),Sheet2!$A$28:$A$40,1,FALSE))=TRUE,"ERROR","OK")) -> 
Q99: =IF(A99="","",IF(ISERROR(VLOOKUP(CONCATENATE(HDV!B99,"_",HDV!C99),Sheet2!$A$28:$A$40,1,FALSE))=TRUE,"ERROR","OK")) -> 
Q100: =IF(A100="","",IF(ISERROR(VLOOKUP(CONCATENATE(HDV!B100,"_",HDV!C100),Sheet2!$A$28:$A$40,1,FALSE))=TRUE,"ERROR","OK")) -> 
Q101: =IF(A101="","",IF(ISERROR(VLOOKUP(CONCATENATE(HDV!B101,"_",HDV!C101),Sheet2!$A$28:$A$40,1,FALSE))=TRUE,"ERROR","OK")) -> 
Q102: =IF(A102="","",IF(ISERROR(VLOOKUP(CONCATENATE(HDV!B102,"_",HDV!C102),Sheet2!$A$28:$A$40,1,FALSE))=TRUE,"ERROR","OK")) -> 
Q103: =IF(A103="","",IF(ISERROR(VLOOKUP(CONCATENATE(HDV!B103,"_",HDV!C103),Sheet2!$A$28:$A$40,1,FALSE))=TRUE,"ERROR","OK")) -> 
Q104: =IF(A104="","",IF(ISERROR(VLOOKUP(CONCATENATE(HDV!B104,"_",HDV!C104),Sheet2!$A$28:$A$40,1,FALSE))=TRUE,"ERROR","OK")) -> 
Q105: =IF(A105="","",IF(ISERROR(VLOOKUP(CONCATENATE(HDV!B105,"_",HDV!C105),Sheet2!$A$28:$A$40,1,FALSE))=TRUE,"ERROR","OK")) -> 
Q106: =IF(A106="","",IF(ISERROR(VLOOKUP(CONCATENATE(HDV!B106,"_",HDV!C106),Sheet2!$A$28:$A$40,1,FALSE))=TRUE,"ERROR","OK")) -> 
Q107: =IF(A107="","",IF(ISERROR(VLOOKUP(CONCATENATE(HDV!B107,"_",HDV!C107),Sheet2!$A$28:$A$40,1,FALSE))=TRUE,"ERROR","OK")) -> 
Q108: =IF(A108="","",IF(ISERROR(VLOOKUP(CONCATENATE(HDV!B108,"_",HDV!C108),Sheet2!$A$28:$A$40,1,FALSE))=TRUE,"ERROR","OK")) -> 
Q109: =IF(A109="","",IF(ISERROR(VLOOKUP(CONCATENATE(HDV!B109,"_",HDV!C109),Sheet2!$A$28:$A$40,1,FALSE))=TRUE,"ERROR","OK")) -> 
Q110: =IF(A110="","",IF(ISERROR(VLOOKUP(CONCATENATE(HDV!B110,"_",HDV!C110),Sheet2!$A$28:$A$40,1,FALSE))=TRUE,"ERROR","OK")) -> 
Q111: =IF(A111="","",IF(ISERROR(VLOOKUP(CONCATENATE(HDV!B111,"_",HDV!C111),Sheet2!$A$28:$A$40,1,FALSE))=TRUE,"ERROR","OK")) -> 
Q112: =IF(A112="","",IF(ISERROR(VLOOKUP(CONCATENATE(HDV!B112,"_",HDV!C112),Sheet2!$A$28:$A$40,1,FALSE))=TRUE,"ERROR","OK")) -> 
Q113: =IF(A113="","",IF(ISERROR(VLOOKUP(CONCATENATE(HDV!B113,"_",HDV!C113),Sheet2!$A$28:$A$40,1,FALSE))=TRUE,"ERROR","OK")) -> 
Q114: =IF(A114="","",IF(ISERROR(VLOOKUP(CONCATENATE(HDV!B114,"_",HDV!C114),Sheet2!$A$28:$A$40,1,FALSE))=TRUE,"ERROR","OK")) -> 
Q115: =IF(A115="","",IF(ISERROR(VLOOKUP(CONCATENATE(HDV!B115,"_",HDV!C115),Sheet2!$A$28:$A$40,1,FALSE))=TRUE,"ERROR","OK")) -> 
Q116: =IF(A116="","",IF(ISERROR(VLOOKUP(CONCATENATE(HDV!B116,"_",HDV!C116),Sheet2!$A$28:$A$40,1,FALSE))=TRUE,"ERROR","OK")) -> 
Q117: =IF(A117="","",IF(ISERROR(VLOOKUP(CONCATENATE(HDV!B117,"_",HDV!C117),Sheet2!$A$28:$A$40,1,FALSE))=TRUE,"ERROR","OK")) -> 
Q118: =IF(A118="","",IF(ISERROR(VLOOKUP(CONCATENATE(HDV!B118,"_",HDV!C118),Sheet2!$A$28:$A$40,1,FALSE))=TRUE,"ERROR","OK")) -> 
Q119: =IF(A119="","",IF(ISERROR(VLOOKUP(CONCATENATE(HDV!B119,"_",HDV!C119),Sheet2!$A$28:$A$40,1,FALSE))=TRUE,"ERROR","OK")) -> 
Q120: =IF(A120="","",IF(ISERROR(VLOOKUP(CONCATENATE(HDV!B120,"_",HDV!C120),Sheet2!$A$28:$A$40,1,FALSE))=TRUE,"ERROR","OK")) -> 
Q121: =IF(A121="","",IF(ISERROR(VLOOKUP(CONCATENATE(HDV!B121,"_",HDV!C121),Sheet2!$A$28:$A$40,1,FALSE))=TRUE,"ERROR","OK")) -> 
Q122: =IF(A122="","",IF(ISERROR(VLOOKUP(CONCATENATE(HDV!B122,"_",HDV!C122),Sheet2!$A$28:$A$40,1,FALSE))=TRUE,"ERROR","OK")) -> 
Q123: =IF(A123="","",IF(ISERROR(VLOOKUP(CONCATENATE(HDV!B123,"_",HDV!C123),Sheet2!$A$28:$A$40,1,FALSE))=TRUE,"ERROR","OK")) -> 
Q124: =IF(A124="","",IF(ISERROR(VLOOKUP(CONCATENATE(HDV!B124,"_",HDV!C124),Sheet2!$A$28:$A$40,1,FALSE))=TRUE,"ERROR","OK")) -> 
Q125: =IF(A125="","",IF(ISERROR(VLOOKUP(CONCATENATE(HDV!B125,"_",HDV!C125),Sheet2!$A$28:$A$40,1,FALSE))=TRUE,"ERROR","OK")) -> 
Q126: =IF(A126="","",IF(ISERROR(VLOOKUP(CONCATENATE(HDV!B126,"_",HDV!C126),Sheet2!$A$28:$A$40,1,FALSE))=TRUE,"ERROR","OK")) -> 
Q127: =IF(A127="","",IF(ISERROR(VLOOKUP(CONCATENATE(HDV!B127,"_",HDV!C127),Sheet2!$A$28:$A$40,1,FALSE))=TRUE,"ERROR","OK")) -> 
Q128: =IF(A128="","",IF(ISERROR(VLOOKUP(CONCATENATE(HDV!B128,"_",HDV!C128),Sheet2!$A$28:$A$40,1,FALSE))=TRUE,"ERROR","OK")) -> 
Q129: =IF(A129="","",IF(ISERROR(VLOOKUP(CONCATENATE(HDV!B129,"_",HDV!C129),Sheet2!$A$28:$A$40,1,FALSE))=TRUE,"ERROR","OK")) -> 
Q130: =IF(A130="","",IF(ISERROR(VLOOKUP(CONCATENATE(HDV!B130,"_",HDV!C130),Sheet2!$A$28:$A$40,1,FALSE))=TRUE,"ERROR","OK")) -> 
Q131: =IF(A131="","",IF(ISERROR(VLOOKUP(CONCATENATE(HDV!B131,"_",HDV!C131),Sheet2!$A$28:$A$40,1,FALSE))=TRUE,"ERROR","OK")) -> 
Q132: =IF(A132="","",IF(ISERROR(VLOOKUP(CONCATENATE(HDV!B132,"_",HDV!C132),Sheet2!$A$28:$A$40,1,FALSE))=TRUE,"ERROR","OK")) -> 
Q133: =IF(A133="","",IF(ISERROR(VLOOKUP(CONCATENATE(HDV!B133,"_",HDV!C133),Sheet2!$A$28:$A$40,1,FALSE))=TRUE,"ERROR","OK")) -> 
Q134: =IF(A134="","",IF(ISERROR(VLOOKUP(CONCATENATE(HDV!B134,"_",HDV!C134),Sheet2!$A$28:$A$40,1,FALSE))=TRUE,"ERROR","OK")) -> 
Q135: =IF(A135="","",IF(ISERROR(VLOOKUP(CONCATENATE(HDV!B135,"_",HDV!C135),Sheet2!$A$28:$A$40,1,FALSE))=TRUE,"ERROR","OK")) -> 
Q136: =IF(A136="","",IF(ISERROR(VLOOKUP(CONCATENATE(HDV!B136,"_",HDV!C136),Sheet2!$A$28:$A$40,1,FALSE))=TRUE,"ERROR","OK")) -> 
Q137: =IF(A137="","",IF(ISERROR(VLOOKUP(CONCATENATE(HDV!B137,"_",HDV!C137),Sheet2!$A$28:$A$40,1,FALSE))=TRUE,"ERROR","OK")) -> 
Q138: =IF(A138="","",IF(ISERROR(VLOOKUP(CONCATENATE(HDV!B138,"_",HDV!C138),Sheet2!$A$28:$A$40,1,FALSE))=TRUE,"ERROR","OK")) -> 
Q139: =IF(A139="","",IF(ISERROR(VLOOKUP(CONCATENATE(HDV!B139,"_",HDV!C139),Sheet2!$A$28:$A$40,1,FALSE))=TRUE,"ERROR","OK")) -> 
Q140: =IF(A140="","",IF(ISERROR(VLOOKUP(CONCATENATE(HDV!B140,"_",HDV!C140),Sheet2!$A$28:$A$40,1,FALSE))=TRUE,"ERROR","OK")) -> 
Q141: =IF(A141="","",IF(ISERROR(VLOOKUP(CONCATENATE(HDV!B141,"_",HDV!C141),Sheet2!$A$28:$A$40,1,FALSE))=TRUE,"ERROR","OK")) -> 
Q142: =IF(A142="","",IF(ISERROR(VLOOKUP(CONCATENATE(HDV!B142,"_",HDV!C142),Sheet2!$A$28:$A$40,1,FALSE))=TRUE,"ERROR","OK")) -> 
Q143: =IF(A143="","",IF(ISERROR(VLOOKUP(CONCATENATE(HDV!B143,"_",HDV!C143),Sheet2!$A$28:$A$40,1,FALSE))=TRUE,"ERROR","OK")) -> 
N144: =IF(A144="","",C144/1000) ->  | O144: =IF(AND(A144="",F144=""),"", IF(AND(A144="",F144<>""), "FIX TEST GRP", IF(B144="","FIX CLASS",IF(C144="","FIX BIN",IF(F144="","FIX PROD'N",F144*N144))))) ->  | P144: =IF(A144="","",IF(C144="","FIX BIN", IF(D144="","FIX U/L MILES", IFERROR(O144/(IF(B144="2b",$G$10,$M$10)),"")))) ->  | Q144: =IF(A144="","",IF(ISERROR(VLOOKUP(CONCATENATE(HDV!B144,"_",HDV!C144),Sheet2!$A$28:$A$40,1,FALSE))=TRUE,"ERROR","OK")) ->  | R144: =IF(A144="","", IF(AND($C$10>2021, C144=340),"ERROR",IF(AND($C$10>2021, C144=395),"ERROR",IF(AND($C$10>2021, C144>400),"ERROR", "OK")))) ->  | S144: =IF(B144="","", IF(AND($C$10>2021, D144<150),"ERROR",IF(AND(D144<150, N144=395),"ERROR",IF(AND(D144<150, N144=340),"ERROR",IF(AND(D144<150, N144>400),"ERROR", "OK"))))) -> 
Q145: =IF(A145="","",IF(ISERROR(VLOOKUP(CONCATENATE(HDV!B145,"_",HDV!C145),Sheet2!$A$28:$A$40,1,FALSE))=TRUE,"ERROR","OK")) -> 
Q146: =IF(A146="","",IF(ISERROR(VLOOKUP(CONCATENATE(HDV!B146,"_",HDV!C146),Sheet2!$A$28:$A$40,1,FALSE))=TRUE,"ERROR","OK")) -> 
Q147: =IF(A147="","",IF(ISERROR(VLOOKUP(CONCATENATE(HDV!B147,"_",HDV!C147),Sheet2!$A$28:$A$40,1,FALSE))=TRUE,"ERROR","OK")) -> 
Q148: =IF(A148="","",IF(ISERROR(VLOOKUP(CONCATENATE(HDV!B148,"_",HDV!C148),Sheet2!$A$28:$A$40,1,FALSE))=TRUE,"ERROR","OK")) -> 
Q149: =IF(A149="","",IF(ISERROR(VLOOKUP(CONCATENATE(HDV!B149,"_",HDV!C149),Sheet2!$A$28:$A$40,1,FALSE))=TRUE,"ERROR","OK")) -> 
Q150: =IF(A150="","",IF(ISERROR(VLOOKUP(CONCATENATE(HDV!B150,"_",HDV!C150),Sheet2!$A$28:$A$40,1,FALSE))=TRUE,"ERROR","OK")) -> 
Q151: =IF(A151="","",IF(ISERROR(VLOOKUP(CONCATENATE(HDV!B151,"_",HDV!C151),Sheet2!$A$28:$A$40,1,FALSE))=TRUE,"ERROR","OK")) -> 
Q152: =IF(A152="","",IF(ISERROR(VLOOKUP(CONCATENATE(HDV!B152,"_",HDV!C152),Sheet2!$A$28:$A$40,1,FALSE))=TRUE,"ERROR","OK")) -> 
Q153: =IF(A153="","",IF(ISERROR(VLOOKUP(CONCATENATE(HDV!B153,"_",HDV!C153),Sheet2!$A$28:$A$40,1,FALSE))=TRUE,"ERROR","OK")) -> 
Q154: =IF(A154="","",IF(ISERROR(VLOOKUP(CONCATENATE(HDV!B154,"_",HDV!C154),Sheet2!$A$28:$A$40,1,FALSE))=TRUE,"ERROR","OK")) -> 
Q155: =IF(A155="","",IF(ISERROR(VLOOKUP(CONCATENATE(HDV!B155,"_",HDV!C155),Sheet2!$A$28:$A$40,1,FALSE))=TRUE,"ERROR","OK")) -> 
Q156: =IF(A156="","",IF(ISERROR(VLOOKUP(CONCATENATE(HDV!B156,"_",HDV!C156),Sheet2!$A$28:$A$40,1,FALSE))=TRUE,"ERROR","OK")) -> 
Q157: =IF(A157="","",IF(ISERROR(VLOOKUP(CONCATENATE(HDV!B157,"_",HDV!C157),Sheet2!$A$28:$A$40,1,FALSE))=TRUE,"ERROR","OK")) -> 
Q158: =IF(A158="","",IF(ISERROR(VLOOKUP(CONCATENATE(HDV!B158,"_",HDV!C158),Sheet2!$A$28:$A$40,1,FALSE))=TRUE,"ERROR","OK")) -> 
Q159: =IF(A159="","",IF(ISERROR(VLOOKUP(CONCATENATE(HDV!B159,"_",HDV!C159),Sheet2!$A$28:$A$40,1,FALSE))=TRUE,"ERROR","OK")) -> 
Q160: =IF(A160="","",IF(ISERROR(VLOOKUP(CONCATENATE(HDV!B160,"_",HDV!C160),Sheet2!$A$28:$A$40,1,FALSE))=TRUE,"ERROR","OK")) -> 
Q161: =IF(A161="","",IF(ISERROR(VLOOKUP(CONCATENATE(HDV!B161,"_",HDV!C161),Sheet2!$A$28:$A$40,1,FALSE))=TRUE,"ERROR","OK")) -> 
Q162: =IF(A162="","",IF(ISERROR(VLOOKUP(CONCATENATE(HDV!B162,"_",HDV!C162),Sheet2!$A$28:$A$40,1,FALSE))=TRUE,"ERROR","OK")) -> 
Q163: =IF(A163="","",IF(ISERROR(VLOOKUP(CONCATENATE(HDV!B163,"_",HDV!C163),Sheet2!$A$28:$A$40,1,FALSE))=TRUE,"ERROR","OK")) -> 
Q164: =IF(A164="","",IF(ISERROR(VLOOKUP(CONCATENATE(HDV!B164,"_",HDV!C164),Sheet2!$A$28:$A$40,1,FALSE))=TRUE,"ERROR","OK")) -> 
Q165: =IF(A165="","",IF(ISERROR(VLOOKUP(CONCATENATE(HDV!B165,"_",HDV!C165),Sheet2!$A$28:$A$40,1,FALSE))=TRUE,"ERROR","OK")) -> 
Q166: =IF(A166="","",IF(ISERROR(VLOOKUP(CONCATENATE(HDV!B166,"_",HDV!C166),Sheet2!$A$28:$A$40,1,FALSE))=TRUE,"ERROR","OK")) -> 
Q167: =IF(A167="","",IF(ISERROR(VLOOKUP(CONCATENATE(HDV!B167,"_",HDV!C167),Sheet2!$A$28:$A$40,1,FALSE))=TRUE,"ERROR","OK")) -> 
Q168: =IF(A168="","",IF(ISERROR(VLOOKUP(CONCATENATE(HDV!B168,"_",HDV!C168),Sheet2!$A$28:$A$40,1,FALSE))=TRUE,"ERROR","OK")) -> 
Q169: =IF(A169="","",IF(ISERROR(VLOOKUP(CONCATENATE(HDV!B169,"_",HDV!C169),Sheet2!$A$28:$A$40,1,FALSE))=TRUE,"ERROR","OK")) -> 
Q170: =IF(A170="","",IF(ISERROR(VLOOKUP(CONCATENATE(HDV!B170,"_",HDV!C170),Sheet2!$A$28:$A$40,1,FALSE))=TRUE,"ERROR","OK")) -> 
Q171: =IF(A171="","",IF(ISERROR(VLOOKUP(CONCATENATE(HDV!B171,"_",HDV!C171),Sheet2!$A$28:$A$40,1,FALSE))=TRUE,"ERROR","OK")) -> 
Q172: =IF(A172="","",IF(ISERROR(VLOOKUP(CONCATENATE(HDV!B172,"_",HDV!C172),Sheet2!$A$28:$A$40,1,FALSE))=TRUE,"ERROR","OK")) -> 
Q173: =IF(A173="","",IF(ISERROR(VLOOKUP(CONCATENATE(HDV!B173,"_",HDV!C173),Sheet2!$A$28:$A$40,1,FALSE))=TRUE,"ERROR","OK")) -> 
Q174: =IF(A174="","",IF(ISERROR(VLOOKUP(CONCATENATE(HDV!B174,"_",HDV!C174),Sheet2!$A$28:$A$40,1,FALSE))=TRUE,"ERROR","OK")) -> 
Q175: =IF(A175="","",IF(ISERROR(VLOOKUP(CONCATENATE(HDV!B175,"_",HDV!C175),Sheet2!$A$28:$A$40,1,FALSE))=TRUE,"ERROR","OK")) -> 
Q176: =IF(A176="","",IF(ISERROR(VLOOKUP(CONCATENATE(HDV!B176,"_",HDV!C176),Sheet2!$A$28:$A$40,1,FALSE))=TRUE,"ERROR","OK")) -> 
Q177: =IF(A177="","",IF(ISERROR(VLOOKUP(CONCATENATE(HDV!B177,"_",HDV!C177),Sheet2!$A$28:$A$40,1,FALSE))=TRUE,"ERROR","OK")) -> 
Q178: =IF(A178="","",IF(ISERROR(VLOOKUP(CONCATENATE(HDV!B178,"_",HDV!C178),Sheet2!$A$28:$A$40,1,FALSE))=TRUE,"ERROR","OK")) -> 
Q179: =IF(A179="","",IF(ISERROR(VLOOKUP(CONCATENATE(HDV!B179,"_",HDV!C179),Sheet2!$A$28:$A$40,1,FALSE))=TRUE,"ERROR","OK")) -> 
Q180: =IF(A180="","",IF(ISERROR(VLOOKUP(CONCATENATE(HDV!B180,"_",HDV!C180),Sheet2!$A$28:$A$40,1,FALSE))=TRUE,"ERROR","OK")) -> 
Q181: =IF(A181="","",IF(ISERROR(VLOOKUP(CONCATENATE(HDV!B181,"_",HDV!C181),Sheet2!$A$28:$A$40,1,FALSE))=TRUE,"ERROR","OK")) -> 
Q182: =IF(A182="","",IF(ISERROR(VLOOKUP(CONCATENATE(HDV!B182,"_",HDV!C182),Sheet2!$A$28:$A$40,1,FALSE))=TRUE,"ERROR","OK")) -> 
Q183: =IF(A183="","",IF(ISERROR(VLOOKUP(CONCATENATE(HDV!B183,"_",HDV!C183),Sheet2!$A$28:$A$40,1,FALSE))=TRUE,"ERROR","OK")) -> 
Q184: =IF(A184="","",IF(ISERROR(VLOOKUP(CONCATENATE(HDV!B184,"_",HDV!C184),Sheet2!$A$28:$A$40,1,FALSE))=TRUE,"ERROR","OK")) -> 
Q185: =IF(A185="","",IF(ISERROR(VLOOKUP(CONCATENATE(HDV!B185,"_",HDV!C185),Sheet2!$A$28:$A$40,1,FALSE))=TRUE,"ERROR","OK")) -> 
Q186: =IF(A186="","",IF(ISERROR(VLOOKUP(CONCATENATE(HDV!B186,"_",HDV!C186),Sheet2!$A$28:$A$40,1,FALSE))=TRUE,"ERROR","OK")) -> 
Q187: =IF(A187="","",IF(ISERROR(VLOOKUP(CONCATENATE(HDV!B187,"_",HDV!C187),Sheet2!$A$28:$A$40,1,FALSE))=TRUE,"ERROR","OK")) -> 
Q188: =IF(A188="","",IF(ISERROR(VLOOKUP(CONCATENATE(HDV!B188,"_",HDV!C188),Sheet2!$A$28:$A$40,1,FALSE))=TRUE,"ERROR","OK")) -> 
Q189: =IF(A189="","",IF(ISERROR(VLOOKUP(CONCATENATE(HDV!B189,"_",HDV!C189),Sheet2!$A$28:$A$40,1,FALSE))=TRUE,"ERROR","OK")) -> 
Q190: =IF(A190="","",IF(ISERROR(VLOOKUP(CONCATENATE(HDV!B190,"_",HDV!C190),Sheet2!$A$28:$A$40,1,FALSE))=TRUE,"ERROR","OK")) -> 
Q191: =IF(A191="","",IF(ISERROR(VLOOKUP(CONCATENATE(HDV!B191,"_",HDV!C191),Sheet2!$A$28:$A$40,1,FALSE))=TRUE,"ERROR","OK")) -> 
Q192: =IF(A192="","",IF(ISERROR(VLOOKUP(CONCATENATE(HDV!B192,"_",HDV!C192),Sheet2!$A$28:$A$40,1,FALSE))=TRUE,"ERROR","OK")) -> 
Q193: =IF(A193="","",IF(ISERROR(VLOOKUP(CONCATENATE(HDV!B193,"_",HDV!C193),Sheet2!$A$28:$A$40,1,FALSE))=TRUE,"ERROR","OK")) -> 
Q194: =IF(A194="","",IF(ISERROR(VLOOKUP(CONCATENATE(HDV!B194,"_",HDV!C194),Sheet2!$A$28:$A$40,1,FALSE))=TRUE,"ERROR","OK")) -> 
Q195: =IF(A195="","",IF(ISERROR(VLOOKUP(CONCATENATE(HDV!B195,"_",HDV!C195),Sheet2!$A$28:$A$40,1,FALSE))=TRUE,"ERROR","OK")) -> 
Q196: =IF(A196="","",IF(ISERROR(VLOOKUP(CONCATENATE(HDV!B196,"_",HDV!C196),Sheet2!$A$28:$A$40,1,FALSE))=TRUE,"ERROR","OK")) -> 
Q197: =IF(A197="","",IF(ISERROR(VLOOKUP(CONCATENATE(HDV!B197,"_",HDV!C197),Sheet2!$A$28:$A$40,1,FALSE))=TRUE,"ERROR","OK")) -> 
Q198: =IF(A198="","",IF(ISERROR(VLOOKUP(CONCATENATE(HDV!B198,"_",HDV!C198),Sheet2!$A$28:$A$40,1,FALSE))=TRUE,"ERROR","OK")) -> 
Q199: =IF(A199="","",IF(ISERROR(VLOOKUP(CONCATENATE(HDV!B199,"_",HDV!C199),Sheet2!$A$28:$A$40,1,FALSE))=TRUE,"ERROR","OK")) -> 
Q200: =IF(A200="","",IF(ISERROR(VLOOKUP(CONCATENATE(HDV!B200,"_",HDV!C200),Sheet2!$A$28:$A$40,1,FALSE))=TRUE,"ERROR","OK")) -> 
Q201: =IF(A201="","",IF(ISERROR(VLOOKUP(CONCATENATE(HDV!B201,"_",HDV!C201),Sheet2!$A$28:$A$40,1,FALSE))=TRUE,"ERROR","OK")) -> 
Q202: =IF(A202="","",IF(ISERROR(VLOOKUP(CONCATENATE(HDV!B202,"_",HDV!C202),Sheet2!$A$28:$A$40,1,FALSE))=TRUE,"ERROR","OK")) -> 
Q203: =IF(A203="","",IF(ISERROR(VLOOKUP(CONCATENATE(HDV!B203,"_",HDV!C203),Sheet2!$A$28:$A$40,1,FALSE))=TRUE,"ERROR","OK")) -> 
Q204: =IF(A204="","",IF(ISERROR(VLOOKUP(CONCATENATE(HDV!B204,"_",HDV!C204),Sheet2!$A$28:$A$40,1,FALSE))=TRUE,"ERROR","OK")) -> 
... 279 more rows

Sheet HDV FTP NMOG+NOX AB&T MYSummary
A1: Example Template - HDV Tier 3 Class 2b/3 FTP Fleet Average (NMOG + NOx) Credits - AB&T Model Year Summary Table
A2: Manufacturer: _______________________ | K2: Date:_______________
A4: Purpose and Scope of this Guidance Document
A5: This document was prepared by EPA's Office of Transportation and Air Quality (OTAQ). It is one of several intended to aid regulated parties in reporting Tier 3 and Cold NMHC Averaging, Banking and Trading (AB&T) information and calculating AB&T fleet average credits for light-duty vehicles and certain heavy-duty class 2b and 3 vehicles, ref. 40 CFR 86.1862-04(c). It contains EPA's recommended format for manufacturers to report to EPA their end-of-year Tier 3 AB&T calculations, credits and other information with respect to the implementation of the AB&T provisions of the EPA Tier 3 final rule (79 FR 23414, April 28, 2014) as amended (80 FR 9078, February 19, 2015; 80 FR 26463, May 8, 2015); ref. 40 CFR Parts 85, 86, 600, 1065, 1066. Use of this document is purely optional. This document does not in any way alter or waive the requirements in EPA regulations. Although the calculations and formulas provided in this document are intended to assist manufacturers in the implementation of EPA regulations, this document does not establish or change the legal rights or obligations of manufacturers or others in complying with EPA regulations, including 40 CFR 86.1862-04(c). If an error or other discrepancy is found in this document, including the calculation formulas, please contact your EPA certification team member or Dave Good at (734) 214-4450 or by email at good.david@epa.gov. The regulations take precedence.
A7: Select Model Year: | D7: 2019 | K7: OMB Control Number 2060-0104
A8: Select Phase-in Approach: | D8: Primary--(Used for 2016-2021MYs) | K8: Expires 3-31-2020
A9: Applicable Phase-in Regulations: | D9: =IF(D8="Primary--(Used for 2016-2021MYs)","40 CFR 86.1816-18(b)(7) and/or (b)(11)",IF(D8="Alternative---(Used for 2019-2021MYs)","40 CFR 86.1816-18(b)(8)","ERROR")) -> 40 CFR 86.1816-18(b)(7) and/or (b)(11)
B10: Small Volume? | D10: No
D12: Fleet Average Compliance Level | G12: G. Credit (Debit) [Calc from D,E,F] | H12: Date Credits/ Debits were earned | I12: Date Credits will expire | J12: Last Date When Credits can be Traded | K12: Comments
A13: A. Date of Transaction | B13: B. Model Year | C13: C. Category | D13: D. Applicable FTP Standards | E13: E. Mfr FTP Compliance Level | F13: F. Production Volume
D14: gram/mi | E14: gram/mi | F14: units | G14: gram/mi
A16: 2016 Early Credits:
A17: 2017-05-01 | B17: 2016 | C17: HD Class 2b | D17: =IF(AND(B17=2016,C17="HD Class 2b"),"0.333", IF(AND(B17=2017,C17="HD Class 2b"),"0.310", IF(AND(B17=2018,C17="HD Class 2b"),"0.278", IF(AND(B17=2019,C17="HD Class 2b"),"0.253", IF(AND(B17=2020,C17="HD Class 2b"),"0.228", IF(AND(B17=2021,C17="HD Class 2b"),"0.203", IF(AND(B17>2021,C17="HD Class 2b"),"0.178",IF(AND(B17=2016,C17="HD Class 3"),"0.548", IF(AND(B17=2017,C17="HD Class 3"),"0.508", IF(AND(B17=2018,C17="HD Class 3"),"0.451", IF(AND(B17=2019,C17="HD Class 3"),"0.400", IF(AND(B17=2020,C17="HD Class 3"),"0.349", IF(AND(B17=2021,C17="HD Class 3"),"0.298", IF(AND(B17>2021,C17="HD Class 3"),"0.247", ERROR)))))))))))))) -> 0.333 | E17: 0.302 | F17: 10002 | G17: =IF($D$8="Alternative---(Used for 2019-2021MYs)", "Not Allowed", IF(E17= "", "ERROR", astm((astm(D17,3)-(astm(E17,3)))*F17,0))) -> 310 | H17: 2016-12-31 | I17: =DATE(YEAR(H17)+5,MONTH(H17),DAY(H17)) -> 2021-12-31 | J17: =DATE(YEAR(H17)+5,MONTH(H17),DAY(H17)) -> 2021-12-31 | K17: 2016 Early Tier 3 HD Class 2b FTP Credits earned per 40 CFR 86.1816-18(b)(11); see other spreadsheet.
A18: 2017-05-01 | B18: 2016 | C18: HD Class 3 | D18: =IF(AND(B18=2016,C18="HD Class 2b"),"0.333", IF(AND(B18=2017,C18="HD Class 2b"),"0.310", IF(AND(B18=2018,C18="HD Class 2b"),"0.278", IF(AND(B18=2019,C18="HD Class 2b"),"0.253", IF(AND(B18=2020,C18="HD Class 2b"),"0.228", IF(AND(B18=2021,C18="HD Class 2b"),"0.203", IF(AND(B18>2021,C18="HD Class 2b"),"0.178",IF(AND(B18=2016,C18="HD Class 3"),"0.548", IF(AND(B18=2017,C18="HD Class 3"),"0.508", IF(AND(B18=2018,C18="HD Class 3"),"0.451", IF(AND(B18=2019,C18="HD Class 3"),"0.400", IF(AND(B18=2020,C18="HD Class 3"),"0.349", IF(AND(B18=2021,C18="HD Class 3"),"0.298", IF(AND(B18>2021,C18="HD Class 3"),"0.247", ERROR)))))))))))))) -> 0.548 | E18: 0.421 | F18: 1000 | G18: =IF($D$8="Alternative---(Used for 2019-2021MYs)", "Not Allowed", IF(E18= "", "ERROR", astm((astm(D18,3)-(astm(E18,3)))*F18,0))) -> 127 | H18: 2016-12-31 | I18: =DATE(YEAR(H18)+5,MONTH(H18),DAY(H18)) -> 2021-12-31 | J18: =DATE(YEAR(H18)+5,MONTH(H18),DAY(H18)) -> 2021-12-31 | K18: 2016 Early Tier 3 HD Class 3 FTP Credits earned per 40 CFR 86.1816-18(b)(11); see other spreadsheet.
A19: 4/1/2019 | B19: 2016 | C19: Transfer | D19: - | E19: - | F19: - | G19: -437 | H19: 2016-12-31 | I19: - | J19: - | K19: Transferred 437 Credits from 2016 model year to 2018 model year (earned on 12/31/2016).
D20: Total 2016 Early Credits Remaining: | G20: =SUM(G17:G19) -> 0
A21: 2017 Early Credits:
A22: 2018-05-01 | B22: 2017 | C22: HD Class 2b | D22: =IF(AND(B22=2016,C22="HD Class 2b"),"0.333", IF(AND(B22=2017,C22="HD Class 2b"),"0.310", IF(AND(B22=2018,C22="HD Class 2b"),"0.278", IF(AND(B22=2019,C22="HD Class 2b"),"0.253", IF(AND(B22=2020,C22="HD Class 2b"),"0.228", IF(AND(B22=2021,C22="HD Class 2b"),"0.203", IF(AND(B22>2021,C22="HD Class 2b"),"0.178",IF(AND(B22=2016,C22="HD Class 3"),"0.548", IF(AND(B22=2017,C22="HD Class 3"),"0.508", IF(AND(B22=2018,C22="HD Class 3"),"0.451", IF(AND(B22=2019,C22="HD Class 3"),"0.400", IF(AND(B22=2020,C22="HD Class 3"),"0.349", IF(AND(B22=2021,C22="HD Class 3"),"0.298", IF(AND(B22>2021,C22="HD Class 3"),"0.247", ERROR)))))))))))))) -> 0.310 | E22: 0.298 | F22: 21784 | G22: =IF($D$8="Alternative---(Used for 2019-2021MYs)", "Not Allowed", IF(E22= "", "ERROR", astm((astm(D22,3)-(astm(E22,3)))*F22,0))) -> 261 | H22: 2017-12-31 | I22: =DATE(YEAR(H22)+5,MONTH(H22),DAY(H22)) -> 2022-12-31 | J22: =DATE(YEAR(H22)+5,MONTH(H22),DAY(H22)) -> 2022-12-31 | K22: 2017 Early Tier 3 HD Class 2b FTP Credits earned per 40 CFR 86.1816-18(b)(11); see other spreadsheet.
A23: 2018-05-01 | B23: 2017 | C23: HD Class 3 | D23: =IF(AND(B23=2016,C23="HD Class 2b"),"0.333", IF(AND(B23=2017,C23="HD Class 2b"),"0.310", IF(AND(B23=2018,C23="HD Class 2b"),"0.278", IF(AND(B23=2019,C23="HD Class 2b"),"0.253", IF(AND(B23=2020,C23="HD Class 2b"),"0.228", IF(AND(B23=2021,C23="HD Class 2b"),"0.203", IF(AND(B23>2021,C23="HD Class 2b"),"0.178",IF(AND(B23=2016,C23="HD Class 3"),"0.548", IF(AND(B23=2017,C23="HD Class 3"),"0.508", IF(AND(B23=2018,C23="HD Class 3"),"0.451", IF(AND(B23=2019,C23="HD Class 3"),"0.400", IF(AND(B23=2020,C23="HD Class 3"),"0.349", IF(AND(B23=2021,C23="HD Class 3"),"0.298", IF(AND(B23>2021,C23="HD Class 3"),"0.247", ERROR)))))))))))))) -> 0.508 | E23: 0.501 | F23: 1000 | G23: =IF($D$8="Alternative---(Used for 2019-2021MYs)", "Not Allowed", IF(E23= "", "ERROR", astm((astm(D23,3)-(astm(E23,3)))*F23,0))) -> 7 | H23: 2017-12-31 | I23: =DATE(YEAR(H23)+5,MONTH(H23),DAY(H23)) -> 2022-12-31 | J23: =DATE(YEAR(H23)+5,MONTH(H23),DAY(H23)) -> 2022-12-31 | K23: 2017 Early Tier 3 HD Class 3 FTP Credits earned per 40 CFR 86.1816-18(b)(11); see other spreadsheet.
A24: 4/1/2019 | B24: 2017 | C24: Transfer | D24: - | E24: - | F24: - | G24: -268 | H24: 2017-12-31 | K24: Transferred 268 Credits from 2017 model year to 2018 model year (earned on 12/31/2017).
D25: Total 2017 Early Credits Remaining: | G25: =SUM(G22:G24) -> 0
C27: Total 2016-2017 Early Credits Remaining: | G27: =SUM(G20+G25) -> 0
A28: 2018 Credits:
A29: 2019-05-01 | B29: 2018 | C29: HD Class 2b | D29: =IF(AND(B29=2016,C29="HD Class 2b"),"0.333", IF(AND(B29=2017,C29="HD Class 2b"),"0.310", IF(AND(B29=2018,C29="HD Class 2b"),"0.278", IF(AND(B29=2019,C29="HD Class 2b"),"0.253", IF(AND(B29=2020,C29="HD Class 2b"),"0.228", IF(AND(B29=2021,C29="HD Class 2b"),"0.203", IF(AND(B29>2021,C29="HD Class 2b"),"0.178",IF(AND(B29=2016,C29="HD Class 3"),"0.548", IF(AND(B29=2017,C29="HD Class 3"),"0.508", IF(AND(B29=2018,C29="HD Class 3"),"0.451", IF(AND(B29=2019,C29="HD Class 3"),"0.400", IF(AND(B29=2020,C29="HD Class 3"),"0.349", IF(AND(B29=2021,C29="HD Class 3"),"0.298", IF(AND(B29>2021,C29="HD Class 3"),"0.247", ERROR)))))))))))))) -> 0.278 | E29: 0.298 | F29: 58471 | G29: =IF($D$8="Alternative---(Used for 2019-2021MYs)", "Not Allowed", IF(E29= "", "ERROR", astm((astm(D29,3)-(astm(E29,3)))*F29,0))) -> -1169 | H29: 2018-12-31 | I29: =DATE(YEAR(H29)+5,MONTH(H29),DAY(H29)) -> 2023-12-31 | J29: =DATE(YEAR(H29)+5,MONTH(H29),DAY(H29)) -> 2023-12-31 | K29: 2018 Tier 3 HD Class 2b FTP Credits earned using Primary phase-in approach; see other spreadsheet.
A30: 2019-05-01 | B30: 2018 | C30: HD Class 3 | D30: =IF(AND(B30=2016,C30="HD Class 2b"),"0.333", IF(AND(B30=2017,C30="HD Class 2b"),"0.310", IF(AND(B30=2018,C30="HD Class 2b"),"0.278", IF(AND(B30=2019,C30="HD Class 2b"),"0.253", IF(AND(B30=2020,C30="HD Class 2b"),"0.228", IF(AND(B30=2021,C30="HD Class 2b"),"0.203", IF(AND(B30>2021,C30="HD Class 2b"),"0.178",IF(AND(B30=2016,C30="HD Class 3"),"0.548", IF(AND(B30=2017,C30="HD Class 3"),"0.508", IF(AND(B30=2018,C30="HD Class 3"),"0.451", IF(AND(B30=2019,C30="HD Class 3"),"0.400", IF(AND(B30=2020,C30="HD Class 3"),"0.349", IF(AND(B30=2021,C30="HD Class 3"),"0.298", IF(AND(B30>2021,C30="HD Class 3"),"0.247", ERROR)))))))))))))) -> 0.451 | E30: 0.46 | F30: 10000 | G30: =IF($D$8="Alternative---(Used for 2019-2021MYs)", "Not Allowed", IF(E30= "", "ERROR", astm((astm(D30,3)-(astm(E30,3)))*F30,0))) -> -90 | H30: 2018-12-31 | I30: =DATE(YEAR(H30)+5,MONTH(H30),DAY(H30)) -> 2023-12-31 | J30: =DATE(YEAR(H30)+5,MONTH(H30),DAY(H30)) -> 2023-12-31 | K30: 2018 Tier 3 HD Class 3 FTP Credits earnedusing Primary phase-in approach; ; see other spreadsheet.
A31: 4/1/2019 | B31: 2016 | C31: Transfer | D31: - | E31: - | F31: - | G31: 437 | H31: 2016-12-31 | I31: - | J31: - | K31: Transferred 437 Credits from 2016 model year to 2018 model year (earned on 12/31/2016).
A32: 4/1/2019 | B32: 2017 | C32: Transfer | D32: - | E32: - | F32: - | G32: 268 | H32: 2017-12-31 | K32: Transferred 268 Credits from 2017 model year to 2018 model year (earned on 12/31/2017).
A33: 2019-01-20 | B33: 2018 | C33: Transfer | D33: - | E33: - | F33: - | G33: 500 | H33: 2016-12-31 | I33: =DATE(YEAR(H33)+5,MONTH(H33),DAY(H33)) -> 2021-12-31 | J33: =DATE(YEAR(H33)+5,MONTH(H33),DAY(H33)) -> 2021-12-31 | K33: Purchased 500 HDV FTP credits from Manufacturer A (earned on 12/31/2016)
D34: Total 2018 Credits Remaining: | G34: =SUM(G29:G33) -> -54
C36: Total 2016-2018 Credits Remaining: | G36: =SUM(G27+G34) -> -54
A37: 2019 Credits:
A38: 2020-05-01 | B38: 2019 | C38: HD Class 2b | D38: =IF(AND(B38=2016,C38="HD Class 2b"),"0.333", IF(AND(B38=2017,C38="HD Class 2b"),"0.310", IF(AND(B38=2018,C38="HD Class 2b"),"0.278", IF(AND(B38=2019,C38="HD Class 2b"),"0.253", IF(AND(B38=2020,C38="HD Class 2b"),"0.228", IF(AND(B38=2021,C38="HD Class 2b"),"0.203", IF(AND(B38>2021,C38="HD Class 2b"),"0.178",IF(AND(B38=2016,C38="HD Class 3"),"0.548", IF(AND(B38=2017,C38="HD Class 3"),"0.508", IF(AND(B38=2018,C38="HD Class 3"),"0.451", IF(AND(B38=2019,C38="HD Class 3"),"0.400", IF(AND(B38=2020,C38="HD Class 3"),"0.349", IF(AND(B38=2021,C38="HD Class 3"),"0.298", IF(AND(B38>2021,C38="HD Class 3"),"0.247", ERROR)))))))))))))) -> 0.253 | E38: =HDV!H10 -> 0.224 | F38: =HDV!G10 -> 193840 | G38: =IF(E38= "", "ERROR", astm((astm(D38,3)-(astm(E38,3)))*F38,0)) -> 5621 | H38: 2019-12-31 | I38: =DATE(YEAR(H38)+5,MONTH(H38),DAY(H38)) -> 2024-12-31 | J38: =DATE(YEAR(H38)+5,MONTH(H38),DAY(H38)) -> 2024-12-31 | K38: 2019 Tier 3 HD Class 2b FTP Credits earned using Primary or Alternative phase-in approach; see other spreadsheet.
A39: 2020-05-01 | B39: 2019 | C39: HD Class 3 | D39: =IF(AND(B39=2016,C39="HD Class 2b"),"0.333", IF(AND(B39=2017,C39="HD Class 2b"),"0.310", IF(AND(B39=2018,C39="HD Class 2b"),"0.278", IF(AND(B39=2019,C39="HD Class 2b"),"0.253", IF(AND(B39=2020,C39="HD Class 2b"),"0.228", IF(AND(B39=2021,C39="HD Class 2b"),"0.203", IF(AND(B39>2021,C39="HD Class 2b"),"0.178",IF(AND(B39=2016,C39="HD Class 3"),"0.548", IF(AND(B39=2017,C39="HD Class 3"),"0.508", IF(AND(B39=2018,C39="HD Class 3"),"0.451", IF(AND(B39=2019,C39="HD Class 3"),"0.400", IF(AND(B39=2020,C39="HD Class 3"),"0.349", IF(AND(B39=2021,C39="HD Class 3"),"0.298", IF(AND(B39>2021,C39="HD Class 3"),"0.247", ERROR)))))))))))))) -> 0.400 | E39: =HDV!N10 -> 0.421 | F39: =HDV!M10 -> 340000 | G39: =IF(E39= "", "ERROR", astm((astm(D39,3)-(astm(E39,3)))*F39,0)) -> -7140 | H39: 2019-12-31 | I39: =DATE(YEAR(H39)+5,MONTH(H39),DAY(H39)) -> 2024-12-31 | J39: =DATE(YEAR(H39)+5,MONTH(H39),DAY(H39)) -> 2024-12-31 | K39: 2019 Tier 3 HD Class 3 FTP Credits earned using Primary or Alternative phase-in approach; see other spreadsheet.
A40: 2020-03-04 | B40: 2019 | C40: Transfer | D40: - | E40: - | F40: - | G40: 1000 | H40: 2019-12-31 | I40: - | J40: - | K40: Purchased 1,000 2019 HDV FTP Credits to Manufacturer B (earned on 12/31/2019).
D41: Total 2019 Credits Remaining: | G41: =SUM(G38:G40) -> -519
C43: Grand Total 2016-2019 Credits Remaining: | G43: =G36+G41 -> -573 | K43: [Note: D.Good revised this formula on 8/24/2018]

Sheet LDV LDT Cold NMHC
A1: Example Template - Light-Duty Vehicle - Cold NMHC Fleet Average Calculations for One Model Year
B2: Manufacturer: ___________________________ | J2: Date: _____________
A4: Purpose and Scope of this Guidance Document
A5: This document was prepared by EPA's Office of Transportation and Air Quality (OTAQ). It is one of several intended to aid regulated parties in reporting Tier 3 and Cold NMHC Averaging, Banking and Trading (AB&T) information and calculating AB&T fleet average credits for light-duty vehicles and certain heavy-duty class 2b and 3 vehicles, ref. 40 CFR 86.1862-04(c). It contains EPA's recommended format for manufacturers to report to EPA their end-of-year Tier 3 AB&T calculations, credits and other information with respect to the implementation of the AB&T provisions of the EPA Tier 3 final rule (79 FR 23414, April 28, 2014) as amended (80 FR 9078, February 19, 2015; 80 FR 26463, May 8, 2015); ref. 40 CFR Parts 85, 86, 600, 1065, 1066. Use of this document is purely optional. This document does not in any way alter or waive the requirements in EPA regulations. Although the calculations and formulas provided in this document are intended to assist manufacturers in the implementation of EPA regulations, this document does not establish or change the legal rights or obligations of manufacturers or others in complying with EPA regulations, including 40 CFR 86.1862-04(c). If an error or other discrepancy is found in this document, including the calculation formulas, please contact your EPA certification team member or Dave Good at (734) 214-4450 or by email at good.david@epa.gov. The regulations take precedence.
A7: Instructions | E7: LDV & LLDT Averaging Set | K7: HLDT & MDPV Averaging Set
A8: Select Model Year: | C8: 2019 | E8: Emission Standard | F8: Total Production (Nationwide) | G8: Fleet average compliance value (rounded to nearest 0.1 gpm) | H8: Fleet average standard | I8: Credits or Debits | K8: Emission Standard | L8: Total Production (Nationwide) | M8: Fleet average compliance value (rounded to nearest 0.1 gpm) | N8: Fleet average standard | O8: Credits or Debits
G9: g/mi | H9: g/mi | I9: g/mi | M9: g/mi | N9: g/mi | O9: g/mi
A10: Enter "X" if all vehicles are certified at or below fleet average standard and you omit credit calculations per 40 CFR 86.18160-17(f): | E10: Cold FTP (NMHC) | F10: =SUMIF(B17:B485,"LDV/LLDT",D17:D485) -> 193840 | G10: =IF(C12="X", "All vehicles certified at or below fleet average standard", astm(SUMIF(B17:B485,"LDV/LLDT",O17:O485),1)) -> 0.2 | H10: 0.3 | I10: =IF(C12="X", 0,astm(((H10-G10)*$F$10),0)) -> 19384 | K10: Cold FTP (NMHC) | L10: =SUMIF(B17:B485,"HLDT/MDPV",D17:D485) -> 340000 | M10: =IF(C13="X", "All vehicles certified at or below fleet average standard",astm(SUMIF(B17:B485,"HLDT/MDPV",O17:O485),1)) -> 0.5 | N10: 0.5 | O10: =IF(C13="X", 0,astm(((N10-M10)*$L$10),0)) -> 0
A11: Averaging Set | C11: Check if applicable:
A12: LDV & LLDT: | M12: OMB Control Number 2060-0104 Expires 3-31-2020
A13: HLDT & MDPV:
A15: Test Group (gasoline fueled test groups only) | B15: Class of Test Group (and Class of Averaging Set) | C15: Cold NMHC Standard or FEL (in increments of 0.1 gpm) | D15: Production (50-States plus U.S. territories) | E15: Comments | N15: Cold NMHC Production x (FEL or Standard) | O15: Cold NMHC Intermediate Calculation [(Prod'n x Cold NMHC FEL) / Total Prod'n]
B16: LDV/LLDT or HLDT/MDPV | C16: g/mi | D16: # of Units | N16: g/mi
A17: A | B17: LDV/LLDT | C17: 0.3 | D17: 39458 | N17: =IF(AND(A17="",D17=""),"", IF(AND(A17="",D17<>""), "FIX TEST GRP", IF(B17="","FIX CLASS",IF(D17="","FIX PROD'N",astm(C17,1)*D17)))) -> 11837.4 | O17: =IF(A17="","", IFERROR(N17/(IF(B17="LDV/LLDT",$F$10,$L$10)),"")) -> 0.06106789104
A18: B | B18: LDV/LLDT | C18: 0.3 | D18: 20382 | N18: 6114.6 | O18: 0.03154457284
A19: C | B19: LDV/LLDT | C19: 0.2 | D19: 45000 | N19: 9000 | O19: 0.0464300454
A20: D | B20: LDV/LLDT | C20: 0.2 | D20: 79000 | N20: 15800 | O20: 0.08151052414
A21: E | B21: LDV/LLDT | C21: 0.4 | D21: 10000 | N21: 4000 | O21: 0.02063557573
A22: F | B22: HLDT/MDPV | C22: 0.5 | D22: 90000 | N22: 45000 | O22: 0.1323529412
A23: G | B23: HLDT/MDPV | C23: 0.5 | D23: 120000 | N23: 60000 | O23: 0.1764705882
A24: H | B24: HLDT/MDPV | C24: 0.7 | D24: 90000 | N24: 63000 | O24: 0.1852941176
A25: I | B25: HLDT/MDPV | C25: 0.3 | D25: 40000 | N25: 12000 | O25: 0.03529411765
C26: .
N81: =IF(AND(A81="",D81=""),"", IF(AND(A81="",D81<>""), "FIX TEST GRP", IF(B81="","FIX CLASS",IF(D81="","FIX PROD'N",astm(C81,1)*D81)))) ->  | O81: =IF(A81="","", IFERROR(N81/(IF(B81="LDV/LLDT",$F$10,$L$10)),"")) -> 
N145: =IF(AND(A145="",D145=""),"", IF(AND(A145="",D145<>""), "FIX TEST GRP", IF(B145="","FIX CLASS",IF(D145="","FIX PROD'N",astm(C145,1)*D145)))) ->  | O145: =IF(A145="","", IFERROR(N145/(IF(B145="LDV/LLDT",$F$10,$L$10)),"")) -> 
N209: =IF(AND(A209="",D209=""),"", IF(AND(A209="",D209<>""), "FIX TEST GRP", IF(B209="","FIX CLASS",IF(D209="","FIX PROD'N",astm(C209,1)*D209)))) ->  | O209: =IF(A209="","", IFERROR(N209/(IF(B209="LDV/LLDT",$F$10,$L$10)),"")) -> 
N273: =IF(AND(A273="",D273=""),"", IF(AND(A273="",D273<>""), "FIX TEST GRP", IF(B273="","FIX CLASS",IF(D273="","FIX PROD'N",astm(C273,1)*D273)))) ->  | O273: =IF(A273="","", IFERROR(N273/(IF(B273="LDV/LLDT",$F$10,$L$10)),"")) -> 
N337: =IF(AND(A337="",D337=""),"", IF(AND(A337="",D337<>""), "FIX TEST GRP", IF(B337="","FIX CLASS",IF(D337="","FIX PROD'N",astm(C337,1)*D337)))) ->  | O337: =IF(A337="","", IFERROR(N337/(IF(B337="LDV/LLDT",$F$10,$L$10)),"")) -> 
N401: =IF(AND(A401="",D401=""),"", IF(AND(A401="",D401<>""), "FIX TEST GRP", IF(B401="","FIX CLASS",IF(D401="","FIX PROD'N",astm(C401,1)*D401)))) ->  | O401: =IF(A401="","", IFERROR(N401/(IF(B401="LDV/LLDT",$F$10,$L$10)),"")) -> 
N465: =IF(AND(A465="",D465=""),"", IF(AND(A465="",D465<>""), "FIX TEST GRP", IF(B465="","FIX CLASS",IF(D465="","FIX PROD'N",astm(C465,1)*D465)))) ->  | O465: =IF(A465="","", IFERROR(N465/(IF(B465="LDV/LLDT",$F$10,$L$10)),"")) -> 

Sheet LDV LDT Cold NMHC AB&T MYSum'ry
A1: Example Template - LDV/LDT/MDPV Fleet Average Cold NMHC Credits - AB&T Model Year Summary Table
A2: Manufacturer: _______________________ | K2: Date:_______________
A4: Purpose and Scope of this Guidance Document
A5: This document was prepared by EPA's Office of Transportation and Air Quality (OTAQ). It is one of several intended to aid regulated parties in reporting Tier 3 and Cold NMHC Averaging, Banking and Trading (AB&T) information and calculating AB&T fleet average credits for light-duty vehicles and certain heavy-duty class 2b and 3 vehicles, ref. 40 CFR 86.1862-04(c). It contains EPA's recommended format for manufacturers to report to EPA their end-of-year Tier 3 AB&T calculations, credits and other information with respect to the implementation of the AB&T provisions of the EPA Tier 3 final rule (79 FR 23414, April 28, 2014) as amended (80 FR 9078, February 19, 2015; 80 FR 26463, May 8, 2015); ref. 40 CFR Parts 85, 86, 600, 1065, 1066. Use of this document is purely optional. This document does not in any way alter or waive the requirements in EPA regulations. Although the calculations and formulas provided in this document are intended to assist manufacturers in the implementation of EPA regulations, this document does not establish or change the legal rights or obligations of manufacturers or others in complying with EPA regulations, including 40 CFR 86.1862-04(c). If an error or other discrepancy is found in this document, including the calculation formulas, please contact your EPA certification team member or Dave Good at (734) 214-4450 or by email at good.david@epa.gov. The regulations take precedence.
A7: Select Model Year: | D7: 2019 | K7: OMB Control Number 2060-0104 Expires 3-31-2020
D9: Fleet Average Compliance Level | G9: G. Credit (Debit) [Calc from D,E,F] | H9: Date Credits/ Debits were earned | I9: Date Credits will expire | J9: Last Date When Credits can be Traded | K9: Comments
A10: A. Date of Transaction | B10: B. Model Year | C10: C. Category | D10: D. Applicable Cold NMHC Fleet Average Standard | E10: E. Fleet Ave Cold NMHC Compliance Level | F10: F. Production Volume (Nationwide)
D11: gram/mi | E11: gram/mi | F11: units | G11: gram/mi
A14: 2010 Credits:
A15: 2011-05-01 | B15: 2010 | C15: LDV/LLDT | D15: =IF(AND(B15<2008,C15="LDV/LLDT"),"Not Allowed", IF(AND(B15<2010,C15="HLDT/MDPV"),"Not Allowed", IF(AND(B15>2007,C15="LDV/LLDT"),"0.3", IF(AND(B15>2009,C15="HLDT/MDPV"),"0.5", ERROR)))) -> 0.3 | E15: 0.3 | F15: 10002 | G15: =IF(D15="","ERROR",IF(E15="","ERROR",astm((astm(D15,1)-(astm(E15,1)))*F15,0))) -> 0 | H15: 2010-12-31 | I15: No expiration date | J15: Not Limited | K15: 2010 LDV/LDT Cold NMHC Credits earned per 40 CFR 86.1864-10; see other spreadsheet.
B16: 2010 | C16: Transfer | D16: - | E16: - | F16: - | H16: - | I16: - | J16: -
D17: Total 2010 Credits Remaining: | G17: =SUM(G15:G16) -> 0
A19: 2011 Credits:
A20: 2012-05-01 | B20: 2011 | C20: LDV/LLDT | D20: =IF(AND(B20<2008,C20="LDV/LLDT"),"Not Allowed", IF(AND(B20<2010,C20="HLDT/MDPV"),"Not Allowed", IF(AND(B20>2007,C20="LDV/LLDT"),"0.3", IF(AND(B20>2009,C20="HLDT/MDPV"),"0.5", ERROR)))) -> 0.3 | E20: 0.3 | F20: 10002 | G20: =IF(D20="","ERROR",IF(E20="","ERROR",astm((astm(D20,1)-(astm(E20,1)))*F20,0))) -> 0 | H20: 2011-12-31 | I20: No expiration date | J20: Not Limited | K20: 2011 LDV/LDT Cold NMHC Credits earned per 40 CFR 86.1864-10; see other spreadsheet.
A21: 2012-05-01 | B21: 2011 | C21: HLDT/MDPV | D21: =IF(AND(B21<2008,C21="LDV/LLDT"),"Not Allowed", IF(AND(B21<2010,C21="HLDT/MDPV"),"Not Allowed", IF(AND(B21>2007,C21="LDV/LLDT"),"0.3", IF(AND(B21>2009,C21="HLDT/MDPV"),"0.5", ERROR)))) -> 0.5 | E21: 0.4 | F21: 1000 | G21: =IF(D21="","ERROR",IF(E21="","ERROR",astm((astm(D21,1)-(astm(E21,1)))*F21,0))) -> 100 | H21: 2012-12-31 | I21: No expiration date | J21: Not Limited | K21: Early 2011 HLDT/MDPV Cold NMHC Credits earned per 40 CFR 86.1811-10(g)(2)(iv) & 86.1864-10(o)(5); see other spreadsheet.
B22: 2011 | C22: Transfer | D22: - | E22: - | F22: - | H22: - | I22: - | J22: -
D23: Total 2011 Credits Remaining: | G23: =SUM(G20:G22) -> 100
A25: 2012 Credits:
A26: 2013-05-01 | B26: 2012 | C26: LDV/LLDT | D26: =IF(AND(B26<2008,C26="LDV/LLDT"),"Not Allowed", IF(AND(B26<2010,C26="HLDT/MDPV"),"Not Allowed", IF(AND(B26>2007,C26="LDV/LLDT"),"0.3", IF(AND(B26>2009,C26="HLDT/MDPV"),"0.5", ERROR)))) -> 0.3 | E26: 0.3 | F26: 10002 | G26: =IF(D26="","ERROR",IF(E26="","ERROR",astm((astm(D26,1)-(astm(E26,1)))*F26,0))) -> 0 | H26: 2012-12-31 | I26: No expiration date | J26: Not Limited | K26: 2012 LDV/LDT Cold NMHC Credits earned per 40 CFR 86.1864-10; see other spreadsheet.
A27: 2013-05-01 | B27: 2012 | C27: HLDT/MDPV | D27: =IF(AND(B27<2008,C27="LDV/LLDT"),"Not Allowed", IF(AND(B27<2010,C27="HLDT/MDPV"),"Not Allowed", IF(AND(B27>2007,C27="LDV/LLDT"),"0.3", IF(AND(B27>2009,C27="HLDT/MDPV"),"0.5", ERROR)))) -> 0.5 | E27: 0.5 | F27: 1000 | G27: =IF(E27= "", "ERROR", astm((astm(D27,1)-(astm(E27,1)))*F27,0)) -> 0 | H27: 2012-12-31 | I27: No expiration date | J27: Not Limited | K27: 2012 HLDT/MDPV Cold NMHC Credits earned per 40 CFR 86.1864-10; see other spreadsheet.
B28: 2012 | C28: Transfer | D28: - | E28: - | F28: - | H28: - | I28: - | J28: -
D29: Total 2012 Credits Remaining: | G29: =SUM(G26:G28) -> 0
A31: 2013 Credits:
A32: 2014-05-01 | B32: 2013 | C32: LDV/LLDT | D32: =IF(AND(B32<2008,C32="LDV/LLDT"),"Not Allowed", IF(AND(B32<2010,C32="HLDT/MDPV"),"Not Allowed", IF(AND(B32>2007,C32="LDV/LLDT"),"0.3", IF(AND(B32>2009,C32="HLDT/MDPV"),"0.5", ERROR)))) -> 0.3 | E32: 0.3 | F32: 10002 | G32: =IF(D32="","ERROR",IF(E32="","ERROR",astm((astm(D32,1)-(astm(E32,1)))*F32,0))) -> 0 | H32: 2013-12-31 | I32: No expiration date | J32: Not Limited | K32: 2013 LDV/LDT Cold NMHC Credits earned per 40 CFR 86.1864-10; see other spreadsheet.
A33: 2014-05-01 | B33: 2013 | C33: HLDT/MDPV | D33: =IF(AND(B33<2008,C33="LDV/LLDT"),"Not Allowed", IF(AND(B33<2010,C33="HLDT/MDPV"),"Not Allowed", IF(AND(B33>2007,C33="LDV/LLDT"),"0.3", IF(AND(B33>2009,C33="HLDT/MDPV"),"0.5", ERROR)))) -> 0.5 | E33: 0.5 | F33: 1000 | G33: =IF(E33= "", "ERROR", astm((astm(D33,1)-(astm(E33,1)))*F33,0)) -> 0 | H33: 2013-12-31 | I33: No expiration date | J33: Not Limited | K33: 2013 HLDT/MDPV Cold NMHC Credits earned per 40 CFR 86.1864-10; see other spreadsheet.
B34: 2013 | C34: Transfer | D34: - | E34: - | F34: - | H34: - | I34: - | J34: -
D35: Total 2013 Credits Remaining: | G35: =SUM(G32:G34) -> 0
A37: 2014 Credits:
A38: 2015-05-01 | B38: 2014 | C38: LDV/LLDT | D38: =IF(AND(B38<2008,C38="LDV/LLDT"),"Not Allowed", IF(AND(B38<2010,C38="HLDT/MDPV"),"Not Allowed", IF(AND(B38>2007,C38="LDV/LLDT"),"0.3", IF(AND(B38>2009,C38="HLDT/MDPV"),"0.5", ERROR)))) -> 0.3 | E38: 0.3 | F38: 10002 | G38: =IF(D38="","ERROR",IF(E38="","ERROR",astm((astm(D38,1)-(astm(E38,1)))*F38,0))) -> 0 | H38: 2014-12-31 | I38: No expiration date | J38: Not Limited | K38: 2014 LDV/LDT Cold NMHC Credits earned per 40 CFR 86.1864-10; see other spreadsheet.
A39: 2015-05-01 | B39: 2014 | C39: HLDT/MDPV | D39: =IF(AND(B39<2008,C39="LDV/LLDT"),"Not Allowed", IF(AND(B39<2010,C39="HLDT/MDPV"),"Not Allowed", IF(AND(B39>2007,C39="LDV/LLDT"),"0.3", IF(AND(B39>2009,C39="HLDT/MDPV"),"0.5", ERROR)))) -> 0.5 | E39: 0.5 | F39: 1000 | G39: =IF(E39= "", "ERROR", astm((astm(D39,1)-(astm(E39,1)))*F39,0)) -> 0 | H39: 2014-12-31 | I39: No expiration date | J39: Not Limited | K39: 2014 HLDT/MDPV Cold NMHC Credits earned per 40 CFR 86.1864-10; see other spreadsheet.
B40: 2014 | C40: Transfer | D40: - | E40: - | F40: - | H40: - | I40: - | J40: -
D41: Total 2014 Credits Remaining: | G41: =SUM(G38:G40) -> 0
A43: 2015 Credits:
A44: 2016-05-01 | B44: 2015 | C44: LDV/LLDT | D44: =IF(AND(B44<2008,C44="LDV/LLDT"),"Not Allowed", IF(AND(B44<2010,C44="HLDT/MDPV"),"Not Allowed", IF(AND(B44>2007,C44="LDV/LLDT"),"0.3", IF(AND(B44>2009,C44="HLDT/MDPV"),"0.5", ERROR)))) -> 0.3 | E44: 0.3 | F44: 10002 | G44: =IF(D44="","ERROR",IF(E44="","ERROR",astm((astm(D44,1)-(astm(E44,1)))*F44,0))) -> 0 | H44: 2015-12-31 | I44: No expiration date | J44: Not Limited | K44: 2015 LDV/LDT Cold NMHC Credits earned per 40 CFR 86.1864-10; see other spreadsheet.
A45: 2016-05-01 | B45: 2014 | C45: HLDT/MDPV | D45: =IF(AND(B45<2008,C45="LDV/LLDT"),"Not Allowed", IF(AND(B45<2010,C45="HLDT/MDPV"),"Not Allowed", IF(AND(B45>2007,C45="LDV/LLDT"),"0.3", IF(AND(B45>2009,C45="HLDT/MDPV"),"0.5", ERROR)))) -> 0.5 | E45: 0.5 | F45: 1000 | G45: =IF(E45= "", "ERROR", astm((astm(D45,1)-(astm(E45,1)))*F45,0)) -> 0 | H45: 2015-12-31 | I45: No expiration date | J45: Not Limited | K45: 2015 HLDT/MDPV Cold NMHC Credits earned per 40 CFR 86.1864-10; see other spreadsheet.
B46: 2015 | C46: Transfer | D46: - | E46: - | F46: - | H46: - | I46: - | J46: -
D47: Total 2015 Credits Remaining: | G47: =SUM(G44:G46) -> 0
A49: 2016 Credits:
A50: 2017-05-01 | B50: 2016 | C50: LDV/LLDT | D50: =IF(AND(B50<2008,C50="LDV/LLDT"),"Not Allowed", IF(AND(B50<2010,C50="HLDT/MDPV"),"Not Allowed", IF(AND(B50>2007,C50="LDV/LLDT"),"0.3", IF(AND(B50>2009,C50="HLDT/MDPV"),"0.5", ERROR)))) -> 0.3 | E50: 0.2 | F50: 10002 | G50: =IF(D50="","ERROR",IF(E50="","ERROR",astm((astm(D50,1)-(astm(E50,1)))*F50,0))) -> 1000 | H50: 2016-12-31 | I50: No expiration date | J50: Not Limited | K50: 2016 LDV/LDT Cold NMHC Credits earned per 40 CFR 86.1864-10; see other spreadsheet.
A51: 2017-05-01 | B51: 2016 | C51: HLDT/MDPV | D51: =IF(AND(B51<2008,C51="LDV/LLDT"),"Not Allowed", IF(AND(B51<2010,C51="HLDT/MDPV"),"Not Allowed", IF(AND(B51>2007,C51="LDV/LLDT"),"0.3", IF(AND(B51>2009,C51="HLDT/MDPV"),"0.5", ERROR)))) -> 0.5 | E51: 0.5 | F51: 1000 | G51: =IF(E51= "", "ERROR", astm((astm(D51,1)-(astm(E51,1)))*F51,0)) -> 0 | H51: 2016-12-31 | I51: No expiration date | J51: Not Limited | K51: 2016 HLDT/MDPV Cold NMHC Credits earned per 40 CFR 86.1864-10; see other spreadsheet.
B52: 2016 | C52: Transfer | D52: - | E52: - | F52: - | H52: - | I52: - | J52: -
D53: Total 2016 Credits Remaining: | G53: =SUM(G50:G52) -> 1000
A55: 2017 Credits:
A56: 2018-05-01 | B56: 2017 | C56: LDV/LLDT | D56: =IF(AND(B56<2008,C56="LDV/LLDT"),"Not Allowed", IF(AND(B56<2010,C56="HLDT/MDPV"),"Not Allowed", IF(AND(B56>2007,C56="LDV/LLDT"),"0.3", IF(AND(B56>2009,C56="HLDT/MDPV"),"0.5", ERROR)))) -> 0.3 | E56: 0.3 | F56: 21784 | G56: =IF(D56="","ERROR",IF(E56="","ERROR",astm((astm(D56,1)-(astm(E56,1)))*F56,0))) -> 0 | H56: 2017-12-31 | I56: No expiration date | J56: Not Limited | K56: 2017 LDV/LDT Cold NMHC Credits earned per 40 CFR 86.1864-10; see other spreadsheet.
A57: 2018-05-01 | B57: 2017 | C57: HLDT/MDPV | D57: =IF(AND(B57<2008,C57="LDV/LLDT"),"Not Allowed", IF(AND(B57<2010,C57="HLDT/MDPV"),"Not Allowed", IF(AND(B57>2007,C57="LDV/LLDT"),"0.3", IF(AND(B57>2009,C57="HLDT/MDPV"),"0.5", ERROR)))) -> 0.5 | E57: 0.5 | F57: 1000 | G57: =IF(E57= "", "ERROR", astm((astm(D57,1)-(astm(E57,1)))*F57,0)) -> 0 | H57: 2017-12-31 | I57: No expiration date | J57: Not Limited | K57: 2017 HLDT/MDPV Cold NMHC Credits earned per 40 CFR 86.1864-10; see other spreadsheet.
B58: 2017 | C58: Transfer | D58: - | E58: - | F58: - | H58: - | I58: - | J58: -
D59: Total 2017 Credits Remaining: | G59: =SUM(G56:G58) -> 0
C61: Total 2010-2017 Credits Remaining: | G61: =SUM(G17+G23+G29+G35+G41+G47+G53+G59) -> 1100
A63: 2018 Credits:
A64: 2019-05-01 | B64: 2018 | C64: LDV/LLDT | D64: =IF(AND(B64<2008,C64="LDV/LLDT"),"Not Allowed", IF(AND(B64<2010,C64="HLDT/MDPV"),"Not Allowed", IF(AND(B64>2007,C64="LDV/LLDT"),"0.3", IF(AND(B64>2009,C64="HLDT/MDPV"),"0.5", ERROR)))) -> 0.3 | E64: 0.4 | F64: 28471 | G64: =IF(D64="","ERROR",IF(E64="","ERROR",astm((astm(D64,1)-(astm(E64,1)))*F64,0))) -> -2847 | H64: 2018-12-31 | I64: No expiration date | J64: Not Limited | K64: 2018 LDV/LDT Cold NMHC Credits earned per 40 CFR 86.1864-10; see other spreadsheet.
A65: 2019-05-01 | B65: 2018 | C65: HLDT/MDPV | D65: =IF(AND(B65<2008,C65="LDV/LLDT"),"Not Allowed", IF(AND(B65<2010,C65="HLDT/MDPV"),"Not Allowed", IF(AND(B65>2007,C65="LDV/LLDT"),"0.3", IF(AND(B65>2009,C65="HLDT/MDPV"),"0.5", ERROR)))) -> 0.5 | E65: 0.5 | F65: 1000 | G65: =IF(E65= "", "ERROR", astm((astm(D65,1)-(astm(E65,1)))*F65,0)) -> 0 | H65: 2018-12-31 | I65: No expiration date | J65: Not Limited | K65: 2018 HLDT/MDPV Cold NMHC Credits earned per 40 CFR 86.1864-10; see other spreadsheet.
A66: 2019-01-20 | B66: 2018 | C66: Transfer | D66: - | E66: - | F66: - | G66: 2000 | H66: 2016-12-31 | I66: No expiration date | J66: Not Limited | K66: Purchased 2000 Cold NMHC credits from Manufacturer A (earned on 12/31/2016)
D67: Total 2018 Early Credits Remaining: | G67: =SUM(G64:G66) -> -847
C69: Total 2010-2018 Credits Remaining: | G69: =SUM(G61+G67) -> 253
A71: 2019 Credits:
A72: 2020-05-01 | B72: 2019 | C72: LDV/LLDT | D72: =IF(AND(B72<2008,C72="LDV/LLDT"),"Not Allowed", IF(AND(B72<2010,C72="HLDT/MDPV"),"Not Allowed", IF(AND(B72>2007,C72="LDV/LLDT"),"0.3", IF(AND(B72>2009,C72="HLDT/MDPV"),"0.5", ERROR)))) -> 0.3 | E72: 0.3 | F72: 53458 | G72: =IF(D72="","ERROR",IF(E72="","ERROR",astm((astm(D72,1)-(astm(E72,1)))*F72,0))) -> 0 | H72: 2019-12-31 | I72: No expiration date | J72: Not Limited | K72: 2019 LDV/LDT Cold NMHC Credits earned per 40 CFR 86.1864-10; see attached spreadsheet.
A73: 2020-05-01 | B73: 2019 | C73: HLDT/MDPV | D73: =IF(AND(B73<2008,C73="LDV/LLDT"),"Not Allowed", IF(AND(B73<2010,C73="HLDT/MDPV"),"Not Allowed", IF(AND(B73>2007,C73="LDV/LLDT"),"0.3", IF(AND(B73>2009,C73="HLDT/MDPV"),"0.5", ERROR)))) -> 0.5 | E73: 0.5 | F73: 1000 | G73: =IF(E73= "", "ERROR", astm((astm(D73,1)-(astm(E73,1)))*F73,0)) -> 0 | H73: 2019-12-31 | I73: No expiration date | J73: Not Limited | K73: 2019 HLDT/MDPV Cold NMHC Credits earned per 40 CFR 86.1864-10; see attached spreadsheet.
B74: 2019 | C74: Transfer | D74: - | E74: - | F74: - | H74: - | I74: - | J74: -
D75: Total 2019 Credits Remaining: | G75: =SUM(G72:G74) -> 0
C77: Grand Total 2010-2019 Credits Remaining: | G77: =G69+G75 -> 253

Sheet Evap
A1: Example Template - LDV/LDT/HDV Federal Tier 3 Evaporative (Hot Soak + Diurnal) Emissions - Fleet Average Calculations for One Model Year
D2: Manufacturer: ___________________________ | M2: Date: _____________
A4: Purpose and Scope of this Guidance Document
A5: This document was prepared by EPA's Office of Transportation and Air Quality (OTAQ). It is one of several intended to aid regulated parties in reporting Tier 3 and Cold NMHC Averaging, Banking and Trading (AB&T) information and calculating AB&T fleet average credits for light-duty vehicles and certain heavy-duty class 2b and 3 vehicles, ref. 40 CFR 86.1862-04(c). It contains EPA's recommended format for manufacturers to report to EPA their end-of-year Tier 3 AB&T calculations, credits and other information with respect to the implementation of the AB&T provisions of the EPA Tier 3 final rule (79 FR 23414, April 28, 2014) as amended (80 FR 9078, February 19, 2015; 80 FR 26463, May 8, 2015); ref. 40 CFR Parts 85, 86, 600, 1065, 1066. Use of this document is purely optional. This document does not in any way alter or waive the requirements in EPA regulations. Although the calculations and formulas provided in this document are intended to assist manufacturers in the implementation of EPA regulations, this document does not establish or change the legal rights or obligations of manufacturers or others in complying with EPA regulations, including 40 CFR 86.1862-04(c). If an error or other discrepancy is found in this document, including the calculation formulas, please contact your EPA certification team member or Dave Good at (734) 214-4450 or by email at good.david@epa.gov. The regulations take precedence.
A7: Instructions | E7: OMB Control Number 2060-0104 Expires 3-31-2020 | I7: Tier 3 Evaporative LDV/LDT1 Averaging Set | O7: Tier 3 Evaporative LDT2 Averaging Set
A8: Select Model Year: | C8: 2019 | I8: Evaporative Emissions | J8: Total Production of Averaging Set | K8: Fleet average compliance value | L8: Fleet average standard | M8: Credits or Debits | O8: Evaporative Emissions | P8: Total Production of Averaging Set | Q8: Fleet average compliance value | R8: Fleet average standard | S8: Credits or Debits
K9: grams/test | L9: grams/test | M9: vehicle-grams/test | Q9: grams/test | R9: grams/test | S9: vehicle-gr/test
B10: Enter "X" if all vehicles are certified at or below fleet average standard and you omit credit calculations per 40 CFR 86.18160-17(f): | I10: E10 Total HC Equivalent | J10: =SUMIF(B21:B490,"LDV/LDT1",Y21:Y490) -> 79840 | K10: =IF(D12="X", "All vehicles certified at or below fleet average standard",astm(SUMIF(B21:B490,"LDV/LDT1",Z21:Z490)/J10,3)) -> 0.188 | L10: 0.3 | M10: =IF(D12="X", 0,astm(((L10-K10)*J10),0)) -> 8942 | O10: E10 Total HC Equivalent | P10: =SUMIF(B21:B490,"LDT2",Y21:Y490) -> 134000 | Q10: =IF(D13="X","All vehicles certified at or below fleet average standard",astm(SUMIF(B21:B490,"LDT2",Z21:IP490)/P10,3)) -> 0.337 | R10: 0.4 | S10: =IF(D13="X",0,astm(((R10-Q10)*P10),0)) -> 8442
B11: Averaging Set | D11: Check if applicable:
B12: LDV/LDT1: | I12: Tier 3 Evaporative HLDT/MDPV Averaging Set | O12: Tier 3 Evaporative HDV Averaging Set
B13: LDT2: | I13: Evaporative Emissions | J13: Total Production of Averaging Set | K13: Fleet average compliance value | L13: Fleet average standard | M13: Credits or Debits | O13: Evaporative Emissions | P13: Total Production of Averaging Set | Q13: Fleet average compliance value | R13: Fleet average standard | S13: Credits or Debits
B14: HLDT/MDPV: | K14: grams/test | L14: grams/test | M14: vehicle-grams/test | Q14: grams/test | R14: grams/test | S14: vehicle-gr/test
B15: HDV: | I15: E10 Total HC Equivalent | J15: =SUMIF(B21:B490,"HLDT/MDPV",Y21:Y490) + SUMIF(B21:B490,"HLDT Allowance only",Y21:Y490) + SUMIF(B21:B490,"MDPV Allowance only",Y21:Y490) -> 120049 | K15: =IF(D14="X", "All vehicles certified at or below fleet average standard",astm((SUMIF(B21:B490,"HLDT/MDPV",Z21:Z490)+ SUMIF(B21:B490,"HLDT Allowance only",Z21:Z490) + SUMIF(B21:B490,"MDPV Allowance only",Z21:Z490))/J15,3)) -> 0.481 | L15: 0.5 | M15: =IF(D14="X", 0,astm(((L15-K15)*J15),0)) -> 2281 | O15: E10 Total HC Equivalent | P15: =SUMIF(B21:B490,"HDV",Y21:Y490) -> 116000 | Q15: =IF(D15="X","All vehicles certified at or below fleet average standard",astm(SUMIF(B21:B490,"HDV",Z21:Z490)/P15,3)) -> 0.601 | R15: 0.6 | S15: =IF(D15="X",0,astm(((R15-Q15)*P15),0)) -> -116
AA18: Error Checks
A19: Evaporative Family (including Early Allowance Evap Families) | B19: Vehicle Class of Evap Family (and Averaging Set) | C19: FEL of Evap Family (low altitude) | D19: Class of HDV [Needed only if Column B is HDV] | E19: HDV Class 4-8 Certification Basis [If Statement, Can't Earn Credits] | F19: HDV also meets ORVR Standards [Needed for Allowances for Class 3 and above HDVs] | G19: Evap Family Useful Life Miles | H19: Evap Family Useful Life of Averaging Set (must be 150K) | I19: Test Fuel (used for HS + Diurnal test) | J19: 2015 or 2016 Carryover PZEV Option 1 (Rig Test) Using Phase 2 test fuel? | K19: 2015 or 2016 CARB LEV3 Option 1 (Rig Test) Carryover? | L19: Early Allowance Evap Family (Not used to meet Phase-in Requirements; Not used for 2017 Nationwide PZEV Phase-in Option)? [Can be 2015-2016 Carryover CARB Option1, CARB Option2 or Tier3 Evap Family] | M19: Model Year Early Allowance Was Earned | N19: Production (Federal only) [Needed for 2017MY & LDV/ LLDT/HLDT Allowances] | O19: Production (50-State) | P19: Manufacturer Comments | W19: Fleet Ave Standard for Vehicle Class [derived from class in Column B] | X19: FEL Used for Fleet Average Calculations [Derived from Columns B, C, E, J, K, W] | Y19: Production used in Calcs [Derived from Columns P & Q] | Z19: Evap Intermediate Calculation [Unrounded Production x FEL] | AA19: Error Check: Does FEL Exceed the CAP for the Vehicle Class? | AB19: Error Message from Column Y (if any)
B20: LDV/LDT1; LDT2; HLDT/MDPV, HDV, HLDT Allowance only or MDPV Allowance only | C20: gr/test; (HS + Diurnal) | D20: [Class 2b, 3, 4, 5, 6, 7 or 8] | E20: Test Data or Statement | F20: Yes or No [Uses 2:1 Production Multiplier] | G20: (x 1000 Miles) | H20: (x 1000 Miles) | I20: Ph 2, LEV3 or Tier3 | J20: Yes or No | K20: (And Using LEV 3 test fuel); Yes or No | L20: (Note: Early Allowances Expire after 2021 MY); Yes or No | M20: 2015, 2016, 2017 (>6000 GVWR only), or NA | N20: # of Units | O20: # of Units | W20: gr/test; (HS + Diurnal) | X20: [PZEVs, CARB Opt 1 Vehs, Allowances & some HDVs can't earn credits] | Y20: # of Units | Z20: Unrounded units x g/test
A21: A | B21: LDV/LDT1 | C21: 0.15 | G21: 150 | H21: 150 | I21: LEV 3 | J21: No | K21: No | L21: No | M21: NA | O21: 39458 | W21: =IF(A21="","", IF(B21="LDV/LDT1", 0.3, IF(B21="LDT2", 0.4, IF(OR(B21="HLDT/MDPV",B21="HLDT Allowance only", B21="MDPV Allowance only"), 0.5, IF(B21="HDV", 0.6, ERROR))))) -> 0.3 | X21: =IF(A21="", "", IF(J21 = "Yes", W21, IF(K21="Yes", W21, IF(AND(A21<>"",B21="HDV",E21="Statement"), MAX(C21, W21),C21)))) -> 0.15 | Y21: =IF(A21="","",IF(AND(A21<>"",L21="Yes",$C$8>2021),"ERROR--Can't Use Early Allowances after 2021MY", IF(AND(A21<>"",B21="HLDT Allowance only",$C$8=2017),"Can't Use HLDT Allowance before 2018MY",IF(AND(A21<>"",B21="MDPV Allowance only",$C$8=2017),"Can't Use MDPV Allowance before 2018MY",IF(AND(A21<>"",B21="HLDT/MDPV",$C$8=2017),"Can't Use HLDT/MDPV Allowance before 2018MY",IF(AND(A21<>"",B21="HDV",$C$8=2017),"Can't Use HDV Allowance before 2018MY",IF(AND(A21<>"",L21="Yes",J21<>"Yes",K21<>"Yes",C21>W21),"ERROR--Early Allowance evaporative family does not comply with Tier 3 standards and is not a 2015 or 2016 Carryover PZEV or Carryover LEV3 Option 1 (Rig Test) Evap family",IF(AND(A21<>"",L21="Yes",B21="HDV",O21=""),"FIX 50-St Prod'n--needed for HDV Allowances",IF(AND(A21<>"",B21="MDPV Allowance only",O21=""),"FIX 50-St Prod'n--needed for MDPV early allowances",IF(AND(A21<>"",L21="Yes",B21="LDV/LDT1",N21=""),"FIX Fed Prod'n--needed for LDV/LDT1 early allowances",IF(AND(A21<>"",L21="Yes",B21="LDT2",N21=""),"FIX Fed Prod'n--needed for LDT2 early allowances",IF(AND(A21<>"",L21="Yes",B21="HLDT Allowance only",N21=""),"FIX Fed Prod'n--needed for HLDT early allowances",IF(AND(A21<>"",L21="Yes",B21="HLDT/MDPV"),"ERROR in Col B--must use HLDT Allowance only or MDPV Allowance only value from Column B menu and corresponding production values for HLDT Allowances or MDPV Allowances as applicable",IF(AND(A21<>"",B21="HDV",D21=""),"ERROR--Column B is HDV but HDV Class in Column E is Blank",IF(AND(A21<>"",B21<>"",B21<>"HDV",D21<>""),"ERROR--Column B is not HDV but you entered a HDV Class in Column E",IF(AND(A21<>"",B21="HDV",D21=4,E21=""),"ERROR--Column E indicates HDV Class 4-8 but Certification Basis in Column F is Blank",IF(AND(A21<>"",B21="HDV",D21=5,E21=""),"ERROR--Column E indicates HDV Class 4-8 but Certification Basis in Column F is Blank",IF(AND(A21<>"",B21="HDV",D21=6,E21=""),"ERROR--Column E indicates HDV Class 4-8 but Certification Basis in Column F is Blank",IF(AND(A21<>"",B21="HDV",D21=7,E21=""),"ERROR--Column E indicates HDV Class 4-8 but Certification Basis in Column F is Blank",IF(AND(A21<>"",B21="HDV",D21=8,E21=""),"ERROR--Column E indicates HDV Class 4-8 but Certification Basis in Column F is Blank",IF(AND(A21<>"",D21="2b",E21="Statement"),"ERROR in Columns E & F---Can't use Statement for Certification Basis of Class 2b HDVs",IF(AND(A21<>"",D21=3,E21="Statement"),"ERROR in Columns E & F---Can't use Statement for Certification Basis of Class 3 HDVs",IF(AND(A21<>"",B21<>"HDV",E21="Statement"),"ERROR in Columns B & F---Can only use Statement as the Certification Basis of Class 4 and above HDVs",IF(AND(A21<>"",I21="Phase 2",J21="No"),"ERROR--Can only use Phase 2 test fuel for 2015-2016 Carryover PZEV Option 1 (Rig Test) Evaporative Families",IF(AND(A21<>"",I21="NA",E21<>"Statement"),"ERROR in Columns F & J---Can only use NA for Test Fuel if Certification is based on a Statement",IF(AND(A21<>"",J21="Yes",I21<>"Phase 2"),"ERROR--Test fuel must be Phase 2 for 2015-2016 Carryover PZEV Option 1 (Rig test) evaporative families",IF(AND(A21<>"",J21="Yes",C21<>0.35,C21<>0.5,C21<>0.75),"ERROR--FEL must be 0.350, 0.500 or 0.750 for 2015-2016 Carryover PZEV Option 1 (Rig test) evaporative families",IF(AND(A21<>"",J21="Yes",B21<>"LDV/LDT1",B21<>"LDT2",B21<>"HLDT/MDPV"),"ERROR--Vehicle class must be LDV/LDT1 or LDT2 or HLDT/MDPV for 2015-2016 Carryover PZEV Option 1 (Rig test) evaporative families",IF(AND(A21<>"",$C$8>2019,J21="Yes",L21<>"Yes"),"ERROR--Can't use Carryover data from 2015-2016 PZEV Option 1 (Rig test) using Phase 2 test fuel after 2019MY (or after 2021MY if used as an Early Allowance)",IF(AND(A21<>"",K21="Yes",I21<>"LEV 3"),"ERROR--Test fuel must be LEV 3 for 2015-2016 Carryover LEV3 Option 1 (Rig test) evaporative families",IF(AND(A21<>"",K21="Yes",C21<>0.35,C21<>0.5,C21<>0.75),"ERROR--FEL must be 0.350, 0.500 or 0.750 for 2015-2016 Carryover LEV3 Option 1 (Rig test) evaporative families",IF(AND(A21<>"",$C$8>2021,K21="Yes"),"ERROR--Can't use Carryover data from 2015-2016 CARB LEV3 Option 1 (Rig test) using LEV 3 test fuel after 2021MY",IF(AND(A21<>"",B21<>"LDV/LDT1",G21=120),"ERROR--Useful Life must be 150,000 miles for this Tier 3 Evaporative Family",IF(AND(A21<>"",L21="Yes",M21<>2015,M21<>2016,M21<>2017),"FIX Model Year Early Allowance was earned",IF(AND(A21<>"",L21="No",M21<>"",M21<>"NA"),"Error in cols M & N---column M indicates No Allowance but Column N indicates an allowance was earned",IF(AND(A21<>"",L21="Yes",B21<>"HDV",B21<>"HLDT Allowance only",B21<>"MDPV Allowance only",M21=2017),"ERROR--Early allowances can't be earned in 2017MY for LDV/LDT1 and LDT2 Evaporative Families",IF(AND(A21<>"",$C$8=2017,N21=""),"FIX Federal Prod'n--needed for 2017MY compliance",IF(AND(A21<>"",$C$8<>2017,L21="No",O21=""),"FIX 50-St Prod'n",IF(AND(A21<>"",B21="HLDT Allowance only",L21<>"Yes"),"ERROR - Cols B & M--Column B indicates an Allowance is being used but Column M indicates No Allowance",IF(AND(A21<>"",B21="MDPV Allowance only",L21<>"Yes"),"ERROR - Cols B & M--Column B indicates an Allowance is being use but Column M indicates No Allowance",IF(AND(A21<>"",B21="HDV",D21<> "2b", L21="Yes",F21 =""),"FIX Column G 'HDV also meets ORVR Standards'---needed for HDV Class 3 and above Allowances",IF(AND(A21<>"",B21="HDV",D21<> "2b", L21="Yes",F21 ="Yes"), 2*O21,IF(AND(A21<>"",L21="Yes",B21="LDV/LDT1"),N21,IF(AND(A21<>"",L21="Yes",B21="LDT2"),N21,IF(AND(A21<>"",L21="Yes",B21="HLDT Allowance only"),N21,IF(AND(A21<>"",L21="No",$C$8=2017),N21,O21)))))))))))))))))))))))))))))))))))))))))))))) -> 39458 | Z21: =IF(AND(A21="",N21<>""),"FIX TEST GROUP",IF(AND(A21="",O21<>""),"FIX TEST GROUP",IF(A21="","", IF(B21="","FIX CLASS",IF(C21="","FIX FEL",IF(G21="","FIX U/L Miles",IF(I21="","FIX Test Fuel",IF(J21="","FIX PZEV Carryover",IF(K21="","FIX CARB Opt 1 Carryover",IF(L21="","FIX Allowance Y/N",IF(M21="","FIX Allowance MY",IF(Y21="","FIX PROD'N in Column Q",Y21*X21)))))))))))) -> 5918.7 | AA21: =IF(A21="","",IF(AND(A21<>"",B21="LDV/LDT1",C21<=0.5),"OK",IF(AND(A21<>"",B21="LDT2",C21<=0.65),"OK",IF(AND(A21<>"",B21="HLDT/MDPV",C21<=0.9),"OK",IF(AND(A21<>"",B21="HLDT/MDPV",C21>0.9,C21<=1),"OK if HLDTs < 0.9",IF(AND(A21<>"",B21="HDV",D21="2b",C21<=1.4),"OK",IF(AND(A21<>"",B21="HDV",D21=3,C21<=1.4),"OK",IF(AND(A21<>"",B21="HDV",C21<=1.9, D21>=4),"OK",IF(AND(A21<>"",B21="HLDT Allowance only"),"OK",IF(AND(A21<>"",B21="MDPV Allowance only"),"OK","FEL exceeds CAP")))))))))) -> OK | AB21: =IF(ISNUMBER(Y21)=TRUE, "", Y21) -> 
A22: B | B22: LDV/LDT1 | C22: 0.15 | G22: 120 | H22: 150 | I22: Tier 3 | J22: No | K22: No | L22: No | M22: NA | O22: 20382 | W22: =IF(A22="","", IF(B22="LDV/LDT1", 0.3, IF(B22="LDT2", 0.4, IF(OR(B22="HLDT/MDPV",B22="HLDT Allowance only", B22="MDPV Allowance only"), 0.5, IF(B22="HDV", 0.6, ERROR))))) -> 0.3 | X22: 0.15 | Y22: =IF(A22="","",IF(AND(A22<>"",L22="Yes",$C$8>2021),"ERROR--Can't Use Early Allowances after 2021MY", IF(AND(A22<>"",B22="HLDT Allowance only",$C$8=2017),"Can't Use HLDT Allowance before 2018MY",IF(AND(A22<>"",B22="MDPV Allowance only",$C$8=2017),"Can't Use MDPV Allowance before 2018MY",IF(AND(A22<>"",B22="HLDT/MDPV",$C$8=2017),"Can't Use HLDT/MDPV Allowance before 2018MY",IF(AND(A22<>"",B22="HDV",$C$8=2017),"Can't Use HDV Allowance before 2018MY",IF(AND(A22<>"",L22="Yes",J22<>"Yes",K22<>"Yes",C22>W22),"ERROR--Early Allowance evaporative family does not comply with Tier 3 standards and is not a 2015 or 2016 Carryover PZEV or Carryover LEV3 Option 1 (Rig Test) Evap family",IF(AND(A22<>"",L22="Yes",B22="HDV",O22=""),"FIX 50-St Prod'n--needed for HDV Allowances",IF(AND(A22<>"",B22="MDPV Allowance only",O22=""),"FIX 50-St Prod'n--needed for MDPV early allowances",IF(AND(A22<>"",L22="Yes",B22="LDV/LDT1",N22=""),"FIX Fed Prod'n--needed for LDV/LDT1 early allowances",IF(AND(A22<>"",L22="Yes",B22="LDT2",N22=""),"FIX Fed Prod'n--needed for LDT2 early allowances",IF(AND(A22<>"",L22="Yes",B22="HLDT Allowance only",N22=""),"FIX Fed Prod'n--needed for HLDT early allowances",IF(AND(A22<>"",L22="Yes",B22="HLDT/MDPV"),"ERROR in Col B--must use HLDT Allowance only or MDPV Allowance only value from Column B menu and corresponding production values for HLDT Allowances or MDPV Allowances as applicable",IF(AND(A22<>"",B22="HDV",D22=""),"ERROR--Column B is HDV but HDV Class in Column E is Blank",IF(AND(A22<>"",B22<>"",B22<>"HDV",D22<>""),"ERROR--Column B is not HDV but you entered a HDV Class in Column E",IF(AND(A22<>"",B22="HDV",D22=4,E22=""),"ERROR--Column E indicates HDV Class 4-8 but Certification Basis in Column F is Blank",IF(AND(A22<>"",B22="HDV",D22=5,E22=""),"ERROR--Column E indicates HDV Class 4-8 but Certification Basis in Column F is Blank",IF(AND(A22<>"",B22="HDV",D22=6,E22=""),"ERROR--Column E indicates HDV Class 4-8 but Certification Basis in Column F is Blank",IF(AND(A22<>"",B22="HDV",D22=7,E22=""),"ERROR--Column E indicates HDV Class 4-8 but Certification Basis in Column F is Blank",IF(AND(A22<>"",B22="HDV",D22=8,E22=""),"ERROR--Column E indicates HDV Class 4-8 but Certification Basis in Column F is Blank",IF(AND(A22<>"",D22="2b",E22="Statement"),"ERROR in Columns E & F---Can't use Statement for Certification Basis of Class 2b HDVs",IF(AND(A22<>"",D22=3,E22="Statement"),"ERROR in Columns E & F---Can't use Statement for Certification Basis of Class 3 HDVs",IF(AND(A22<>"",B22<>"HDV",E22="Statement"),"ERROR in Columns B & F---Can only use Statement as the Certification Basis of Class 4 and above HDVs",IF(AND(A22<>"",I22="Phase 2",J22="No"),"ERROR--Can only use Phase 2 test fuel for 2015-2016 Carryover PZEV Option 1 (Rig Test) Evaporative Families",IF(AND(A22<>"",I22="NA",E22<>"Statement"),"ERROR in Columns F & J---Can only use NA for Test Fuel if Certification is based on a Statement",IF(AND(A22<>"",J22="Yes",I22<>"Phase 2"),"ERROR--Test fuel must be Phase 2 for 2015-2016 Carryover PZEV Option 1 (Rig test) evaporative families",IF(AND(A22<>"",J22="Yes",C22<>0.35,C22<>0.5,C22<>0.75),"ERROR--FEL must be 0.350, 0.500 or 0.750 for 2015-2016 Carryover PZEV Option 1 (Rig test) evaporative families",IF(AND(A22<>"",J22="Yes",B22<>"LDV/LDT1",B22<>"LDT2",B22<>"HLDT/MDPV"),"ERROR--Vehicle class must be LDV/LDT1 or LDT2 or HLDT/MDPV for 2015-2016 Carryover PZEV Option 1 (Rig test) evaporative families",IF(AND(A22<>"",$C$8>2019,J22="Yes",L22<>"Yes"),"ERROR--Can't use Carryover data from 2015-2016 PZEV Option 1 (Rig test) using Phase 2 test fuel after 2019MY (or after 2021MY if used as an Early Allowance)",IF(AND(A22<>"",K22="Yes",I22<>"LEV 3"),"ERROR--Test fuel must be LEV 3 for 2015-2016 Carryover LEV3 Option 1 (Rig test) evaporative families",IF(AND(A22<>"",K22="Yes",C22<>0.35,C22<>0.5,C22<>0.75),"ERROR--FEL must be 0.350, 0.500 or 0.750 for 2015-2016 Carryover LEV3 Option 1 (Rig test) evaporative families",IF(AND(A22<>"",$C$8>2021,K22="Yes"),"ERROR--Can't use Carryover data from 2015-2016 CARB LEV3 Option 1 (Rig test) using LEV 3 test fuel after 2021MY",IF(AND(A22<>"",B22<>"LDV/LDT1",G22=120),"ERROR--Useful Life must be 150,000 miles for this Tier 3 Evaporative Family",IF(AND(A22<>"",L22="Yes",M22<>2015,M22<>2016,M22<>2017),"FIX Model Year Early Allowance was earned",IF(AND(A22<>"",L22="No",M22<>"",M22<>"NA"),"Error in cols M & N---column M indicates No Allowance but Column N indicates an allowance was earned",IF(AND(A22<>"",L22="Yes",B22<>"HDV",B22<>"HLDT Allowance only",B22<>"MDPV Allowance only",M22=2017),"ERROR--Early allowances can't be earned in 2017MY for LDV/LDT1 and LDT2 Evaporative Families",IF(AND(A22<>"",$C$8=2017,N22=""),"FIX Federal Prod'n--needed for 2017MY compliance",IF(AND(A22<>"",$C$8<>2017,L22="No",O22=""),"FIX 50-St Prod'n",IF(AND(A22<>"",B22="HLDT Allowance only",L22<>"Yes"),"ERROR - Cols B & M--Column B indicates an Allowance is being used but Column M indicates No Allowance",IF(AND(A22<>"",B22="MDPV Allowance only",L22<>"Yes"),"ERROR - Cols B & M--Column B indicates an Allowance is being use but Column M indicates No Allowance",IF(AND(A22<>"",B22="HDV",D22<> "2b", L22="Yes",F22 =""),"FIX Column G 'HDV also meets ORVR Standards'---needed for HDV Class 3 and above Allowances",IF(AND(A22<>"",B22="HDV",D22<> "2b", L22="Yes",F22 ="Yes"), 2*O22,IF(AND(A22<>"",L22="Yes",B22="LDV/LDT1"),N22,IF(AND(A22<>"",L22="Yes",B22="LDT2"),N22,IF(AND(A22<>"",L22="Yes",B22="HLDT Allowance only"),N22,IF(AND(A22<>"",L22="No",$C$8=2017),N22,O22)))))))))))))))))))))))))))))))))))))))))))))) -> 20382 | Z22: =IF(AND(A22="",N22<>""),"FIX TEST GROUP",IF(AND(A22="",O22<>""),"FIX TEST GROUP",IF(A22="","", IF(B22="","FIX CLASS",IF(C22="","FIX FEL",IF(G22="","FIX U/L Miles",IF(I22="","FIX Test Fuel",IF(J22="","FIX PZEV Carryover",IF(K22="","FIX CARB Opt 1 Carryover",IF(L22="","FIX Allowance Y/N",IF(M22="","FIX Allowance MY",IF(Y22="","FIX PROD'N in Column Q",Y22*X22)))))))))))) -> 3057.3 | AA22: OK
A23: C (2015 PZEV) | B23: LDV/LDT1 | C23: 0.35 | G23: 150 | H23: 150 | I23: Phase 2 | J23: Yes | K23: No | L23: Yes | M23: 2015 | N23: 20000 | P23: 2015 PZEV Carryover & 2015 Early Allowance; [Allowance vehs not used in Evap Phase-in calcs.] [Formatted comments field cells to "wrap text" as shown in example comments for this cell.] | W23: =IF(A23="","", IF(B23="LDV/LDT1", 0.3, IF(B23="LDT2", 0.4, IF(OR(B23="HLDT/MDPV",B23="HLDT Allowance only", B23="MDPV Allowance only"), 0.5, IF(B23="HDV", 0.6, ERROR))))) -> 0.3 | X23: 0.3 | Y23: 20000 | Z23: 6000 | AA23: OK
A24: D | B24: LDT2 | C24: 0.3 | G24: 150 | H24: 150 | I24: Tier 3 | J24: No | K24: No | L24: No | M24: NA | O24: 45000 | W24: =IF(A24="","", IF(B24="LDV/LDT1", 0.3, IF(B24="LDT2", 0.4, IF(OR(B24="HLDT/MDPV",B24="HLDT Allowance only", B24="MDPV Allowance only"), 0.5, IF(B24="HDV", 0.6, ERROR))))) -> 0.4 | X24: 0.3 | Y24: 45000 | Z24: 13500 | AA24: OK
A25: E | B25: LDT2 | C25: 0.35 | G25: 150 | H25: 150 | I25: LEV 3 | J25: No | K25: No | L25: No | M25: NA | O25: 79000 | W25: =IF(A25="","", IF(B25="LDV/LDT1", 0.3, IF(B25="LDT2", 0.4, IF(OR(B25="HLDT/MDPV",B25="HLDT Allowance only", B25="MDPV Allowance only"), 0.5, IF(B25="HDV", 0.6, ERROR))))) -> 0.4 | X25: 0.35 | Y25: 79000 | Z25: 27650 | AA25: OK
A26: F (2015 PZEV) | B26: LDT2 | C26: 0.5 | G26: 150 | H26: 150 | I26: Phase 2 | J26: Yes | K26: No | L26: No | M26: NA | O26: 10000 | P26: 2015 LDT2 PZEV Carryover | W26: =IF(A26="","", IF(B26="LDV/LDT1", 0.3, IF(B26="LDT2", 0.4, IF(OR(B26="HLDT/MDPV",B26="HLDT Allowance only", B26="MDPV Allowance only"), 0.5, IF(B26="HDV", 0.6, ERROR))))) -> 0.4 | X26: 0.4 | Y26: 10000 | Z26: 4000 | AA26: OK
A27: G | B27: HLDT/MDPV | C27: 0.4 | G27: 150 | H27: 150 | I27: Tier 3 | J27: No | K27: No | L27: No | M27: NA | O27: 10000 | W27: =IF(A27="","", IF(B27="LDV/LDT1", 0.3, IF(B27="LDT2", 0.4, IF(OR(B27="HLDT/MDPV",B27="HLDT Allowance only", B27="MDPV Allowance only"), 0.5, IF(B27="HDV", 0.6, ERROR))))) -> 0.5 | X27: 0.4 | Y27: 10000 | Z27: 4000 | AA27: OK
A28: H | B28: HLDT/MDPV | C28: 0.5 | G28: 150 | H28: 150 | I28: Tier 3 | J28: No | K28: No | L28: No | M28: NA | O28: 90000 | W28: =IF(A28="","", IF(B28="LDV/LDT1", 0.3, IF(B28="LDT2", 0.4, IF(OR(B28="HLDT/MDPV",B28="HLDT Allowance only", B28="MDPV Allowance only"), 0.5, IF(B28="HDV", 0.6, ERROR))))) -> 0.5 | X28: 0.5 | Y28: 90000 | Z28: 45000 | AA28: OK
A29: I (LEV3 Opt 1 HLDT Carryover) | B29: HLDT/MDPV | C29: 0.75 | G29: 150 | H29: 150 | I29: LEV 3 | J29: No | K29: Yes | L29: No | M29: NA | O29: 3000 | P29: 2015 HLDT Carryover LEV3 Option 1 (Rig test) tested on LEV3 test fuel; | W29: =IF(A29="","", IF(B29="LDV/LDT1", 0.3, IF(B29="LDT2", 0.4, IF(OR(B29="HLDT/MDPV",B29="HLDT Allowance only", B29="MDPV Allowance only"), 0.5, IF(B29="HDV", 0.6, ERROR))))) -> 0.5 | X29: 0.5 | Y29: 3000 | Z29: 1500 | AA29: OK
A30: J | B30: HLDT Allowance only | C30: 0.35 | G30: 150 | H30: 150 | I30: LEV 3 | J30: No | K30: No | L30: Yes | M30: 2015 | N30: 2049 | P30: 2015 Early Allowance (HLDT); [Allowance vehs not used in Evap Phase-in calcs] | W30: =IF(A30="","", IF(B30="LDV/LDT1", 0.3, IF(B30="LDT2", 0.4, IF(OR(B30="HLDT/MDPV",B30="HLDT Allowance only", B30="MDPV Allowance only"), 0.5, IF(B30="HDV", 0.6, ERROR))))) -> 0.5 | X30: 0.35 | Y30: 2049 | Z30: 717.15 | AA30: OK
A31: K | B31: HLDT Allowance only | C31: 0.5 | G31: 150 | H31: 150 | I31: LEV 3 | J31: No | K31: No | L31: Yes | M31: 2016 | N31: 5000 | P31: 2016 Early Allowance (HLDT); [Allowance vehs not used in Evap Phase-in calcs] | W31: =IF(A31="","", IF(B31="LDV/LDT1", 0.3, IF(B31="LDT2", 0.4, IF(OR(B31="HLDT/MDPV",B31="HLDT Allowance only", B31="MDPV Allowance only"), 0.5, IF(B31="HDV", 0.6, ERROR))))) -> 0.5 | X31: 0.5 | Y31: 5000 | Z31: 2500 | AA31: OK
A32: L | B32: MDPV Allowance only | C32: 0.4 | G32: 150 | H32: 150 | I32: Tier 3 | J32: No | K32: No | L32: Yes | M32: 2017 | O32: 10000 | P32: 2017 Early Allowance (MDPV); [Allowance vehs not used in Evap Phase-in calcs] | W32: =IF(A32="","", IF(B32="LDV/LDT1", 0.3, IF(B32="LDT2", 0.4, IF(OR(B32="HLDT/MDPV",B32="HLDT Allowance only", B32="MDPV Allowance only"), 0.5, IF(B32="HDV", 0.6, ERROR))))) -> 0.5 | X32: 0.4 | Y32: 10000 | Z32: 4000 | AA32: OK
A33: M | B33: HDV | C33: 0.15 | D33: 2b | G33: 150 | H33: 150 | I33: Tier 3 | J33: No | K33: No | L33: No | M33: NA | O33: 60000 | W33: =IF(A33="","", IF(B33="LDV/LDT1", 0.3, IF(B33="LDT2", 0.4, IF(OR(B33="HLDT/MDPV",B33="HLDT Allowance only", B33="MDPV Allowance only"), 0.5, IF(B33="HDV", 0.6, ERROR))))) -> 0.6 | X33: 0.15 | Y33: 60000 | Z33: 9000 | AA33: OK
A34: N (2017 Allowance) | B34: HDV | C34: 0.35 | D34: 2b | G34: 150 | H34: 150 | I34: LEV 3 | J34: No | K34: No | L34: Yes | M34: 2017 | O34: 2500 | P34: 2017 Early Allowance (HDV); certified to LEV3 Option 2 stds; not used in Evap Phase-in calcs | W34: =IF(A34="","", IF(B34="LDV/LDT1", 0.3, IF(B34="LDT2", 0.4, IF(OR(B34="HLDT/MDPV",B34="HLDT Allowance only", B34="MDPV Allowance only"), 0.5, IF(B34="HDV", 0.6, ERROR))))) -> 0.6 | X34: 0.35 | Y34: 2500 | Z34: 875 | AA34: OK
A35: O | B35: HDV | C35: 1.2 | D35: 3 | G35: 150 | H35: 150 | I35: Tier 3 | J35: No | K35: No | L35: No | M35: NA | O35: 45000 | W35: =IF(A35="","", IF(B35="LDV/LDT1", 0.3, IF(B35="LDT2", 0.4, IF(OR(B35="HLDT/MDPV",B35="HLDT Allowance only", B35="MDPV Allowance only"), 0.5, IF(B35="HDV", 0.6, ERROR))))) -> 0.6 | X35: 1.2 | Y35: 45000 | Z35: 54000 | AA35: OK
A36: P (2016 Allowance which also meets ORVR standard) | B36: HDV | C36: 0.55 | D36: 3 | F36: Yes | G36: 150 | H36: 150 | I36: Tier 3 | J36: No | K36: No | L36: Yes | M36: 2016 | O36: 2500 | P36: 2016 Early 2 for 1 Allowance (HDV class 3 & above veh certified to Evap&ORVR; not used in phase-in calcs) | W36: =IF(A36="","", IF(B36="LDV/LDT1", 0.3, IF(B36="LDT2", 0.4, IF(OR(B36="HLDT/MDPV",B36="HLDT Allowance only", B36="MDPV Allowance only"), 0.5, IF(B36="HDV", 0.6, ERROR))))) -> 0.6 | X36: 0.55 | Y36: 5000 | Z36: 2750 | AA36: OK
A37: Q | B37: HDV | C37: 0.5 | D37: 4 | E37: Statement | G37: 150 | H37: 150 | I37: NA | J37: No | K37: No | L37: No | M37: NA | O37: 2500 | W37: =IF(A37="","", IF(B37="LDV/LDT1", 0.3, IF(B37="LDT2", 0.4, IF(OR(B37="HLDT/MDPV",B37="HLDT Allowance only", B37="MDPV Allowance only"), 0.5, IF(B37="HDV", 0.6, ERROR))))) -> 0.6 | X37: 0.6 | Y37: 2500 | Z37: 1500 | AA37: OK
A38: R | B38: HDV | C38: 1.6 | D38: 6 | E38: Statement | G38: 150 | H38: 150 | I38: NA | J38: No | K38: No | L38: No | M38: NA | O38: 1000 | W38: =IF(A38="","", IF(B38="LDV/LDT1", 0.3, IF(B38="LDT2", 0.4, IF(OR(B38="HLDT/MDPV",B38="HLDT Allowance only", B38="MDPV Allowance only"), 0.5, IF(B38="HDV", 0.6, ERROR))))) -> 0.6 | X38: 1.6 | Y38: 1000 | Z38: 1600 | AA38: OK
W39: =IF(A39="","", IF(B39="LDV/LDT1", 0.3, IF(B39="LDT2", 0.4, IF(OR(B39="HLDT/MDPV",B39="HLDT Allowance only", B39="MDPV Allowance only"), 0.5, IF(B39="HDV", 0.6, ERROR))))) -> 
W40: =IF(A40="","", IF(B40="LDV/LDT1", 0.3, IF(B40="LDT2", 0.4, IF(OR(B40="HLDT/MDPV",B40="HLDT Allowance only", B40="MDPV Allowance only"), 0.5, IF(B40="HDV", 0.6, ERROR))))) -> 
W41: =IF(A41="","", IF(B41="LDV/LDT1", 0.3, IF(B41="LDT2", 0.4, IF(OR(B41="HLDT/MDPV",B41="HLDT Allowance only", B41="MDPV Allowance only"), 0.5, IF(B41="HDV", 0.6, ERROR))))) -> 
W42: =IF(A42="","", IF(B42="LDV/LDT1", 0.3, IF(B42="LDT2", 0.4, IF(OR(B42="HLDT/MDPV",B42="HLDT Allowance only", B42="MDPV Allowance only"), 0.5, IF(B42="HDV", 0.6, ERROR))))) -> 
W43: =IF(A43="","", IF(B43="LDV/LDT1", 0.3, IF(B43="LDT2", 0.4, IF(OR(B43="HLDT/MDPV",B43="HLDT Allowance only", B43="MDPV Allowance only"), 0.5, IF(B43="HDV", 0.6, ERROR))))) -> 
W44: =IF(A44="","", IF(B44="LDV/LDT1", 0.3, IF(B44="LDT2", 0.4, IF(OR(B44="HLDT/MDPV",B44="HLDT Allowance only", B44="MDPV Allowance only"), 0.5, IF(B44="HDV", 0.6, ERROR))))) -> 
W45: =IF(A45="","", IF(B45="LDV/LDT1", 0.3, IF(B45="LDT2", 0.4, IF(OR(B45="HLDT/MDPV",B45="HLDT Allowance only", B45="MDPV Allowance only"), 0.5, IF(B45="HDV", 0.6, ERROR))))) -> 
W46: =IF(A46="","", IF(B46="LDV/LDT1", 0.3, IF(B46="LDT2", 0.4, IF(OR(B46="HLDT/MDPV",B46="HLDT Allowance only", B46="MDPV Allowance only"), 0.5, IF(B46="HDV", 0.6, ERROR))))) -> 
W47: =IF(A47="","", IF(B47="LDV/LDT1", 0.3, IF(B47="LDT2", 0.4, IF(OR(B47="HLDT/MDPV",B47="HLDT Allowance only", B47="MDPV Allowance only"), 0.5, IF(B47="HDV", 0.6, ERROR))))) -> 
W48: =IF(A48="","", IF(B48="LDV/LDT1", 0.3, IF(B48="LDT2", 0.4, IF(OR(B48="HLDT/MDPV",B48="HLDT Allowance only", B48="MDPV Allowance only"), 0.5, IF(B48="HDV", 0.6, ERROR))))) -> 
W49: =IF(A49="","", IF(B49="LDV/LDT1", 0.3, IF(B49="LDT2", 0.4, IF(OR(B49="HLDT/MDPV",B49="HLDT Allowance only", B49="MDPV Allowance only"), 0.5, IF(B49="HDV", 0.6, ERROR))))) -> 
W50: =IF(A50="","", IF(B50="LDV/LDT1", 0.3, IF(B50="LDT2", 0.4, IF(OR(B50="HLDT/MDPV",B50="HLDT Allowance only", B50="MDPV Allowance only"), 0.5, IF(B50="HDV", 0.6, ERROR))))) -> 
W51: =IF(A51="","", IF(B51="LDV/LDT1", 0.3, IF(B51="LDT2", 0.4, IF(OR(B51="HLDT/MDPV",B51="HLDT Allowance only", B51="MDPV Allowance only"), 0.5, IF(B51="HDV", 0.6, ERROR))))) -> 
W52: =IF(A52="","", IF(B52="LDV/LDT1", 0.3, IF(B52="LDT2", 0.4, IF(OR(B52="HLDT/MDPV",B52="HLDT Allowance only", B52="MDPV Allowance only"), 0.5, IF(B52="HDV", 0.6, ERROR))))) -> 
W53: =IF(A53="","", IF(B53="LDV/LDT1", 0.3, IF(B53="LDT2", 0.4, IF(OR(B53="HLDT/MDPV",B53="HLDT Allowance only", B53="MDPV Allowance only"), 0.5, IF(B53="HDV", 0.6, ERROR))))) -> 
W54: =IF(A54="","", IF(B54="LDV/LDT1", 0.3, IF(B54="LDT2", 0.4, IF(OR(B54="HLDT/MDPV",B54="HLDT Allowance only", B54="MDPV Allowance only"), 0.5, IF(B54="HDV", 0.6, ERROR))))) -> 
W55: =IF(A55="","", IF(B55="LDV/LDT1", 0.3, IF(B55="LDT2", 0.4, IF(OR(B55="HLDT/MDPV",B55="HLDT Allowance only", B55="MDPV Allowance only"), 0.5, IF(B55="HDV", 0.6, ERROR))))) -> 
W56: =IF(A56="","", IF(B56="LDV/LDT1", 0.3, IF(B56="LDT2", 0.4, IF(OR(B56="HLDT/MDPV",B56="HLDT Allowance only", B56="MDPV Allowance only"), 0.5, IF(B56="HDV", 0.6, ERROR))))) -> 
W57: =IF(A57="","", IF(B57="LDV/LDT1", 0.3, IF(B57="LDT2", 0.4, IF(OR(B57="HLDT/MDPV",B57="HLDT Allowance only", B57="MDPV Allowance only"), 0.5, IF(B57="HDV", 0.6, ERROR))))) -> 
W58: =IF(A58="","", IF(B58="LDV/LDT1", 0.3, IF(B58="LDT2", 0.4, IF(OR(B58="HLDT/MDPV",B58="HLDT Allowance only", B58="MDPV Allowance only"), 0.5, IF(B58="HDV", 0.6, ERROR))))) -> 
W59: =IF(A59="","", IF(B59="LDV/LDT1", 0.3, IF(B59="LDT2", 0.4, IF(OR(B59="HLDT/MDPV",B59="HLDT Allowance only", B59="MDPV Allowance only"), 0.5, IF(B59="HDV", 0.6, ERROR))))) -> 
W60: =IF(A60="","", IF(B60="LDV/LDT1", 0.3, IF(B60="LDT2", 0.4, IF(OR(B60="HLDT/MDPV",B60="HLDT Allowance only", B60="MDPV Allowance only"), 0.5, IF(B60="HDV", 0.6, ERROR))))) -> 
W61: =IF(A61="","", IF(B61="LDV/LDT1", 0.3, IF(B61="LDT2", 0.4, IF(OR(B61="HLDT/MDPV",B61="HLDT Allowance only", B61="MDPV Allowance only"), 0.5, IF(B61="HDV", 0.6, ERROR))))) -> 
W62: =IF(A62="","", IF(B62="LDV/LDT1", 0.3, IF(B62="LDT2", 0.4, IF(OR(B62="HLDT/MDPV",B62="HLDT Allowance only", B62="MDPV Allowance only"), 0.5, IF(B62="HDV", 0.6, ERROR))))) -> 
W63: =IF(A63="","", IF(B63="LDV/LDT1", 0.3, IF(B63="LDT2", 0.4, IF(OR(B63="HLDT/MDPV",B63="HLDT Allowance only", B63="MDPV Allowance only"), 0.5, IF(B63="HDV", 0.6, ERROR))))) -> 
W64: =IF(A64="","", IF(B64="LDV/LDT1", 0.3, IF(B64="LDT2", 0.4, IF(OR(B64="HLDT/MDPV",B64="HLDT Allowance only", B64="MDPV Allowance only"), 0.5, IF(B64="HDV", 0.6, ERROR))))) -> 
W65: =IF(A65="","", IF(B65="LDV/LDT1", 0.3, IF(B65="LDT2", 0.4, IF(OR(B65="HLDT/MDPV",B65="HLDT Allowance only", B65="MDPV Allowance only"), 0.5, IF(B65="HDV", 0.6, ERROR))))) -> 
W66: =IF(A66="","", IF(B66="LDV/LDT1", 0.3, IF(B66="LDT2", 0.4, IF(OR(B66="HLDT/MDPV",B66="HLDT Allowance only", B66="MDPV Allowance only"), 0.5, IF(B66="HDV", 0.6, ERROR))))) -> 
W67: =IF(A67="","", IF(B67="LDV/LDT1", 0.3, IF(B67="LDT2", 0.4, IF(OR(B67="HLDT/MDPV",B67="HLDT Allowance only", B67="MDPV Allowance only"), 0.5, IF(B67="HDV", 0.6, ERROR))))) -> 
W68: =IF(A68="","", IF(B68="LDV/LDT1", 0.3, IF(B68="LDT2", 0.4, IF(OR(B68="HLDT/MDPV",B68="HLDT Allowance only", B68="MDPV Allowance only"), 0.5, IF(B68="HDV", 0.6, ERROR))))) -> 
W69: =IF(A69="","", IF(B69="LDV/LDT1", 0.3, IF(B69="LDT2", 0.4, IF(OR(B69="HLDT/MDPV",B69="HLDT Allowance only", B69="MDPV Allowance only"), 0.5, IF(B69="HDV", 0.6, ERROR))))) -> 
W70: =IF(A70="","", IF(B70="LDV/LDT1", 0.3, IF(B70="LDT2", 0.4, IF(OR(B70="HLDT/MDPV",B70="HLDT Allowance only", B70="MDPV Allowance only"), 0.5, IF(B70="HDV", 0.6, ERROR))))) -> 
W71: =IF(A71="","", IF(B71="LDV/LDT1", 0.3, IF(B71="LDT2", 0.4, IF(OR(B71="HLDT/MDPV",B71="HLDT Allowance only", B71="MDPV Allowance only"), 0.5, IF(B71="HDV", 0.6, ERROR))))) -> 
W72: =IF(A72="","", IF(B72="LDV/LDT1", 0.3, IF(B72="LDT2", 0.4, IF(OR(B72="HLDT/MDPV",B72="HLDT Allowance only", B72="MDPV Allowance only"), 0.5, IF(B72="HDV", 0.6, ERROR))))) -> 
W73: =IF(A73="","", IF(B73="LDV/LDT1", 0.3, IF(B73="LDT2", 0.4, IF(OR(B73="HLDT/MDPV",B73="HLDT Allowance only", B73="MDPV Allowance only"), 0.5, IF(B73="HDV", 0.6, ERROR))))) -> 
W74: =IF(A74="","", IF(B74="LDV/LDT1", 0.3, IF(B74="LDT2", 0.4, IF(OR(B74="HLDT/MDPV",B74="HLDT Allowance only", B74="MDPV Allowance only"), 0.5, IF(B74="HDV", 0.6, ERROR))))) -> 
W75: =IF(A75="","", IF(B75="LDV/LDT1", 0.3, IF(B75="LDT2", 0.4, IF(OR(B75="HLDT/MDPV",B75="HLDT Allowance only", B75="MDPV Allowance only"), 0.5, IF(B75="HDV", 0.6, ERROR))))) -> 
W76: =IF(A76="","", IF(B76="LDV/LDT1", 0.3, IF(B76="LDT2", 0.4, IF(OR(B76="HLDT/MDPV",B76="HLDT Allowance only", B76="MDPV Allowance only"), 0.5, IF(B76="HDV", 0.6, ERROR))))) -> 
W77: =IF(A77="","", IF(B77="LDV/LDT1", 0.3, IF(B77="LDT2", 0.4, IF(OR(B77="HLDT/MDPV",B77="HLDT Allowance only", B77="MDPV Allowance only"), 0.5, IF(B77="HDV", 0.6, ERROR))))) -> 
W78: =IF(A78="","", IF(B78="LDV/LDT1", 0.3, IF(B78="LDT2", 0.4, IF(OR(B78="HLDT/MDPV",B78="HLDT Allowance only", B78="MDPV Allowance only"), 0.5, IF(B78="HDV", 0.6, ERROR))))) -> 
W79: =IF(A79="","", IF(B79="LDV/LDT1", 0.3, IF(B79="LDT2", 0.4, IF(OR(B79="HLDT/MDPV",B79="HLDT Allowance only", B79="MDPV Allowance only"), 0.5, IF(B79="HDV", 0.6, ERROR))))) -> 
W80: =IF(A80="","", IF(B80="LDV/LDT1", 0.3, IF(B80="LDT2", 0.4, IF(OR(B80="HLDT/MDPV",B80="HLDT Allowance only", B80="MDPV Allowance only"), 0.5, IF(B80="HDV", 0.6, ERROR))))) -> 
W81: =IF(A81="","", IF(B81="LDV/LDT1", 0.3, IF(B81="LDT2", 0.4, IF(OR(B81="HLDT/MDPV",B81="HLDT Allowance only", B81="MDPV Allowance only"), 0.5, IF(B81="HDV", 0.6, ERROR))))) -> 
W82: =IF(A82="","", IF(B82="LDV/LDT1", 0.3, IF(B82="LDT2", 0.4, IF(OR(B82="HLDT/MDPV",B82="HLDT Allowance only", B82="MDPV Allowance only"), 0.5, IF(B82="HDV", 0.6, ERROR))))) -> 
W83: =IF(A83="","", IF(B83="LDV/LDT1", 0.3, IF(B83="LDT2", 0.4, IF(OR(B83="HLDT/MDPV",B83="HLDT Allowance only", B83="MDPV Allowance only"), 0.5, IF(B83="HDV", 0.6, ERROR))))) -> 
W84: =IF(A84="","", IF(B84="LDV/LDT1", 0.3, IF(B84="LDT2", 0.4, IF(OR(B84="HLDT/MDPV",B84="HLDT Allowance only", B84="MDPV Allowance only"), 0.5, IF(B84="HDV", 0.6, ERROR))))) -> 
W85: =IF(A85="","", IF(B85="LDV/LDT1", 0.3, IF(B85="LDT2", 0.4, IF(OR(B85="HLDT/MDPV",B85="HLDT Allowance only", B85="MDPV Allowance only"), 0.5, IF(B85="HDV", 0.6, ERROR))))) ->  | X85: =IF(A85="", "", IF(J85 = "Yes", W85, IF(K85="Yes", W85, IF(AND(A85<>"",B85="HDV",E85="Statement"), MAX(C85, W85),C85)))) ->  | Y85: =IF(A85="","",IF(AND(A85<>"",L85="Yes",$C$8>2021),"ERROR--Can't Use Early Allowances after 2021MY", IF(AND(A85<>"",B85="HLDT Allowance only",$C$8=2017),"Can't Use HLDT Allowance before 2018MY",IF(AND(A85<>"",B85="MDPV Allowance only",$C$8=2017),"Can't Use MDPV Allowance before 2018MY",IF(AND(A85<>"",B85="HLDT/MDPV",$C$8=2017),"Can't Use HLDT/MDPV Allowance before 2018MY",IF(AND(A85<>"",B85="HDV",$C$8=2017),"Can't Use HDV Allowance before 2018MY",IF(AND(A85<>"",L85="Yes",J85<>"Yes",K85<>"Yes",C85>W85),"ERROR--Early Allowance evaporative family does not comply with Tier 3 standards and is not a 2015 or 2016 Carryover PZEV or Carryover LEV3 Option 1 (Rig Test) Evap family",IF(AND(A85<>"",L85="Yes",B85="HDV",O85=""),"FIX 50-St Prod'n--needed for HDV Allowances",IF(AND(A85<>"",B85="MDPV Allowance only",O85=""),"FIX 50-St Prod'n--needed for MDPV early allowances",IF(AND(A85<>"",L85="Yes",B85="LDV/LDT1",N85=""),"FIX Fed Prod'n--needed for LDV/LDT1 early allowances",IF(AND(A85<>"",L85="Yes",B85="LDT2",N85=""),"FIX Fed Prod'n--needed for LDT2 early allowances",IF(AND(A85<>"",L85="Yes",B85="HLDT Allowance only",N85=""),"FIX Fed Prod'n--needed for HLDT early allowances",IF(AND(A85<>"",L85="Yes",B85="HLDT/MDPV"),"ERROR in Col B--must use HLDT Allowance only or MDPV Allowance only value from Column B menu and corresponding production values for HLDT Allowances or MDPV Allowances as applicable",IF(AND(A85<>"",B85="HDV",D85=""),"ERROR--Column B is HDV but HDV Class in Column E is Blank",IF(AND(A85<>"",B85<>"",B85<>"HDV",D85<>""),"ERROR--Column B is not HDV but you entered a HDV Class in Column E",IF(AND(A85<>"",B85="HDV",D85=4,E85=""),"ERROR--Column E indicates HDV Class 4-8 but Certification Basis in Column F is Blank",IF(AND(A85<>"",B85="HDV",D85=5,E85=""),"ERROR--Column E indicates HDV Class 4-8 but Certification Basis in Column F is Blank",IF(AND(A85<>"",B85="HDV",D85=6,E85=""),"ERROR--Column E indicates HDV Class 4-8 but Certification Basis in Column F is Blank",IF(AND(A85<>"",B85="HDV",D85=7,E85=""),"ERROR--Column E indicates HDV Class 4-8 but Certification Basis in Column F is Blank",IF(AND(A85<>"",B85="HDV",D85=8,E85=""),"ERROR--Column E indicates HDV Class 4-8 but Certification Basis in Column F is Blank",IF(AND(A85<>"",D85="2b",E85="Statement"),"ERROR in Columns E & F---Can't use Statement for Certification Basis of Class 2b HDVs",IF(AND(A85<>"",D85=3,E85="Statement"),"ERROR in Columns E & F---Can't use Statement for Certification Basis of Class 3 HDVs",IF(AND(A85<>"",B85<>"HDV",E85="Statement"),"ERROR in Columns B & F---Can only use Statement as the Certification Basis of Class 4 and above HDVs",IF(AND(A85<>"",I85="Phase 2",J85="No"),"ERROR--Can only use Phase 2 test fuel for 2015-2016 Carryover PZEV Option 1 (Rig Test) Evaporative Families",IF(AND(A85<>"",I85="NA",E85<>"Statement"),"ERROR in Columns F & J---Can only use NA for Test Fuel if Certification is based on a Statement",IF(AND(A85<>"",J85="Yes",I85<>"Phase 2"),"ERROR--Test fuel must be Phase 2 for 2015-2016 Carryover PZEV Option 1 (Rig test) evaporative families",IF(AND(A85<>"",J85="Yes",C85<>0.35,C85<>0.5,C85<>0.75),"ERROR--FEL must be 0.350, 0.500 or 0.750 for 2015-2016 Carryover PZEV Option 1 (Rig test) evaporative families",IF(AND(A85<>"",J85="Yes",B85<>"LDV/LDT1",B85<>"LDT2",B85<>"HLDT/MDPV"),"ERROR--Vehicle class must be LDV/LDT1 or LDT2 or HLDT/MDPV for 2015-2016 Carryover PZEV Option 1 (Rig test) evaporative families",IF(AND(A85<>"",$C$8>2019,J85="Yes",L85<>"Yes"),"ERROR--Can't use Carryover data from 2015-2016 PZEV Option 1 (Rig test) using Phase 2 test fuel after 2019MY (or after 2021MY if used as an Early Allowance)",IF(AND(A85<>"",K85="Yes",I85<>"LEV 3"),"ERROR--Test fuel must be LEV 3 for 2015-2016 Carryover LEV3 Option 1 (Rig test) evaporative families",IF(AND(A85<>"",K85="Yes",C85<>0.35,C85<>0.5,C85<>0.75),"ERROR--FEL must be 0.350, 0.500 or 0.750 for 2015-2016 Carryover LEV3 Option 1 (Rig test) evaporative families",IF(AND(A85<>"",$C$8>2021,K85="Yes"),"ERROR--Can't use Carryover data from 2015-2016 CARB LEV3 Option 1 (Rig test) using LEV 3 test fuel after 2021MY",IF(AND(A85<>"",B85<>"LDV/LDT1",G85=120),"ERROR--Useful Life must be 150,000 miles for this Tier 3 Evaporative Family",IF(AND(A85<>"",L85="Yes",M85<>2015,M85<>2016,M85<>2017),"FIX Model Year Early Allowance was earned",IF(AND(A85<>"",L85="No",M85<>"",M85<>"NA"),"Error in cols M & N---column M indicates No Allowance but Column N indicates an allowance was earned",IF(AND(A85<>"",L85="Yes",B85<>"HDV",B85<>"HLDT Allowance only",B85<>"MDPV Allowance only",M85=2017),"ERROR--Early allowances can't be earned in 2017MY for LDV/LDT1 and LDT2 Evaporative Families",IF(AND(A85<>"",$C$8=2017,N85=""),"FIX Federal Prod'n--needed for 2017MY compliance",IF(AND(A85<>"",$C$8<>2017,L85="No",O85=""),"FIX 50-St Prod'n",IF(AND(A85<>"",B85="HLDT Allowance only",L85<>"Yes"),"ERROR - Cols B & M--Column B indicates an Allowance is being used but Column M indicates No Allowance",IF(AND(A85<>"",B85="MDPV Allowance only",L85<>"Yes"),"ERROR - Cols B & M--Column B indicates an Allowance is being use but Column M indicates No Allowance",IF(AND(A85<>"",B85="HDV",D85<> "2b", L85="Yes",F85 =""),"FIX Column G 'HDV also meets ORVR Standards'---needed for HDV Class 3 and above Allowances",IF(AND(A85<>"",B85="HDV",D85<> "2b", L85="Yes",F85 ="Yes"), 2*O85,IF(AND(A85<>"",L85="Yes",B85="LDV/LDT1"),N85,IF(AND(A85<>"",L85="Yes",B85="LDT2"),N85,IF(AND(A85<>"",L85="Yes",B85="HLDT Allowance only"),N85,IF(AND(A85<>"",L85="No",$C$8=2017),N85,O85)))))))))))))))))))))))))))))))))))))))))))))) ->  | Z85: =IF(AND(A85="",N85<>""),"FIX TEST GROUP",IF(AND(A85="",O85<>""),"FIX TEST GROUP",IF(A85="","", IF(B85="","FIX CLASS",IF(C85="","FIX FEL",IF(G85="","FIX U/L Miles",IF(I85="","FIX Test Fuel",IF(J85="","FIX PZEV Carryover",IF(K85="","FIX CARB Opt 1 Carryover",IF(L85="","FIX Allowance Y/N",IF(M85="","FIX Allowance MY",IF(Y85="","FIX PROD'N in Column Q",Y85*X85)))))))))))) ->  | AA85: =IF(A85="","",IF(AND(A85<>"",B85="LDV/LDT1",C85<=0.5),"OK",IF(AND(A85<>"",B85="LDT2",C85<=0.65),"OK",IF(AND(A85<>"",B85="HLDT/MDPV",C85<=0.9),"OK",IF(AND(A85<>"",B85="HLDT/MDPV",C85>0.9,C85<=1),"OK if HLDTs < 0.9",IF(AND(A85<>"",B85="HDV",D85="2b",C85<=1.4),"OK",IF(AND(A85<>"",B85="HDV",D85=3,C85<=1.4),"OK",IF(AND(A85<>"",B85="HDV",C85<=1.9, D85>=4),"OK",IF(AND(A85<>"",B85="HLDT Allowance only"),"OK",IF(AND(A85<>"",B85="MDPV Allowance only"),"OK","FEL exceeds CAP")))))))))) ->  | AB85: =IF(ISNUMBER(Y85)=TRUE, "", Y85) -> 
W86: =IF(A86="","", IF(B86="LDV/LDT1", 0.3, IF(B86="LDT2", 0.4, IF(OR(B86="HLDT/MDPV",B86="HLDT Allowance only", B86="MDPV Allowance only"), 0.5, IF(B86="HDV", 0.6, ERROR))))) -> 
W87: =IF(A87="","", IF(B87="LDV/LDT1", 0.3, IF(B87="LDT2", 0.4, IF(OR(B87="HLDT/MDPV",B87="HLDT Allowance only", B87="MDPV Allowance only"), 0.5, IF(B87="HDV", 0.6, ERROR))))) -> 
W88: =IF(A88="","", IF(B88="LDV/LDT1", 0.3, IF(B88="LDT2", 0.4, IF(OR(B88="HLDT/MDPV",B88="HLDT Allowance only", B88="MDPV Allowance only"), 0.5, IF(B88="HDV", 0.6, ERROR))))) -> 
W89: =IF(A89="","", IF(B89="LDV/LDT1", 0.3, IF(B89="LDT2", 0.4, IF(OR(B89="HLDT/MDPV",B89="HLDT Allowance only", B89="MDPV Allowance only"), 0.5, IF(B89="HDV", 0.6, ERROR))))) -> 
W90: =IF(A90="","", IF(B90="LDV/LDT1", 0.3, IF(B90="LDT2", 0.4, IF(OR(B90="HLDT/MDPV",B90="HLDT Allowance only", B90="MDPV Allowance only"), 0.5, IF(B90="HDV", 0.6, ERROR))))) -> 
W91: =IF(A91="","", IF(B91="LDV/LDT1", 0.3, IF(B91="LDT2", 0.4, IF(OR(B91="HLDT/MDPV",B91="HLDT Allowance only", B91="MDPV Allowance only"), 0.5, IF(B91="HDV", 0.6, ERROR))))) -> 
W92: =IF(A92="","", IF(B92="LDV/LDT1", 0.3, IF(B92="LDT2", 0.4, IF(OR(B92="HLDT/MDPV",B92="HLDT Allowance only", B92="MDPV Allowance only"), 0.5, IF(B92="HDV", 0.6, ERROR))))) -> 
W93: =IF(A93="","", IF(B93="LDV/LDT1", 0.3, IF(B93="LDT2", 0.4, IF(OR(B93="HLDT/MDPV",B93="HLDT Allowance only", B93="MDPV Allowance only"), 0.5, IF(B93="HDV", 0.6, ERROR))))) -> 
W94: =IF(A94="","", IF(B94="LDV/LDT1", 0.3, IF(B94="LDT2", 0.4, IF(OR(B94="HLDT/MDPV",B94="HLDT Allowance only", B94="MDPV Allowance only"), 0.5, IF(B94="HDV", 0.6, ERROR))))) -> 
W95: =IF(A95="","", IF(B95="LDV/LDT1", 0.3, IF(B95="LDT2", 0.4, IF(OR(B95="HLDT/MDPV",B95="HLDT Allowance only", B95="MDPV Allowance only"), 0.5, IF(B95="HDV", 0.6, ERROR))))) -> 
W96: =IF(A96="","", IF(B96="LDV/LDT1", 0.3, IF(B96="LDT2", 0.4, IF(OR(B96="HLDT/MDPV",B96="HLDT Allowance only", B96="MDPV Allowance only"), 0.5, IF(B96="HDV", 0.6, ERROR))))) -> 
W97: =IF(A97="","", IF(B97="LDV/LDT1", 0.3, IF(B97="LDT2", 0.4, IF(OR(B97="HLDT/MDPV",B97="HLDT Allowance only", B97="MDPV Allowance only"), 0.5, IF(B97="HDV", 0.6, ERROR))))) -> 
W98: =IF(A98="","", IF(B98="LDV/LDT1", 0.3, IF(B98="LDT2", 0.4, IF(OR(B98="HLDT/MDPV",B98="HLDT Allowance only", B98="MDPV Allowance only"), 0.5, IF(B98="HDV", 0.6, ERROR))))) -> 
W99: =IF(A99="","", IF(B99="LDV/LDT1", 0.3, IF(B99="LDT2", 0.4, IF(OR(B99="HLDT/MDPV",B99="HLDT Allowance only", B99="MDPV Allowance only"), 0.5, IF(B99="HDV", 0.6, ERROR))))) -> 
W100: =IF(A100="","", IF(B100="LDV/LDT1", 0.3, IF(B100="LDT2", 0.4, IF(OR(B100="HLDT/MDPV",B100="HLDT Allowance only", B100="MDPV Allowance only"), 0.5, IF(B100="HDV", 0.6, ERROR))))) -> 
W101: =IF(A101="","", IF(B101="LDV/LDT1", 0.3, IF(B101="LDT2", 0.4, IF(OR(B101="HLDT/MDPV",B101="HLDT Allowance only", B101="MDPV Allowance only"), 0.5, IF(B101="HDV", 0.6, ERROR))))) -> 
W102: =IF(A102="","", IF(B102="LDV/LDT1", 0.3, IF(B102="LDT2", 0.4, IF(OR(B102="HLDT/MDPV",B102="HLDT Allowance only", B102="MDPV Allowance only"), 0.5, IF(B102="HDV", 0.6, ERROR))))) -> 
W103: =IF(A103="","", IF(B103="LDV/LDT1", 0.3, IF(B103="LDT2", 0.4, IF(OR(B103="HLDT/MDPV",B103="HLDT Allowance only", B103="MDPV Allowance only"), 0.5, IF(B103="HDV", 0.6, ERROR))))) -> 
W104: =IF(A104="","", IF(B104="LDV/LDT1", 0.3, IF(B104="LDT2", 0.4, IF(OR(B104="HLDT/MDPV",B104="HLDT Allowance only", B104="MDPV Allowance only"), 0.5, IF(B104="HDV", 0.6, ERROR))))) -> 
W105: =IF(A105="","", IF(B105="LDV/LDT1", 0.3, IF(B105="LDT2", 0.4, IF(OR(B105="HLDT/MDPV",B105="HLDT Allowance only", B105="MDPV Allowance only"), 0.5, IF(B105="HDV", 0.6, ERROR))))) -> 
W106: =IF(A106="","", IF(B106="LDV/LDT1", 0.3, IF(B106="LDT2", 0.4, IF(OR(B106="HLDT/MDPV",B106="HLDT Allowance only", B106="MDPV Allowance only"), 0.5, IF(B106="HDV", 0.6, ERROR))))) -> 
W107: =IF(A107="","", IF(B107="LDV/LDT1", 0.3, IF(B107="LDT2", 0.4, IF(OR(B107="HLDT/MDPV",B107="HLDT Allowance only", B107="MDPV Allowance only"), 0.5, IF(B107="HDV", 0.6, ERROR))))) -> 
W108: =IF(A108="","", IF(B108="LDV/LDT1", 0.3, IF(B108="LDT2", 0.4, IF(OR(B108="HLDT/MDPV",B108="HLDT Allowance only", B108="MDPV Allowance only"), 0.5, IF(B108="HDV", 0.6, ERROR))))) -> 
W109: =IF(A109="","", IF(B109="LDV/LDT1", 0.3, IF(B109="LDT2", 0.4, IF(OR(B109="HLDT/MDPV",B109="HLDT Allowance only", B109="MDPV Allowance only"), 0.5, IF(B109="HDV", 0.6, ERROR))))) -> 
W110: =IF(A110="","", IF(B110="LDV/LDT1", 0.3, IF(B110="LDT2", 0.4, IF(OR(B110="HLDT/MDPV",B110="HLDT Allowance only", B110="MDPV Allowance only"), 0.5, IF(B110="HDV", 0.6, ERROR))))) -> 
W111: =IF(A111="","", IF(B111="LDV/LDT1", 0.3, IF(B111="LDT2", 0.4, IF(OR(B111="HLDT/MDPV",B111="HLDT Allowance only", B111="MDPV Allowance only"), 0.5, IF(B111="HDV", 0.6, ERROR))))) -> 
W112: =IF(A112="","", IF(B112="LDV/LDT1", 0.3, IF(B112="LDT2", 0.4, IF(OR(B112="HLDT/MDPV",B112="HLDT Allowance only", B112="MDPV Allowance only"), 0.5, IF(B112="HDV", 0.6, ERROR))))) -> 
W113: =IF(A113="","", IF(B113="LDV/LDT1", 0.3, IF(B113="LDT2", 0.4, IF(OR(B113="HLDT/MDPV",B113="HLDT Allowance only", B113="MDPV Allowance only"), 0.5, IF(B113="HDV", 0.6, ERROR))))) -> 
W114: =IF(A114="","", IF(B114="LDV/LDT1", 0.3, IF(B114="LDT2", 0.4, IF(OR(B114="HLDT/MDPV",B114="HLDT Allowance only", B114="MDPV Allowance only"), 0.5, IF(B114="HDV", 0.6, ERROR))))) -> 
W115: =IF(A115="","", IF(B115="LDV/LDT1", 0.3, IF(B115="LDT2", 0.4, IF(OR(B115="HLDT/MDPV",B115="HLDT Allowance only", B115="MDPV Allowance only"), 0.5, IF(B115="HDV", 0.6, ERROR))))) -> 
W116: =IF(A116="","", IF(B116="LDV/LDT1", 0.3, IF(B116="LDT2", 0.4, IF(OR(B116="HLDT/MDPV",B116="HLDT Allowance only", B116="MDPV Allowance only"), 0.5, IF(B116="HDV", 0.6, ERROR))))) -> 
W117: =IF(A117="","", IF(B117="LDV/LDT1", 0.3, IF(B117="LDT2", 0.4, IF(OR(B117="HLDT/MDPV",B117="HLDT Allowance only", B117="MDPV Allowance only"), 0.5, IF(B117="HDV", 0.6, ERROR))))) -> 
W118: =IF(A118="","", IF(B118="LDV/LDT1", 0.3, IF(B118="LDT2", 0.4, IF(OR(B118="HLDT/MDPV",B118="HLDT Allowance only", B118="MDPV Allowance only"), 0.5, IF(B118="HDV", 0.6, ERROR))))) -> 
W119: =IF(A119="","", IF(B119="LDV/LDT1", 0.3, IF(B119="LDT2", 0.4, IF(OR(B119="HLDT/MDPV",B119="HLDT Allowance only", B119="MDPV Allowance only"), 0.5, IF(B119="HDV", 0.6, ERROR))))) -> 
W120: =IF(A120="","", IF(B120="LDV/LDT1", 0.3, IF(B120="LDT2", 0.4, IF(OR(B120="HLDT/MDPV",B120="HLDT Allowance only", B120="MDPV Allowance only"), 0.5, IF(B120="HDV", 0.6, ERROR))))) -> 
W121: =IF(A121="","", IF(B121="LDV/LDT1", 0.3, IF(B121="LDT2", 0.4, IF(OR(B121="HLDT/MDPV",B121="HLDT Allowance only", B121="MDPV Allowance only"), 0.5, IF(B121="HDV", 0.6, ERROR))))) -> 
W122: =IF(A122="","", IF(B122="LDV/LDT1", 0.3, IF(B122="LDT2", 0.4, IF(OR(B122="HLDT/MDPV",B122="HLDT Allowance only", B122="MDPV Allowance only"), 0.5, IF(B122="HDV", 0.6, ERROR))))) -> 
W123: =IF(A123="","", IF(B123="LDV/LDT1", 0.3, IF(B123="LDT2", 0.4, IF(OR(B123="HLDT/MDPV",B123="HLDT Allowance only", B123="MDPV Allowance only"), 0.5, IF(B123="HDV", 0.6, ERROR))))) -> 
W124: =IF(A124="","", IF(B124="LDV/LDT1", 0.3, IF(B124="LDT2", 0.4, IF(OR(B124="HLDT/MDPV",B124="HLDT Allowance only", B124="MDPV Allowance only"), 0.5, IF(B124="HDV", 0.6, ERROR))))) -> 
W125: =IF(A125="","", IF(B125="LDV/LDT1", 0.3, IF(B125="LDT2", 0.4, IF(OR(B125="HLDT/MDPV",B125="HLDT Allowance only", B125="MDPV Allowance only"), 0.5, IF(B125="HDV", 0.6, ERROR))))) -> 
W126: =IF(A126="","", IF(B126="LDV/LDT1", 0.3, IF(B126="LDT2", 0.4, IF(OR(B126="HLDT/MDPV",B126="HLDT Allowance only", B126="MDPV Allowance only"), 0.5, IF(B126="HDV", 0.6, ERROR))))) -> 
W127: =IF(A127="","", IF(B127="LDV/LDT1", 0.3, IF(B127="LDT2", 0.4, IF(OR(B127="HLDT/MDPV",B127="HLDT Allowance only", B127="MDPV Allowance only"), 0.5, IF(B127="HDV", 0.6, ERROR))))) -> 
W128: =IF(A128="","", IF(B128="LDV/LDT1", 0.3, IF(B128="LDT2", 0.4, IF(OR(B128="HLDT/MDPV",B128="HLDT Allowance only", B128="MDPV Allowance only"), 0.5, IF(B128="HDV", 0.6, ERROR))))) -> 
W129: =IF(A129="","", IF(B129="LDV/LDT1", 0.3, IF(B129="LDT2", 0.4, IF(OR(B129="HLDT/MDPV",B129="HLDT Allowance only", B129="MDPV Allowance only"), 0.5, IF(B129="HDV", 0.6, ERROR))))) -> 
W130: =IF(A130="","", IF(B130="LDV/LDT1", 0.3, IF(B130="LDT2", 0.4, IF(OR(B130="HLDT/MDPV",B130="HLDT Allowance only", B130="MDPV Allowance only"), 0.5, IF(B130="HDV", 0.6, ERROR))))) -> 
W131: =IF(A131="","", IF(B131="LDV/LDT1", 0.3, IF(B131="LDT2", 0.4, IF(OR(B131="HLDT/MDPV",B131="HLDT Allowance only", B131="MDPV Allowance only"), 0.5, IF(B131="HDV", 0.6, ERROR))))) -> 
W132: =IF(A132="","", IF(B132="LDV/LDT1", 0.3, IF(B132="LDT2", 0.4, IF(OR(B132="HLDT/MDPV",B132="HLDT Allowance only", B132="MDPV Allowance only"), 0.5, IF(B132="HDV", 0.6, ERROR))))) -> 
W133: =IF(A133="","", IF(B133="LDV/LDT1", 0.3, IF(B133="LDT2", 0.4, IF(OR(B133="HLDT/MDPV",B133="HLDT Allowance only", B133="MDPV Allowance only"), 0.5, IF(B133="HDV", 0.6, ERROR))))) -> 
W134: =IF(A134="","", IF(B134="LDV/LDT1", 0.3, IF(B134="LDT2", 0.4, IF(OR(B134="HLDT/MDPV",B134="HLDT Allowance only", B134="MDPV Allowance only"), 0.5, IF(B134="HDV", 0.6, ERROR))))) -> 
W135: =IF(A135="","", IF(B135="LDV/LDT1", 0.3, IF(B135="LDT2", 0.4, IF(OR(B135="HLDT/MDPV",B135="HLDT Allowance only", B135="MDPV Allowance only"), 0.5, IF(B135="HDV", 0.6, ERROR))))) -> 
W136: =IF(A136="","", IF(B136="LDV/LDT1", 0.3, IF(B136="LDT2", 0.4, IF(OR(B136="HLDT/MDPV",B136="HLDT Allowance only", B136="MDPV Allowance only"), 0.5, IF(B136="HDV", 0.6, ERROR))))) -> 
W137: =IF(A137="","", IF(B137="LDV/LDT1", 0.3, IF(B137="LDT2", 0.4, IF(OR(B137="HLDT/MDPV",B137="HLDT Allowance only", B137="MDPV Allowance only"), 0.5, IF(B137="HDV", 0.6, ERROR))))) -> 
W138: =IF(A138="","", IF(B138="LDV/LDT1", 0.3, IF(B138="LDT2", 0.4, IF(OR(B138="HLDT/MDPV",B138="HLDT Allowance only", B138="MDPV Allowance only"), 0.5, IF(B138="HDV", 0.6, ERROR))))) -> 
W139: =IF(A139="","", IF(B139="LDV/LDT1", 0.3, IF(B139="LDT2", 0.4, IF(OR(B139="HLDT/MDPV",B139="HLDT Allowance only", B139="MDPV Allowance only"), 0.5, IF(B139="HDV", 0.6, ERROR))))) -> 
W140: =IF(A140="","", IF(B140="LDV/LDT1", 0.3, IF(B140="LDT2", 0.4, IF(OR(B140="HLDT/MDPV",B140="HLDT Allowance only", B140="MDPV Allowance only"), 0.5, IF(B140="HDV", 0.6, ERROR))))) -> 
W141: =IF(A141="","", IF(B141="LDV/LDT1", 0.3, IF(B141="LDT2", 0.4, IF(OR(B141="HLDT/MDPV",B141="HLDT Allowance only", B141="MDPV Allowance only"), 0.5, IF(B141="HDV", 0.6, ERROR))))) -> 
W142: =IF(A142="","", IF(B142="LDV/LDT1", 0.3, IF(B142="LDT2", 0.4, IF(OR(B142="HLDT/MDPV",B142="HLDT Allowance only", B142="MDPV Allowance only"), 0.5, IF(B142="HDV", 0.6, ERROR))))) -> 
W143: =IF(A143="","", IF(B143="LDV/LDT1", 0.3, IF(B143="LDT2", 0.4, IF(OR(B143="HLDT/MDPV",B143="HLDT Allowance only", B143="MDPV Allowance only"), 0.5, IF(B143="HDV", 0.6, ERROR))))) -> 
W144: =IF(A144="","", IF(B144="LDV/LDT1", 0.3, IF(B144="LDT2", 0.4, IF(OR(B144="HLDT/MDPV",B144="HLDT Allowance only", B144="MDPV Allowance only"), 0.5, IF(B144="HDV", 0.6, ERROR))))) -> 
W145: =IF(A145="","", IF(B145="LDV/LDT1", 0.3, IF(B145="LDT2", 0.4, IF(OR(B145="HLDT/MDPV",B145="HLDT Allowance only", B145="MDPV Allowance only"), 0.5, IF(B145="HDV", 0.6, ERROR))))) -> 
W146: =IF(A146="","", IF(B146="LDV/LDT1", 0.3, IF(B146="LDT2", 0.4, IF(OR(B146="HLDT/MDPV",B146="HLDT Allowance only", B146="MDPV Allowance only"), 0.5, IF(B146="HDV", 0.6, ERROR))))) -> 
W147: =IF(A147="","", IF(B147="LDV/LDT1", 0.3, IF(B147="LDT2", 0.4, IF(OR(B147="HLDT/MDPV",B147="HLDT Allowance only", B147="MDPV Allowance only"), 0.5, IF(B147="HDV", 0.6, ERROR))))) -> 
W148: =IF(A148="","", IF(B148="LDV/LDT1", 0.3, IF(B148="LDT2", 0.4, IF(OR(B148="HLDT/MDPV",B148="HLDT Allowance only", B148="MDPV Allowance only"), 0.5, IF(B148="HDV", 0.6, ERROR))))) -> 
W149: =IF(A149="","", IF(B149="LDV/LDT1", 0.3, IF(B149="LDT2", 0.4, IF(OR(B149="HLDT/MDPV",B149="HLDT Allowance only", B149="MDPV Allowance only"), 0.5, IF(B149="HDV", 0.6, ERROR))))) ->  | X149: =IF(A149="", "", IF(J149 = "Yes", W149, IF(K149="Yes", W149, IF(AND(A149<>"",B149="HDV",E149="Statement"), MAX(C149, W149),C149)))) ->  | Y149: =IF(A149="","",IF(AND(A149<>"",L149="Yes",$C$8>2021),"ERROR--Can't Use Early Allowances after 2021MY", IF(AND(A149<>"",B149="HLDT Allowance only",$C$8=2017),"Can't Use HLDT Allowance before 2018MY",IF(AND(A149<>"",B149="MDPV Allowance only",$C$8=2017),"Can't Use MDPV Allowance before 2018MY",IF(AND(A149<>"",B149="HLDT/MDPV",$C$8=2017),"Can't Use HLDT/MDPV Allowance before 2018MY",IF(AND(A149<>"",B149="HDV",$C$8=2017),"Can't Use HDV Allowance before 2018MY",IF(AND(A149<>"",L149="Yes",J149<>"Yes",K149<>"Yes",C149>W149),"ERROR--Early Allowance evaporative family does not comply with Tier 3 standards and is not a 2015 or 2016 Carryover PZEV or Carryover LEV3 Option 1 (Rig Test) Evap family",IF(AND(A149<>"",L149="Yes",B149="HDV",O149=""),"FIX 50-St Prod'n--needed for HDV Allowances",IF(AND(A149<>"",B149="MDPV Allowance only",O149=""),"FIX 50-St Prod'n--needed for MDPV early allowances",IF(AND(A149<>"",L149="Yes",B149="LDV/LDT1",N149=""),"FIX Fed Prod'n--needed for LDV/LDT1 early allowances",IF(AND(A149<>"",L149="Yes",B149="LDT2",N149=""),"FIX Fed Prod'n--needed for LDT2 early allowances",IF(AND(A149<>"",L149="Yes",B149="HLDT Allowance only",N149=""),"FIX Fed Prod'n--needed for HLDT early allowances",IF(AND(A149<>"",L149="Yes",B149="HLDT/MDPV"),"ERROR in Col B--must use HLDT Allowance only or MDPV Allowance only value from Column B menu and corresponding production values for HLDT Allowances or MDPV Allowances as applicable",IF(AND(A149<>"",B149="HDV",D149=""),"ERROR--Column B is HDV but HDV Class in Column E is Blank",IF(AND(A149<>"",B149<>"",B149<>"HDV",D149<>""),"ERROR--Column B is not HDV but you entered a HDV Class in Column E",IF(AND(A149<>"",B149="HDV",D149=4,E149=""),"ERROR--Column E indicates HDV Class 4-8 but Certification Basis in Column F is Blank",IF(AND(A149<>"",B149="HDV",D149=5,E149=""),"ERROR--Column E indicates HDV Class 4-8 but Certification Basis in Column F is Blank",IF(AND(A149<>"",B149="HDV",D149=6,E149=""),"ERROR--Column E indicates HDV Class 4-8 but Certification Basis in Column F is Blank",IF(AND(A149<>"",B149="HDV",D149=7,E149=""),"ERROR--Column E indicates HDV Class 4-8 but Certification Basis in Column F is Blank",IF(AND(A149<>"",B149="HDV",D149=8,E149=""),"ERROR--Column E indicates HDV Class 4-8 but Certification Basis in Column F is Blank",IF(AND(A149<>"",D149="2b",E149="Statement"),"ERROR in Columns E & F---Can't use Statement for Certification Basis of Class 2b HDVs",IF(AND(A149<>"",D149=3,E149="Statement"),"ERROR in Columns E & F---Can't use Statement for Certification Basis of Class 3 HDVs",IF(AND(A149<>"",B149<>"HDV",E149="Statement"),"ERROR in Columns B & F---Can only use Statement as the Certification Basis of Class 4 and above HDVs",IF(AND(A149<>"",I149="Phase 2",J149="No"),"ERROR--Can only use Phase 2 test fuel for 2015-2016 Carryover PZEV Option 1 (Rig Test) Evaporative Families",IF(AND(A149<>"",I149="NA",E149<>"Statement"),"ERROR in Columns F & J---Can only use NA for Test Fuel if Certification is based on a Statement",IF(AND(A149<>"",J149="Yes",I149<>"Phase 2"),"ERROR--Test fuel must be Phase 2 for 2015-2016 Carryover PZEV Option 1 (Rig test) evaporative families",IF(AND(A149<>"",J149="Yes",C149<>0.35,C149<>0.5,C149<>0.75),"ERROR--FEL must be 0.350, 0.500 or 0.750 for 2015-2016 Carryover PZEV Option 1 (Rig test) evaporative families",IF(AND(A149<>"",J149="Yes",B149<>"LDV/LDT1",B149<>"LDT2",B149<>"HLDT/MDPV"),"ERROR--Vehicle class must be LDV/LDT1 or LDT2 or HLDT/MDPV for 2015-2016 Carryover PZEV Option 1 (Rig test) evaporative families",IF(AND(A149<>"",$C$8>2019,J149="Yes",L149<>"Yes"),"ERROR--Can't use Carryover data from 2015-2016 PZEV Option 1 (Rig test) using Phase 2 test fuel after 2019MY (or after 2021MY if used as an Early Allowance)",IF(AND(A149<>"",K149="Yes",I149<>"LEV 3"),"ERROR--Test fuel must be LEV 3 for 2015-2016 Carryover LEV3 Option 1 (Rig test) evaporative families",IF(AND(A149<>"",K149="Yes",C149<>0.35,C149<>0.5,C149<>0.75),"ERROR--FEL must be 0.350, 0.500 or 0.750 for 2015-2016 Carryover LEV3 Option 1 (Rig test) evaporative families",IF(AND(A149<>"",$C$8>2021,K149="Yes"),"ERROR--Can't use Carryover data from 2015-2016 CARB LEV3 Option 1 (Rig test) using LEV 3 test fuel after 2021MY",IF(AND(A149<>"",B149<>"LDV/LDT1",G149=120),"ERROR--Useful Life must be 150,000 miles for this Tier 3 Evaporative Family",IF(AND(A149<>"",L149="Yes",M149<>2015,M149<>2016,M149<>2017),"FIX Model Year Early Allowance was earned",IF(AND(A149<>"",L149="No",M149<>"",M149<>"NA"),"Error in cols M & N---column M indicates No Allowance but Column N indicates an allowance was earned",IF(AND(A149<>"",L149="Yes",B149<>"HDV",B149<>"HLDT Allowance only",B149<>"MDPV Allowance only",M149=2017),"ERROR--Early allowances can't be earned in 2017MY for LDV/LDT1 and LDT2 Evaporative Families",IF(AND(A149<>"",$C$8=2017,N149=""),"FIX Federal Prod'n--needed for 2017MY compliance",IF(AND(A149<>"",$C$8<>2017,L149="No",O149=""),"FIX 50-St Prod'n",IF(AND(A149<>"",B149="HLDT Allowance only",L149<>"Yes"),"ERROR - Cols B & M--Column B indicates an Allowance is being used but Column M indicates No Allowance",IF(AND(A149<>"",B149="MDPV Allowance only",L149<>"Yes"),"ERROR - Cols B & M--Column B indicates an Allowance is being use but Column M indicates No Allowance",IF(AND(A149<>"",B149="HDV",D149<> "2b", L149="Yes",F149 =""),"FIX Column G 'HDV also meets ORVR Standards'---needed for HDV Class 3 and above Allowances",IF(AND(A149<>"",B149="HDV",D149<> "2b", L149="Yes",F149 ="Yes"), 2*O149,IF(AND(A149<>"",L149="Yes",B149="LDV/LDT1"),N149,IF(AND(A149<>"",L149="Yes",B149="LDT2"),N149,IF(AND(A149<>"",L149="Yes",B149="HLDT Allowance only"),N149,IF(AND(A149<>"",L149="No",$C$8=2017),N149,O149)))))))))))))))))))))))))))))))))))))))))))))) ->  | Z149: =IF(AND(A149="",N149<>""),"FIX TEST GROUP",IF(AND(A149="",O149<>""),"FIX TEST GROUP",IF(A149="","", IF(B149="","FIX CLASS",IF(C149="","FIX FEL",IF(G149="","FIX U/L Miles",IF(I149="","FIX Test Fuel",IF(J149="","FIX PZEV Carryover",IF(K149="","FIX CARB Opt 1 Carryover",IF(L149="","FIX Allowance Y/N",IF(M149="","FIX Allowance MY",IF(Y149="","FIX PROD'N in Column Q",Y149*X149)))))))))))) ->  | AA149: =IF(A149="","",IF(AND(A149<>"",B149="LDV/LDT1",C149<=0.5),"OK",IF(AND(A149<>"",B149="LDT2",C149<=0.65),"OK",IF(AND(A149<>"",B149="HLDT/MDPV",C149<=0.9),"OK",IF(AND(A149<>"",B149="HLDT/MDPV",C149>0.9,C149<=1),"OK if HLDTs < 0.9",IF(AND(A149<>"",B149="HDV",D149="2b",C149<=1.4),"OK",IF(AND(A149<>"",B149="HDV",D149=3,C149<=1.4),"OK",IF(AND(A149<>"",B149="HDV",C149<=1.9, D149>=4),"OK",IF(AND(A149<>"",B149="HLDT Allowance only"),"OK",IF(AND(A149<>"",B149="MDPV Allowance only"),"OK","FEL exceeds CAP")))))))))) ->  | AB149: =IF(ISNUMBER(Y149)=TRUE, "", Y149) -> 
W150: =IF(A150="","", IF(B150="LDV/LDT1", 0.3, IF(B150="LDT2", 0.4, IF(OR(B150="HLDT/MDPV",B150="HLDT Allowance only", B150="MDPV Allowance only"), 0.5, IF(B150="HDV", 0.6, ERROR))))) -> 
W151: =IF(A151="","", IF(B151="LDV/LDT1", 0.3, IF(B151="LDT2", 0.4, IF(OR(B151="HLDT/MDPV",B151="HLDT Allowance only", B151="MDPV Allowance only"), 0.5, IF(B151="HDV", 0.6, ERROR))))) -> 
W152: =IF(A152="","", IF(B152="LDV/LDT1", 0.3, IF(B152="LDT2", 0.4, IF(OR(B152="HLDT/MDPV",B152="HLDT Allowance only", B152="MDPV Allowance only"), 0.5, IF(B152="HDV", 0.6, ERROR))))) -> 
W153: =IF(A153="","", IF(B153="LDV/LDT1", 0.3, IF(B153="LDT2", 0.4, IF(OR(B153="HLDT/MDPV",B153="HLDT Allowance only", B153="MDPV Allowance only"), 0.5, IF(B153="HDV", 0.6, ERROR))))) -> 
W154: =IF(A154="","", IF(B154="LDV/LDT1", 0.3, IF(B154="LDT2", 0.4, IF(OR(B154="HLDT/MDPV",B154="HLDT Allowance only", B154="MDPV Allowance only"), 0.5, IF(B154="HDV", 0.6, ERROR))))) -> 
W155: =IF(A155="","", IF(B155="LDV/LDT1", 0.3, IF(B155="LDT2", 0.4, IF(OR(B155="HLDT/MDPV",B155="HLDT Allowance only", B155="MDPV Allowance only"), 0.5, IF(B155="HDV", 0.6, ERROR))))) -> 
W156: =IF(A156="","", IF(B156="LDV/LDT1", 0.3, IF(B156="LDT2", 0.4, IF(OR(B156="HLDT/MDPV",B156="HLDT Allowance only", B156="MDPV Allowance only"), 0.5, IF(B156="HDV", 0.6, ERROR))))) -> 
W157: =IF(A157="","", IF(B157="LDV/LDT1", 0.3, IF(B157="LDT2", 0.4, IF(OR(B157="HLDT/MDPV",B157="HLDT Allowance only", B157="MDPV Allowance only"), 0.5, IF(B157="HDV", 0.6, ERROR))))) -> 
W158: =IF(A158="","", IF(B158="LDV/LDT1", 0.3, IF(B158="LDT2", 0.4, IF(OR(B158="HLDT/MDPV",B158="HLDT Allowance only", B158="MDPV Allowance only"), 0.5, IF(B158="HDV", 0.6, ERROR))))) -> 
W159: =IF(A159="","", IF(B159="LDV/LDT1", 0.3, IF(B159="LDT2", 0.4, IF(OR(B159="HLDT/MDPV",B159="HLDT Allowance only", B159="MDPV Allowance only"), 0.5, IF(B159="HDV", 0.6, ERROR))))) -> 
W160: =IF(A160="","", IF(B160="LDV/LDT1", 0.3, IF(B160="LDT2", 0.4, IF(OR(B160="HLDT/MDPV",B160="HLDT Allowance only", B160="MDPV Allowance only"), 0.5, IF(B160="HDV", 0.6, ERROR))))) -> 
W161: =IF(A161="","", IF(B161="LDV/LDT1", 0.3, IF(B161="LDT2", 0.4, IF(OR(B161="HLDT/MDPV",B161="HLDT Allowance only", B161="MDPV Allowance only"), 0.5, IF(B161="HDV", 0.6, ERROR))))) -> 
W162: =IF(A162="","", IF(B162="LDV/LDT1", 0.3, IF(B162="LDT2", 0.4, IF(OR(B162="HLDT/MDPV",B162="HLDT Allowance only", B162="MDPV Allowance only"), 0.5, IF(B162="HDV", 0.6, ERROR))))) -> 
W163: =IF(A163="","", IF(B163="LDV/LDT1", 0.3, IF(B163="LDT2", 0.4, IF(OR(B163="HLDT/MDPV",B163="HLDT Allowance only", B163="MDPV Allowance only"), 0.5, IF(B163="HDV", 0.6, ERROR))))) -> 
W164: =IF(A164="","", IF(B164="LDV/LDT1", 0.3, IF(B164="LDT2", 0.4, IF(OR(B164="HLDT/MDPV",B164="HLDT Allowance only", B164="MDPV Allowance only"), 0.5, IF(B164="HDV", 0.6, ERROR))))) -> 
W165: =IF(A165="","", IF(B165="LDV/LDT1", 0.3, IF(B165="LDT2", 0.4, IF(OR(B165="HLDT/MDPV",B165="HLDT Allowance only", B165="MDPV Allowance only"), 0.5, IF(B165="HDV", 0.6, ERROR))))) -> 
W166: =IF(A166="","", IF(B166="LDV/LDT1", 0.3, IF(B166="LDT2", 0.4, IF(OR(B166="HLDT/MDPV",B166="HLDT Allowance only", B166="MDPV Allowance only"), 0.5, IF(B166="HDV", 0.6, ERROR))))) -> 
W167: =IF(A167="","", IF(B167="LDV/LDT1", 0.3, IF(B167="LDT2", 0.4, IF(OR(B167="HLDT/MDPV",B167="HLDT Allowance only", B167="MDPV Allowance only"), 0.5, IF(B167="HDV", 0.6, ERROR))))) -> 
W168: =IF(A168="","", IF(B168="LDV/LDT1", 0.3, IF(B168="LDT2", 0.4, IF(OR(B168="HLDT/MDPV",B168="HLDT Allowance only", B168="MDPV Allowance only"), 0.5, IF(B168="HDV", 0.6, ERROR))))) -> 
W169: =IF(A169="","", IF(B169="LDV/LDT1", 0.3, IF(B169="LDT2", 0.4, IF(OR(B169="HLDT/MDPV",B169="HLDT Allowance only", B169="MDPV Allowance only"), 0.5, IF(B169="HDV", 0.6, ERROR))))) -> 
W170: =IF(A170="","", IF(B170="LDV/LDT1", 0.3, IF(B170="LDT2", 0.4, IF(OR(B170="HLDT/MDPV",B170="HLDT Allowance only", B170="MDPV Allowance only"), 0.5, IF(B170="HDV", 0.6, ERROR))))) -> 
W171: =IF(A171="","", IF(B171="LDV/LDT1", 0.3, IF(B171="LDT2", 0.4, IF(OR(B171="HLDT/MDPV",B171="HLDT Allowance only", B171="MDPV Allowance only"), 0.5, IF(B171="HDV", 0.6, ERROR))))) -> 
W172: =IF(A172="","", IF(B172="LDV/LDT1", 0.3, IF(B172="LDT2", 0.4, IF(OR(B172="HLDT/MDPV",B172="HLDT Allowance only", B172="MDPV Allowance only"), 0.5, IF(B172="HDV", 0.6, ERROR))))) -> 
W173: =IF(A173="","", IF(B173="LDV/LDT1", 0.3, IF(B173="LDT2", 0.4, IF(OR(B173="HLDT/MDPV",B173="HLDT Allowance only", B173="MDPV Allowance only"), 0.5, IF(B173="HDV", 0.6, ERROR))))) -> 
W174: =IF(A174="","", IF(B174="LDV/LDT1", 0.3, IF(B174="LDT2", 0.4, IF(OR(B174="HLDT/MDPV",B174="HLDT Allowance only", B174="MDPV Allowance only"), 0.5, IF(B174="HDV", 0.6, ERROR))))) -> 
W175: =IF(A175="","", IF(B175="LDV/LDT1", 0.3, IF(B175="LDT2", 0.4, IF(OR(B175="HLDT/MDPV",B175="HLDT Allowance only", B175="MDPV Allowance only"), 0.5, IF(B175="HDV", 0.6, ERROR))))) -> 
W176: =IF(A176="","", IF(B176="LDV/LDT1", 0.3, IF(B176="LDT2", 0.4, IF(OR(B176="HLDT/MDPV",B176="HLDT Allowance only", B176="MDPV Allowance only"), 0.5, IF(B176="HDV", 0.6, ERROR))))) -> 
W177: =IF(A177="","", IF(B177="LDV/LDT1", 0.3, IF(B177="LDT2", 0.4, IF(OR(B177="HLDT/MDPV",B177="HLDT Allowance only", B177="MDPV Allowance only"), 0.5, IF(B177="HDV", 0.6, ERROR))))) -> 
W178: =IF(A178="","", IF(B178="LDV/LDT1", 0.3, IF(B178="LDT2", 0.4, IF(OR(B178="HLDT/MDPV",B178="HLDT Allowance only", B178="MDPV Allowance only"), 0.5, IF(B178="HDV", 0.6, ERROR))))) -> 
W179: =IF(A179="","", IF(B179="LDV/LDT1", 0.3, IF(B179="LDT2", 0.4, IF(OR(B179="HLDT/MDPV",B179="HLDT Allowance only", B179="MDPV Allowance only"), 0.5, IF(B179="HDV", 0.6, ERROR))))) -> 
W180: =IF(A180="","", IF(B180="LDV/LDT1", 0.3, IF(B180="LDT2", 0.4, IF(OR(B180="HLDT/MDPV",B180="HLDT Allowance only", B180="MDPV Allowance only"), 0.5, IF(B180="HDV", 0.6, ERROR))))) -> 
W181: =IF(A181="","", IF(B181="LDV/LDT1", 0.3, IF(B181="LDT2", 0.4, IF(OR(B181="HLDT/MDPV",B181="HLDT Allowance only", B181="MDPV Allowance only"), 0.5, IF(B181="HDV", 0.6, ERROR))))) -> 
W182: =IF(A182="","", IF(B182="LDV/LDT1", 0.3, IF(B182="LDT2", 0.4, IF(OR(B182="HLDT/MDPV",B182="HLDT Allowance only", B182="MDPV Allowance only"), 0.5, IF(B182="HDV", 0.6, ERROR))))) -> 
W183: =IF(A183="","", IF(B183="LDV/LDT1", 0.3, IF(B183="LDT2", 0.4, IF(OR(B183="HLDT/MDPV",B183="HLDT Allowance only", B183="MDPV Allowance only"), 0.5, IF(B183="HDV", 0.6, ERROR))))) -> 
W184: =IF(A184="","", IF(B184="LDV/LDT1", 0.3, IF(B184="LDT2", 0.4, IF(OR(B184="HLDT/MDPV",B184="HLDT Allowance only", B184="MDPV Allowance only"), 0.5, IF(B184="HDV", 0.6, ERROR))))) -> 
W185: =IF(A185="","", IF(B185="LDV/LDT1", 0.3, IF(B185="LDT2", 0.4, IF(OR(B185="HLDT/MDPV",B185="HLDT Allowance only", B185="MDPV Allowance only"), 0.5, IF(B185="HDV", 0.6, ERROR))))) -> 
W186: =IF(A186="","", IF(B186="LDV/LDT1", 0.3, IF(B186="LDT2", 0.4, IF(OR(B186="HLDT/MDPV",B186="HLDT Allowance only", B186="MDPV Allowance only"), 0.5, IF(B186="HDV", 0.6, ERROR))))) -> 
W187: =IF(A187="","", IF(B187="LDV/LDT1", 0.3, IF(B187="LDT2", 0.4, IF(OR(B187="HLDT/MDPV",B187="HLDT Allowance only", B187="MDPV Allowance only"), 0.5, IF(B187="HDV", 0.6, ERROR))))) -> 
W188: =IF(A188="","", IF(B188="LDV/LDT1", 0.3, IF(B188="LDT2", 0.4, IF(OR(B188="HLDT/MDPV",B188="HLDT Allowance only", B188="MDPV Allowance only"), 0.5, IF(B188="HDV", 0.6, ERROR))))) -> 
W189: =IF(A189="","", IF(B189="LDV/LDT1", 0.3, IF(B189="LDT2", 0.4, IF(OR(B189="HLDT/MDPV",B189="HLDT Allowance only", B189="MDPV Allowance only"), 0.5, IF(B189="HDV", 0.6, ERROR))))) -> 
W190: =IF(A190="","", IF(B190="LDV/LDT1", 0.3, IF(B190="LDT2", 0.4, IF(OR(B190="HLDT/MDPV",B190="HLDT Allowance only", B190="MDPV Allowance only"), 0.5, IF(B190="HDV", 0.6, ERROR))))) -> 
W191: =IF(A191="","", IF(B191="LDV/LDT1", 0.3, IF(B191="LDT2", 0.4, IF(OR(B191="HLDT/MDPV",B191="HLDT Allowance only", B191="MDPV Allowance only"), 0.5, IF(B191="HDV", 0.6, ERROR))))) -> 
W192: =IF(A192="","", IF(B192="LDV/LDT1", 0.3, IF(B192="LDT2", 0.4, IF(OR(B192="HLDT/MDPV",B192="HLDT Allowance only", B192="MDPV Allowance only"), 0.5, IF(B192="HDV", 0.6, ERROR))))) -> 
W193: =IF(A193="","", IF(B193="LDV/LDT1", 0.3, IF(B193="LDT2", 0.4, IF(OR(B193="HLDT/MDPV",B193="HLDT Allowance only", B193="MDPV Allowance only"), 0.5, IF(B193="HDV", 0.6, ERROR))))) -> 
W194: =IF(A194="","", IF(B194="LDV/LDT1", 0.3, IF(B194="LDT2", 0.4, IF(OR(B194="HLDT/MDPV",B194="HLDT Allowance only", B194="MDPV Allowance only"), 0.5, IF(B194="HDV", 0.6, ERROR))))) -> 
W195: =IF(A195="","", IF(B195="LDV/LDT1", 0.3, IF(B195="LDT2", 0.4, IF(OR(B195="HLDT/MDPV",B195="HLDT Allowance only", B195="MDPV Allowance only"), 0.5, IF(B195="HDV", 0.6, ERROR))))) -> 
W196: =IF(A196="","", IF(B196="LDV/LDT1", 0.3, IF(B196="LDT2", 0.4, IF(OR(B196="HLDT/MDPV",B196="HLDT Allowance only", B196="MDPV Allowance only"), 0.5, IF(B196="HDV", 0.6, ERROR))))) -> 
W197: =IF(A197="","", IF(B197="LDV/LDT1", 0.3, IF(B197="LDT2", 0.4, IF(OR(B197="HLDT/MDPV",B197="HLDT Allowance only", B197="MDPV Allowance only"), 0.5, IF(B197="HDV", 0.6, ERROR))))) -> 
W198: =IF(A198="","", IF(B198="LDV/LDT1", 0.3, IF(B198="LDT2", 0.4, IF(OR(B198="HLDT/MDPV",B198="HLDT Allowance only", B198="MDPV Allowance only"), 0.5, IF(B198="HDV", 0.6, ERROR))))) -> 
W199: =IF(A199="","", IF(B199="LDV/LDT1", 0.3, IF(B199="LDT2", 0.4, IF(OR(B199="HLDT/MDPV",B199="HLDT Allowance only", B199="MDPV Allowance only"), 0.5, IF(B199="HDV", 0.6, ERROR))))) -> 
W200: =IF(A200="","", IF(B200="LDV/LDT1", 0.3, IF(B200="LDT2", 0.4, IF(OR(B200="HLDT/MDPV",B200="HLDT Allowance only", B200="MDPV Allowance only"), 0.5, IF(B200="HDV", 0.6, ERROR))))) -> 
W201: =IF(A201="","", IF(B201="LDV/LDT1", 0.3, IF(B201="LDT2", 0.4, IF(OR(B201="HLDT/MDPV",B201="HLDT Allowance only", B201="MDPV Allowance only"), 0.5, IF(B201="HDV", 0.6, ERROR))))) -> 
W202: =IF(A202="","", IF(B202="LDV/LDT1", 0.3, IF(B202="LDT2", 0.4, IF(OR(B202="HLDT/MDPV",B202="HLDT Allowance only", B202="MDPV Allowance only"), 0.5, IF(B202="HDV", 0.6, ERROR))))) -> 
W203: =IF(A203="","", IF(B203="LDV/LDT1", 0.3, IF(B203="LDT2", 0.4, IF(OR(B203="HLDT/MDPV",B203="HLDT Allowance only", B203="MDPV Allowance only"), 0.5, IF(B203="HDV", 0.6, ERROR))))) -> 
W204: =IF(A204="","", IF(B204="LDV/LDT1", 0.3, IF(B204="LDT2", 0.4, IF(OR(B204="HLDT/MDPV",B204="HLDT Allowance only", B204="MDPV Allowance only"), 0.5, IF(B204="HDV", 0.6, ERROR))))) -> 
... 286 more rows

Sheet Evap AB&T MY Summary
A1: Example Template - Tier 3 Evaporative Fleet Average (Hot Soak + Diurnal) Credits - AB&T Model Year Summary Table
B2: Manufacturer: _______________________ | K2: Date:_______________
A4: Purpose and Scope of this Guidance Document
A5: This document was prepared by EPA's Office of Transportation and Air Quality (OTAQ). It is one of several intended to aid regulated parties in reporting Tier 3 and Cold NMHC Averaging, Banking and Trading (AB&T) information and calculating AB&T fleet average credits for light-duty vehicles and certain heavy-duty class 2b and 3 vehicles, ref. 40 CFR 86.1862-04(c). It contains EPA's recommended format for manufacturers to report to EPA their end-of-year Tier 3 AB&T calculations, credits and other information with respect to the implementation of the AB&T provisions of the EPA Tier 3 final rule (79 FR 23414, April 28, 2014) as amended (80 FR 9078, February 19, 2015; 80 FR 26463, May 8, 2015); ref. 40 CFR Parts 85, 86, 600, 1065, 1066. Use of this document is purely optional. This document does not in any way alter or waive the requirements in EPA regulations. Although the calculations and formulas provided in this document are intended to assist manufacturers in the implementation of EPA regulations, this document does not establish or change the legal rights or obligations of manufacturers or others in complying with EPA regulations, including 40 CFR 86.1862-04(c). If an error or other discrepancy is found in this document, including the calculation formulas, please contact your EPA certification team member or Dave Good at (734) 214-4450 or by email at good.david@epa.gov. The regulations take precedence.
A7: Select Model Year: | D7: 2019 | K7: OMB Control Number 2060-0104
A8: Select Phase-in Approach: | D8: Primary--(Used for 2017-2022MYs) | K8: Expires 3-31-2020
A9: Applicable Phase-in Regulations: | D9: =IF(D8="Primary--(Used for 2017-2022MYs)","40 CFR 86.1813-17(a)(5) Table 3",IF(D8="Alternative---(Used for 2017-2022MYs)","40 CFR 86.1813-17(g)(4)","ERROR")) -> 40 CFR 86.1813-17(a)(5) Table 3
B10: Small Volume? | D10: No
D12: Tier 3 Fleet Average Compliance Level | G12: G. Credit (Debit) [Calc from D,E,F] | H12: Date Credits/ Debits were earned | I12: Date Credits will expire | J12: Last Date When Credits can be Traded | K12: Comments
A13: A. Date of Transaction | B13: B. Model Year | C13: C. Category | D13: D. Applicable Evap HS+D Standards | E13: E. Mfr Evap HS+D Compliance Level | F13: F. Production Volume
D14: grams/test | E14: grams/test | F14: vehicles | G14: veh-grams/test
A16: 2017 Credits (LDV/LDT1 and LDT2 Classes only):
A17: 2018-05-01 | B17: 2017 | C17: LDV/LDT1 | D17: =IF(C17="LDV/LDT1", 0.3, IF(C17="LDT2", 0.4,IF(C17="HLDT/MDPV", 0.5,IF(C17="HDV", 0.6, "ERROR")))) -> 0.3 | E17: 0.3 | F17: 21784 | G17: =IF(E17= "", "ERROR", IF(F17= "", "ERROR",astm((astm(D17,3)-(astm(E17,3)))*F17,0))) -> 0 | H17: 2017-12-31 | I17: - | J17: - | K17: 2017 Tier 3 LDV/LDT1 Evap Credits earned; see other spreadsheet.
A18: 2018-05-01 | B18: 2017 | C18: LDT2 | D18: =IF(C18="LDV/LDT1", 0.3, IF(C18="LDT2", 0.4,IF(C18="HLDT/MDPV", 0.5,IF(C18="HDV", 0.6, "ERROR")))) -> 0.4 | E18: 0.4 | F18: 41000 | G18: =IF(E18= "", "ERROR", IF(F18= "", "ERROR",astm((astm(D18,3)-(astm(E18,3)))*F18,0))) -> 0 | H18: 2017-12-31 | I18: - | J18: - | K18: 2017 Tier 3 LDT2 Evap Credits earned; see other spreadsheet.
B19: 2017 | C19: Transfer | D19: - | E19: - | F19: - | H19: - | I19: - | J19: -
D21: LDV/LDT1 - Total 2017 Credits Remaining: | G21: =G17 -> 0 | H21: 2017 Credits expire Dec 31, 2022; Debits must be paid off by Dec 31, 2020.
D22: LDT2 - Total 2017 Credits Remaining: | G22: =G18 -> 0
A24: 2018 Credits:
A25: 2019-05-01 | B25: 2018 | C25: LDV/LDT1 | D25: =IF(C25="LDV/LDT1", 0.3, IF(C25="LDT2", 0.4,IF(C25="HLDT/MDPV", 0.5,IF(C25="HDV", 0.6, "ERROR")))) -> 0.3 | E25: 0.24 | F25: 48471 | G25: =IF(E25= "", "ERROR", IF(F25= "", "ERROR",astm((astm(D25,3)-(astm(E25,3)))*F25,0))) -> 2908 | H25: 2018-12-31 | I25: =DATE(YEAR(H25)+5,MONTH(H25),DAY(H25)) -> 2023-12-31 | J25: =DATE(YEAR(H25)+5,MONTH(H25),DAY(H25)) -> 2023-12-31
A26: 2019-05-01 | B26: 2018 | C26: LDT2 | D26: 0.4 | E26: 0.4 | F26: 98769 | G26: =IF(E26= "", "ERROR", IF(F26= "", "ERROR",astm((astm(D26,3)-(astm(E26,3)))*F26,0))) -> 0 | H26: 2018-12-31 | I26: - | J26: -
A27: 2019-05-01 | B27: 2018 | C27: HLDT/MDPV | D27: 0.5 | E27: 0.56 | F27: 28461 | G27: =IF(E27= "", "ERROR", IF(F27= "", "ERROR",astm((astm(D27,3)-(astm(E27,3)))*F27,0))) -> -1708 | H27: 2018-12-31 | I27: - | J27: -
A28: 2019-01-20 | B28: 2018 | C28: HLDT/MDPV | D28: Transfer | E28: - | F28: - | G28: 500 | H28: 2018-12-31 | I28: =DATE(YEAR(H28)+5,MONTH(H28),DAY(H28)) -> 2023-12-31 | J28: =DATE(YEAR(H28)+5,MONTH(H28),DAY(H28)) -> 2023-12-31 | K28: Purchased 500 HLDV/MDPV Evaporative credits from Manufacturer A (earned on 12/31/2018)
A29: 2020-05-01 | B29: 2019 | C29: HLDT/MDPV | D29: Transfer | E29: - | F29: - | G29: 1208 | H29: 2019-12-31 | I29: =DATE(YEAR(H29)+5,MONTH(H29),DAY(H29)) -> 2024-12-31 | J29: =DATE(YEAR(H29)+5,MONTH(H29),DAY(H29)) -> 2024-12-31 | K29: Transferred 1208 HLDV/MDPV 2019 Evaporative credits from 2019 to 2018 model year (earned on 12/31/2019).
A30: 2019-05-01 | B30: 2018 | C30: HDV | D30: =IF(C30="LDV/LDT1", 0.3, IF(C30="LDT2", 0.4,IF(C30="HLDT/MDPV", 0.5,IF(C30="HDV", 0.6, "ERROR")))) -> 0.6 | E30: 0.46 | F30: 54076 | G30: =IF(E30= "", "ERROR", IF(F30= "", "ERROR",astm((astm(D30,3)-(astm(E30,3)))*F30,0))) -> 7571 | H30: 2018-12-31 | I30: =DATE(YEAR(H30)+5,MONTH(H30),DAY(H30)) -> 2023-12-31 | J30: =DATE(YEAR(H30)+5,MONTH(H30),DAY(H30)) -> 2023-12-31
A31: 2019-03-04 | B31: 2018 | C31: HDV | D31: Transfer | E31: - | F31: - | G31: -7000 | H31: 2018-12-31 | I31: - | J31: - | K31: Sold 7,000 2018 HDV Evaporative Credits to Manufacturer B (earned on 12/31/2018).
C33: LDV/LDT1 - Total 2018 Credits Remaining: | G33: =G25 -> 2908 | H33: 2018 Credits expire Dec 31, 2023; Debits must be paid off by Dec 31, 2021.
C34: LDT2 - Total 2018 Credits Remaining: | G34: =G26 -> 0
C35: HLDT/MDPV - Total 2018 Credits Remaining: | G35: =G27+G28+G29 -> 0
C36: HDV - Total 2018 Credits Remaining: | G36: =G30+G31 -> 571
A38: 2019 Credits:
A39: 2020-05-01 | B39: 2019 | C39: LDV/LDT1 | D39: =IF(C39="LDV/LDT1", 0.3, IF(C39="LDT2", 0.4,IF(C39="HLDT/MDPV", 0.5,IF(C39="HDV", 0.6, "ERROR")))) -> 0.3 | E39: =Evap!K10 -> 0.188 | F39: =Evap!J10 -> 79840 | G39: =IF(E39= "", "ERROR", IF(F39= "", "ERROR",astm((astm(D39,3)-(astm(E39,3)))*F39,0))) -> 8942 | H39: 2019-12-31 | I39: =DATE(YEAR(H39)+5,MONTH(H39),DAY(H39)) -> 2024-12-31 | J39: =DATE(YEAR(H39)+5,MONTH(H39),DAY(H39)) -> 2024-12-31
A40: 2020-05-01 | B40: 2019 | C40: LDT2 | D40: 0.4 | E40: =Evap!Q10 -> 0.337 | F40: =Evap!P10 -> 134000 | G40: =IF(E40= "", "ERROR", IF(F40= "", "ERROR",astm((astm(D40,3)-(astm(E40,3)))*F40,0))) -> 8442 | H40: 2019-12-31 | I40: =DATE(YEAR(H40)+5,MONTH(H40),DAY(H40)) -> 2024-12-31 | J40: =DATE(YEAR(H40)+5,MONTH(H40),DAY(H40)) -> 2024-12-31
A41: 2020-05-01 | B41: 2019 | C41: HLDT/MDPV | D41: 0.5 | E41: =Evap!K15 -> 0.481 | F41: =Evap!J15 -> 120049 | G41: =IF(E41= "", "ERROR", IF(F41= "", "ERROR",astm((astm(D41,3)-(astm(E41,3)))*F41,0))) -> 2281 | H41: 2019-12-31 | I41: 2024-12-31 | J41: 2024-12-31
A42: 2020-05-01 | B42: 2019 | C42: HLDT/MDPV | D42: Transfer | E42: - | F42: - | G42: -1208 | H42: 2019-12-31 | I42: - | J42: - | K42: Transferred 1208 HLDV/MDPV 2019 Evaporative credits from 2019 to 2018 model year (earned on 12/31/2019).
A43: 2020-05-01 | B43: 2019 | C43: HDV | D43: 0.6 | E43: =Evap!Q15 -> 0.601 | F43: =Evap!P15 -> 116000 | G43: =IF(E43= "", "ERROR", IF(F43= "", "ERROR",astm((astm(D43,3)-(astm(E43,3)))*F43,0))) -> -116 | H43: 2019-12-31 | I43: - | J43: -
C45: LDV/LDT1 - Total 2019 Credits Remaining: | G45: =G39 -> 8942 | H45: 2019 Credits expire Dec 31, 2024; Debits must be paid off by Dec 31, 2022.
C46: LDT2 - Total 2019 Credits Remaining: | G46: =G40 -> 8442
C47: HLDT/MDPV - Total 2019 Credits Remaining: | G47: =G41 -> 2281
C48: HDV - Total 2019 Credits Remaining: | G48: =G43 -> -116
A50: Grand Totals: | C50: LDV/LDT1 - Grand Total 2017-2019 Credits Remaining: | G50: =G21+G33+G45 -> 11850
C51: LDT2 - Grand Total 2017-2019 Credits Remaining: | G51: =G22+G34+G46 -> 8442
C52: HLDT/MDPV -Grand Total 2017-2019 Credits Remaining: | G52: =G35+G47 -> 2281
C53: HDV - Grand Total 2017-2019 Credits Remaining: | G53: =G36+G48 -> 455

Sheet Sheet2 (hidden)
A1: 0 | C1: 120 | D1: 120 | E1: 2015 | F1: 2010 | G1: No | H1: MY of Early | I1: 160 | J1: 160
A2: 0.01 | C2: 150 | D2: 150 | E2: 2016 | F2: 2011 | G2: Yes | H2: Allowance | I2: 125 | J2: 125
A3: 0.02 | C3: 2b | D3: N/A | E3: 2017 | F3: 2012 | H3: Evap Family: | I3: 110 | J3: 70
A4: 0.03 | C4: 3 | E4: 2018 | F4: 2013 | H4: 2015 | I4: 85 | J4: 50
A5: 0.04 | C5: LDV/LLDT | D5: Test Fuel: | E5: 2019 | F5: 2014 | H5: 2016 | I5: 70 | J5: 30
A6: 0.05 | C6: HLDT/MDPV | D6: Phase 2 | E6: 2020 | F6: 2015 | H6: 2017 | I6: 50 | J6: 20
A7: 0.06 | D7: LEV 3 | E7: 2021 | F7: 2016 | H7: NA | I7: FED SULEV30 | J7: 0
A8: 0.07 | C8: Evap Classes: | D8: Tier 3 | E8: 2022 | F8: 2017 | I8: 30
A9: 0.08 | C9: LDV/LDT1 | D9: NA | E9: 2023 | F9: 2018 | I9: 20
A10: 0.09 | C10: LDT2 | D10: Not applicable | E10: 2024 | F10: 2019 | I10: 0
A11: 0.1 | C11: HLDT/MDPV | E11: 2025 | F11: 2020
A12: 0.11 | C12: HDV | E12: 2026 | F12: 2021 | H12: Class 2b: | I12: 395 | J12: (transitional--thru 2021MY only; ref. 86.1816-18(b)(7)(i))
A13: 0.12 | C13: HLDT Allowance only | E13: 2027 | F13: 2022 | I13: 340 | J13: (transitional--thru 2021MY only; ref. 86.1816-18(b)(7)(i))
A14: 0.13 | C14: MDPV Allowance only | F14: 2023 | I14: 250
A15: 0.14 | F15: 2024 | I15: 150
A16: 0.15 | F16: 2025 | H16: Class 3 | I16: 630
A17: 0.16 | F17: 2026 | I17: 570 | J17: (transitional--thru 2021MY only; ref. 86.1816-18(b)(7)(i))
A18: 0.17 | F18: 2027 | I18: 400 | J18: (transitional--thru 2021MY only; ref. 86.1816-18(b)(7)(i))
A19: 0.18 | I19: 270
A20: N/A | I20: 230
H21: Class 2b or 3: | I21: 200
H22: Class 2b or 3: | I22: 0 | K22: HDV Classes:
I23: Evap FELs: | K23: 2b
I24: 0 | K24: 3
I25: 0.025 | K25: 4
I26: 0.05 | K26: 5
A27: Following are valid values for Sheet "HDV" HDV Class/Bin combinations | I27: 0.075 | K27: 6
A28: 2b_395 | I28: 0.1 | K28: 7
A29: 2b_340 | I29: 0.125 | K29: 8
A30: 2b_250 | I30: 0.15
A31: 2b_150 | I31: 0.175 | K31: Test Data
A32: 2b_200 | I32: 0.2 | K32: Statement
A33: 2b_0 | I33: 0.225
A34: 3_630 | I34: 0.25
A35: 3_570 | I35: 0.275
A36: 3_400 | I36: 0.3
A37: 3_270 | I37: 0.325
A38: 3_230 | I38: 0.35
A39: 3_200 | I39: 0.375
A40: 3_0 | I40: 0.4
I41: 0.425
A42: Evap (2019MY) Spreadsheet - Error Checks in Column Y =IF(A21="","", IF(AND(A21<>"",L21="Yes",$C$8>2021),"ERROR--Can't Use Early Allowances after 2021MY", IF(AND(A21<>"",B21="HLDT Allowance only",$C$8=2017),"Can't Use HLDT Allowance before 2018MY", IF(AND(A21<>"",B21="MDPV Allowance only",$C$8=2017),"Can't Use MDPV Allowance before 2018MY", IF(AND(A21<>"",B21="HLDT/MDPV",$C$8=2017),"Can't Use HLDT/MDPV Allowance before 2018MY", IF(AND(A21<>"",B21="HDV",$C$8=2017),"Can't Use HDV Allowance before 2018MY", IF(AND(A21<>"",L21="Yes",J21<>"Yes",K21<>"Yes",C21>W21),"ERROR--Early Allowance evaporative family does not comply with Tier 3 standards and is not a 2015 or 2016 Carryover PZEV or Carryover LEV3 Option 1 (Rig Test) Evap family", IF(AND(A21<>"",L21="Yes",B21="HDV",O21=""),"FIX 50-St Prod'n--needed for HDV Allowances", IF(AND(A21<>"",B21="MDPV Allowance only",O21=""),"FIX 50-St Prod'n--needed for MDPV early allowances", IF(AND(A21<>"",L21="Yes",B21="LDV/LDT1",N21=""),"FIX Fed Prod'n--needed for LDV/LDT1 early allowances", IF(AND(A21<>"",L21="Yes",B21="LDT2",N21=""),"FIX Fed Prod'n--needed for LDT2 early allowances", IF(AND(A21<>"",L21="Yes",B21="HLDT Allowance only",N21=""),"FIX Fed Prod'n--needed for HLDT early allowances", IF(AND(A21<>"",L21="Yes",B21="HLDT/MDPV"),"ERROR in Col B--must use HLDT Allowance only or MDPV Allowance only value from Column B menu and corresponding production values for HLDT Allowances or MDPV Allowances as applicable", IF(AND(A21<>"",B21="HDV",D21=""),"ERROR--Column B is HDV but HDV Class in Column E is Blank", IF(AND(A21<>"",B21<>"",B21<>"HDV",D21<>""),"ERROR--Column B is not HDV but you entered a HDV Class in Column E", IF(AND(A21<>"",B21="HDV",D21=4,E21=""),"ERROR--Column E indicates HDV Class 4-8 but Certification Basis in Column F is Blank", IF(AND(A21<>"",B21="HDV",D21=5,E21=""),"ERROR--Column E indicates HDV Class 4-8 but Certification Basis in Column F is Blank", IF(AND(A21<>"",B21="HDV",D21=6,E21=""),"ERROR--Column E indicates HDV Class 4-8 but Certification Basis in Column F is Blank", IF(AND(A21<>"",B21="HDV",D21=7,E21=""),"ERROR--Column E indicates HDV Class 4-8 but Certification Basis in Column F is Blank", IF(AND(A21<>"",B21="HDV",D21=8,E21=""),"ERROR--Column E indicates HDV Class 4-8 but Certification Basis in Column F is Blank", IF(AND(A21<>"",D21="2b",E21="Statement"),"ERROR in Columns E & F---Can't use Statement for Certification Basis of Class 2b HDVs", IF(AND(A21<>"",D21=3,E21="Statement"),"ERROR in Columns E & F---Can't use Statement for Certification Basis of Class 3 HDVs", IF(AND(A21<>"",B21<>"HDV",E21="Statement"),"ERROR in Columns B & F---Can only use Statement as the Certification Basis of Class 4 and above HDVs", IF(AND(A21<>"",I21="Phase 2",J21="No"),"ERROR--Can only use Phase 2 test fuel for 2015-2016 Carryover PZEV Option 1 (Rig Test) Evaporative Families", IF(AND(A21<>"",I21="NA",E21<>"Statement"),"ERROR in Columns F & J---Can only use NA for Test Fuel if Certification is based on a Statement", IF(AND(A21<>"",J21="Yes",I21<>"Phase 2"),"ERROR--Test fuel must be Phase 2 for 2015-2016 Carryover PZEV Option 1 (Rig test) evaporative families", IF(AND(A21<>"",J21="Yes",C21<>0.35,C21<>0.5,C21<>0.75),"ERROR--FEL must be 0.350, 0.500 or 0.750 for 2015-2016 Carryover PZEV Option 1 (Rig test) evaporative families", IF(AND(A21<>"",J21="Yes",B21<>"LDV/LDT1",B21<>"LDT2",B21<>"HLDT/MDPV"),"ERROR--Vehicle class must be LDV/LDT1 or LDT2 or HLDT/MDPV for 2015-2016 Carryover PZEV Option 1 (Rig test) evaporative families", IF(AND(A21<>"",$C$8>2019,J21="Yes",L21<>"Yes"),"ERROR--Can't use Carryover data from 2015-2016 PZEV Option 1 (Rig test) using Phase 2 test fuel after 2019MY (or after 2021MY if used as an Early Allowance)", IF(AND(A21<>"",K21="Yes",I21<>"LEV 3"),"ERROR--Test fuel must be LEV 3 for 2015-2016 Carryover LEV3 Option 1 (Rig test) evaporative families", IF(AND(A21<>"",K21="Yes",C21<>0.35,C21<>0.5,C21<>0.75),"ERROR--FEL must be 0.350, 0.500 or 0.750 for 2015-2016 Carryover LEV3 Option 1 (Rig test) evaporative families", IF(AND(A21<>"",$C$8>2021,K21="Yes"),"ERROR--Can't use Carryover data from 2015-2016 CARB LEV3 Option 1 (Rig test) using LEV 3 test fuel after 2021MY", IF(AND(A21<>"",B21<>"LDV/LDT1",G21=120),"ERROR--Useful Life must be 150,000 miles for this Tier 3 Evaporative Family", IF(AND(A21<>"",L21="Yes",M21<>2015,M21<>2016,M21<>2017),"FIX Model Year Early Allowance was earned", IF(AND(A21<>"",L21="No",M21<>"",M21<>"NA"),"Error in cols M & N---column M indicates No Allowance but Column N indicates an allowance was earned", IF(AND(A21<>"",L21="Yes",B21<>"HDV",B21<>"HLDT Allowance only",B21<>"MDPV Allowance only",M21=2017),"ERROR--Early allowances can't be earned in 2017MY for LDV/LDT1 and LDT2 Evaporative Families", IF(AND(A21<>"",$C$8=2017,N21=""),"FIX Federal Prod'n--needed for 2017MY compliance", IF(AND(A21<>"",$C$8<>2017,L21="No",O21=""),"FIX 50-St Prod'n", IF(AND(A21<>"",B21="HLDT Allowance only",L21<>"Yes"),"ERROR - Cols B & M--Column B indicates an Allowance is being used but Column M indicates No Allowance", IF(AND(A21<>"",B21="MDPV Allowance only",L21<>"Yes"),"ERROR - Cols B & M--Column B indicates an Allowance is being use but Column M indicates No Allowance", IF(AND(A21<>"",B21="HDV",D21<> "2b", L21="Yes",F21 =""),"FIX Column G 'HDV also meets ORVR Standards'---needed for HDV Class 3 and above Allowances", IF(AND(A21<>"",B21="HDV",D21<> "2b", L21="Yes",F21 ="Yes"), 2*O21, IF(AND(A21<>"",L21="Yes",B21="LDV/LDT1"),N21, IF(AND(A21<>"",L21="Yes",B21="LDT2"),N21, IF(AND(A21<>"",L21="Yes",B21="HLDT Allowance only"),N21, IF(AND(A21<>"",L21="No",$C$8=2017),N21,O21)))))))))))))))))))))))))))))))))))))))))))))) Evap (2019MY) Spreadsheet - Error Checks in Column Z =IF(AND(A21="",N21<>""),"FIX TEST GROUP", IF(AND(A21="",O21<>""),"FIX TEST GROUP", IF(A21="","", IF(B21="","FIX CLASS", IF(C21="","FIX FEL", IF(G21="","FIX U/L Miles", IF(I21="","FIX Test Fuel", IF(J21="","FIX PZEV Carryover", IF(K21="","FIX CARB Opt 1 Carryover", IF(L21="","FIX Allowance Y/N", IF(M21="","FIX Allowance MY", IF(Y21="","FIX PROD'N in Column Q",Y21*X21)))))))))))) | I42: 0.45
I43: 0.475
I44: 0.5
I45: 0.525
I46: 0.55
I47: 0.575
I48: 0.6
I49: 0.625
I50: 0.65
I51: 0.675
I52: 0.7
I53: 0.725
I54: 0.75
I55: 0.775
I56: 0.8
I57: 0.825
I58: 0.85
I59: 0.875
I60: 0.9
I61: 0.925
I62: 0.95
I63: 0.975
I64: 1
I65: 1.025
I66: 1.05
I67: 1.075
I68: 1.1
I69: 1.125
I70: 1.15
I71: 1.175
I72: 1.2
I73: 1.225
I74: 1.25
I75: 1.275
I76: 1.3
I77: 1.325
I78: 1.35
I79: 1.375
I80: 1.4
I81: 1.425
I82: 1.345
I83: 1.475
I84: 1.5
I85: 1.525
I86: 1.55
I87: 1.575
I88: 1.6
I89: 1.625
I90: 1.65
I91: 1.675
I92: 1.7
I93: 1.725
I94: 1.75
I95: 1.775
I96: 1.8
I97: 1.825
I98: 1.85
I99: 1.875
I100: 1.9
